Workbook

Sheet Data Pl
A1: Datum/Čas | B1: Spotřeba [m3] | C1: Spotřeba [kWh] | D1: Spotreba plyn MJ (vyhrevnost 34,62 MJ/m3) | E1: Dodávka tepla (kWh) | G1: Dodávka MAX to MIN | H1: Avg den
A2: SUMA: | B2: =SUM(B3:B366) -> 287602 | C2: =SUM(C3:C366) -> 3072342 | D2: =SUM(D3:D366) -> 9956781.24 | E2: =SUM(E3:E366) -> 2765107.8 | G2: kWh
A3: 01.01.2017 06:00 | B3: 1535 | C3: 16384 | D3: =B3*34.62 -> 53141.7 | E3: =C3*0.9 -> 14745.6 | F3: =E3/24 -> 614.4 | G3: 16671.6 | H3: =G3/24 -> 694.65 | I3: 694.65 | J3: 1 | K3: =IF(I3>440,I3-440,0) -> 254.65 | M3: 3000 | N3: =I3002 -> 581.3625 | O3: kWt
A4: 02.01.2017 06:00 | B4: 1534 | C4: 16372 | D4: =B4*34.62 -> 53107.08 | E4: 14734.8 | F4: =E4/24 -> 613.95 | G4: 16671.6 | H4: =G4/24 -> 694.65 | I4: 694.65 | J4: 2 | K4: =IF(I4>440,I4-440,0) -> 254.65 | M4: 4400 | N4: =I4402 -> 385.575 | O4: kWt
A5: 03.01.2017 06:00 | B5: 1550 | C5: 16540 | D5: 53661 | E5: 14886 | F5: 620.25 | G5: 16606.8 | H5: 691.95 | I5: 694.65 | J5: 3 | K5: 254.65
A6: 04.01.2017 06:00 | B6: 1549 | C6: 16528 | D6: 53626.38 | E6: 14875.2 | F6: 619.8 | G6: 16606.8 | H6: 691.95 | I6: 694.65 | J6: 4 | K6: 254.65 | M6: za sítě omezení | R6: kWt | S6: kWe | U6: 3000 | V6: kWt | W6: kWe
A7: 05.01.2017 06:00 | B7: 1599 | C7: 17058 | D7: 55357.38 | E7: 15352.2 | F7: 639.675 | G7: 16601.4 | H7: 691.725 | I7: 694.65 | J7: 5 | K7: 254.65 | N7: 500 | O7: kWe | P7: 4400 | Q7: Cento 260 | R7: 371 | S7: 260 | U7: Centro 530 | V7: 672 | W7: 528 | Y7: Kdyz jede KGJ pres 4400 hodin, jak funguje podpora? Mam proste podporu 4400 a nemuzu pobirat podporu 3000?
A8: 06.01.2017 06:00 | B8: 1679 | C8: 17915 | D8: 58126.98 | E8: 16123.5 | F8: 671.8125 | G8: 16501.5 | H8: 687.5625 | I8: 694.65 | J8: 6 | K8: 254.65
A9: 07.01.2017 06:00 | B9: 1736 | C9: 18524 | D9: 60100.32 | E9: 16671.6 | F9: 694.65 | G9: 16501.5 | H9: 687.5625 | I9: 694.65 | J9: 7 | K9: 254.65 | Q9: Cento 120 | R9: 177 | S9: 120 | V9: =SUM(V7:V8) -> 672 | W9: =SUM(W7:W8) -> 528
A10: 08.01.2017 06:00 | B10: 1729 | C10: 18452 | D10: 59857.98 | E10: 16606.8 | F10: 691.95 | G10: 16482.6 | H10: 686.775 | I10: 694.65 | J10: 8 | K10: 254.65 | Q10: Cento 140 | R10: 203 | S10: 140 | U10: Centro 210 | V10: 267 | W10: 210
A11: 09.01.2017 06:00 | B11: 1718 | C11: 18335 | D11: 59477.16 | E11: 16501.5 | F11: 687.5625 | G11: 16380 | H11: 682.5 | I11: 694.65 | J11: 9 | K11: 254.65 | R11: =SUM(R9:R10) -> 380 | S11: =SUM(S9:S10) -> 260 | U11: Centro 210 | V11: 267 | W11: 210
A12: 10.01.2017 06:00 | B12: 1606 | C12: 17167 | D12: 55599.72 | E12: 15450.3 | F12: 643.7625 | G12: 16352.1 | H12: 681.3375 | I12: 694.65 | J12: 10 | K12: 254.65 | M12: =AVERAGE(M13:M181) -> 10.68528849 | V12: =SUM(V10:V11) -> 534 | W12: =SUM(W10:W11) -> 420
A13: 11.01.2017 06:00 | B13: 1612 | C13: 17216 | D13: 55807.44 | E13: 15494.4 | F13: 645.6 | G13: 16303.5 | H13: 679.3125 | I13: 694.65 | J13: 11 | K13: 254.65 | M13: =C3/B3 -> 10.67361564 | Q13: Cento 210 | R13: 267 | S13: 210
A14: 12.01.2017 06:00 | B14: 1630 | C14: 17408 | D14: 56430.6 | E14: 15667.2 | F14: 652.8 | G14: 16232.4 | H14: 676.35 | I14: 694.65 | J14: 12 | K14: 254.65 | M14: =C4/B4 -> 10.67275098 | Q14: Cento 80 | R14: 120 | S14: 81 | U14: Centro 100 | V14: 142 | W14: 104
A15: 13.01.2017 06:00 | B15: 1575 | C15: 16841 | D15: 54526.5 | E15: 15156.9 | F15: 631.5375 | G15: 16205.4 | H15: 675.225 | I15: 694.65 | J15: 13 | K15: 254.65 | M15: 10.67096774 | R15: =SUM(R13:R14) -> 387 | S15: =SUM(S13:S14) -> 291
A16: 14.01.2017 06:00 | B16: 1518 | C16: 16198 | D16: 52553.16 | E16: 14578.2 | F16: 607.425 | G16: 16167.6 | H16: 673.65 | I16: 694.65 | J16: 14 | K16: 254.65 | M16: 10.67010975
A17: 15.01.2017 06:00 | B17: 1453 | C17: 15503 | D17: 50302.86 | E17: 13952.7 | F17: 581.3625 | G17: 16123.5 | H17: 671.8125 | I17: 694.65 | J17: 15 | K17: 254.65 | M17: 10.66791745 | P17: =(4*30+10)*24 -> 3120 | U17: Cento 350
A18: 16.01.2017 06:00 | B18: 1617 | C18: 17256 | D18: 55980.54 | E18: 15530.4 | F18: 647.1 | G18: 16123.5 | H18: 671.8125 | I18: 694.65 | J18: 16 | K18: 254.65 | M18: 10.67004169 | U18: Cento 80
A19: 17.01.2017 06:00 | B19: 1620 | C19: 17289 | D19: 56084.4 | E19: 15560.1 | F19: 648.3375 | G19: 16029 | H19: 667.875 | I19: 694.65 | J19: 17 | K19: 254.65 | M19: 10.67050691
A20: 18.01.2017 06:00 | B20: 1612 | C20: 17204 | D20: 55807.44 | E20: 15483.6 | F20: 645.15 | G20: 15838.2 | H20: 659.925 | I20: 694.65 | J20: 18 | K20: 254.65 | M20: 10.67206478 | AA20: =24*4 -> 96
A21: 19.01.2017 06:00 | B21: 1623 | C21: 17322 | D21: 56188.26 | E21: 15589.8 | F21: 649.575 | G21: 15813 | H21: 658.875 | I21: 694.65 | J21: 19 | K21: 254.65 | M21: 10.67229336
A22: 20.01.2017 06:00 | B22: 1595 | C22: 17024 | D22: 55218.9 | E22: 15321.6 | F22: 638.4 | G22: 15706.8 | H22: 654.45 | I22: 694.65 | J22: 20 | K22: 254.65 | M22: 10.68929016
A23: 21.01.2017 06:00 | B23: 1539 | C23: 16463 | D23: 53280.18 | E23: 14816.7 | F23: 617.3625 | G23: 15667.2 | H23: 652.8 | I23: 694.65 | J23: 21 | K23: 254.65 | M23: 10.67990074
A24: 22.01.2017 06:00 | B24: 1579 | C24: 16893 | D24: 54664.98 | E24: 15203.7 | F24: 633.4875 | G24: 15667.2 | H24: 652.8 | I24: 694.65 | J24: 22 | K24: 254.65 | M24: 10.6797546
A25: 23.01.2017 06:00 | B25: 1543 | C25: 16507 | D25: 53418.66 | E25: 14856.3 | F25: 619.0125 | G25: 15625.8 | H25: 651.075 | I25: 694.65 | J25: 23 | K25: 254.65 | M25: 10.69269841
A26: 24.01.2017 06:00 | B26: 1543 | C26: 16511 | D26: 53418.66 | E26: 14859.9 | F26: 619.1625 | G26: 15589.8 | H26: 649.575 | I26: 694.65 | J26: 24 | K26: 254.65 | M26: 10.67061924
A27: 25.01.2017 06:00 | B27: 1544 | C27: 16521 | D27: 53453.28 | E27: 14868.9 | F27: 619.5375 | G27: 15589.8 | H27: 649.575 | I27: 694.65 | J27: 25 | K27: 254.65 | M27: 10.669649
A28: 26.01.2017 06:00 | B28: 1543 | C28: 16501 | D28: 53418.66 | E28: 14850.9 | F28: 618.7875 | G28: 15582.6 | H28: 649.275 | I28: 694.65 | J28: 26 | K28: 254.65 | M28: 10.6716141
A29: 27.01.2017 06:00 | B29: 1544 | C29: 16525 | D29: 53453.28 | E29: 14872.5 | F29: 619.6875 | G29: 15560.1 | H29: 648.3375 | I29: 694.65 | J29: 27 | K29: 254.65 | M29: 10.67222222
A30: 28.01.2017 06:00 | B30: 1543 | C30: 16514 | D30: 53418.66 | E30: 14862.6 | F30: 619.275 | G30: 15560.1 | H30: 648.3375 | I30: 694.65 | J30: 28 | K30: 254.65 | M30: 10.67245658
A31: 29.01.2017 06:00 | B31: 1510 | C31: 16145 | D31: 52276.2 | E31: 14530.5 | F31: 605.4375 | G31: 15530.4 | H31: 647.1 | I31: 694.65 | J31: 29 | K31: 254.65 | M31: 10.6728281
A32: 30.01.2017 06:00 | B32: 1575 | C32: 16841 | D32: 54526.5 | E32: 15156.9 | F32: 631.5375 | G32: 15530.4 | H32: 647.1 | I32: 694.65 | J32: 30 | K32: 254.65 | M32: 10.67335423
A33: 31.01.2017 06:00 | B33: 1533 | C33: 16394 | D33: 53072.46 | E33: 14754.6 | F33: 614.775 | G33: 15494.4 | H33: 645.6 | I33: 694.65 | J33: 31 | K33: 254.65 | M33: 10.69720598
A34: 01.02.2017 06:00 | B34: 1479 | C34: 15829 | D34: 51202.98 | E34: 14246.1 | F34: 593.5875 | G34: 15494.4 | H34: 645.6 | I34: 694.65 | J34: 32 | K34: 254.65 | M34: 10.69854338
A35: 02.02.2017 06:00 | B35: 1544 | C35: 16525 | D35: 53453.28 | E35: 14872.5 | F35: 619.6875 | G35: 15486.3 | H35: 645.2625 | I35: 694.65 | J35: 33 | K35: 254.65 | M35: 10.69799093 | S35: kWh
A36: 03.02.2017 06:00 | B36: 1543 | C36: 16514 | D36: 53418.66 | E36: 14862.6 | F36: 619.275 | G36: 15483.6 | H36: 645.15 | I36: 694.65 | J36: 34 | K36: 254.65 | M36: 10.70058328 | R36: Leden | S36: =SUM(E3:E33) -> 471915.9
A37: 04.02.2017 06:00 | B37: 1543 | C37: 16517 | D37: 53418.66 | E37: 14865.3 | F37: 619.3875 | G37: 15483.6 | H37: 645.15 | I37: 694.65 | J37: 35 | K37: 254.65 | M37: 10.70012953 | R37: Únor | S37: =SUM(E34:E61) -> 414277.2
A38: 05.02.2017 06:00 | B38: 1544 | C38: 16526 | D38: 53453.28 | E38: 14873.4 | F38: 619.725 | G38: 15450.3 | H38: 643.7625 | I38: 694.65 | J38: 36 | K38: 254.65 | M38: 10.6941024 | R38: Březen | S38: =SUM(E62:E92) -> 415976.4
A39: 06.02.2017 06:00 | B39: 1543 | C39: 16512 | D39: 53418.66 | E39: 14860.8 | F39: 619.2 | G39: 15450.3 | H39: 643.7625 | I39: 694.65 | J39: 37 | K39: 254.65 | M39: 10.70272021 | R39: Duben | S39: =SUM(E93:E122) -> 338772.6
A40: 07.02.2017 06:00 | B40: 1544 | C40: 16520 | D40: 53453.28 | E40: 14868 | F40: 619.5 | G40: 15410.7 | H40: 642.1125 | I40: 694.65 | J40: 38 | K40: 254.65 | M40: 10.70252754 | R40: Květen | S40: =SUM(E123:E153) -> 207159.3
A41: 08.02.2017 06:00 | B41: 1543 | C41: 16507 | D41: 53418.66 | E41: 14856.3 | F41: 619.0125 | G41: 15377.4 | H41: 640.725 | I41: 694.65 | J41: 39 | K41: 254.65 | M41: 10.69205298 | R41: Červen | S41: =SUM(E154:E183) -> 1036.8
A42: 09.02.2017 06:00 | B42: 1543 | C42: 16511 | D42: 53418.66 | E42: 14859.9 | F42: 619.1625 | G42: 15363.9 | H42: 640.1625 | I42: 694.65 | J42: 40 | K42: 254.65 | M42: 10.69269841 | R42: Červenec | S42: =SUM(E184:E214) -> 376.2
A43: 10.02.2017 06:00 | B43: 1544 | C43: 16521 | D43: 53453.28 | E43: 14868.9 | F43: 619.5375 | G43: 15352.2 | H43: 639.675 | I43: 694.65 | J43: 41 | K43: 254.65 | M43: 10.69406393 | R43: Srpen | S43: =SUM(E215:E245) -> 1158.3
A44: 11.02.2017 06:00 | B44: 1543 | C44: 16501 | D44: 53418.66 | E44: 14850.9 | F44: 618.7875 | G44: 15352.2 | H44: 639.675 | I44: 694.65 | J44: 42 | K44: 254.65 | M44: 10.70250169 | R44: Září | S44: =SUM(E246:E275) -> 3510.9
A45: 12.02.2017 06:00 | B45: 1544 | C45: 16509 | D45: 53453.28 | E45: 14858.1 | F45: 619.0875 | G45: 15321.6 | H45: 638.4 | I45: 694.65 | J45: 43 | K45: 254.65 | M45: 10.70272021 | R45: Říjen | S45: =SUM(E276:E306) -> 20722.5
A46: 13.02.2017 06:00 | B46: 1544 | C46: 16513 | D46: 53453.28 | E46: 14861.7 | F46: 619.2375 | G46: 15321.6 | H46: 638.4 | I46: 694.65 | J46: 44 | K46: 254.65 | M46: 10.70252754 | R46: Listopad | S46: =SUM(E307:E336) -> 426376.8
A47: 14.02.2017 06:00 | B47: 1577 | C47: 16865 | D47: 54595.74 | E47: 15178.5 | F47: 632.4375 | G47: 15203.7 | H47: 633.4875 | I47: 694.65 | J47: 45 | K47: 254.65 | M47: 10.70447181 | R47: Prosinec | S47: =SUM(E337:E366) -> 463824.9
A48: 15.02.2017 06:00 | B48: 1725 | C48: 18446 | D48: 59719.5 | E48: 16601.4 | F48: 691.725 | G48: 15203.7 | H48: 633.4875 | I48: 694.65 | J48: 46 | K48: 254.65 | M48: 10.70336788
A49: 16.02.2017 06:00 | B49: 1680 | C49: 17964 | D49: 58161.6 | E49: 16167.6 | F49: 673.65 | G49: 15178.5 | H49: 632.4375 | I49: 694.65 | J49: 47 | K49: 254.65 | M49: 10.70123137
A50: 17.02.2017 06:00 | B50: 1687 | C50: 18036 | D50: 58403.94 | E50: 16232.4 | F50: 676.35 | G50: 15165 | H50: 631.875 | I50: 694.65 | J50: 48 | K50: 254.65 | M50: 10.69948187
A51: 18.02.2017 06:00 | B51: 1576 | C51: 16850 | D51: 54561.12 | E51: 15165 | F51: 631.875 | G51: 15159.6 | H51: 631.65 | I51: 691.95 | J51: 49 | K51: 251.95 | M51: 10.69799093 | S51: =3000/24 -> 125
A52: 19.02.2017 06:00 | B52: 1606 | C52: 17167 | D52: 55599.72 | E52: 15450.3 | F52: 643.7625 | G52: 15156.9 | H52: 631.5375 | I52: 691.95 | J52: 50 | K52: 251.95 | M52: 10.70058328
A53: 20.02.2017 06:00 | B53: 1555 | C53: 16619 | D53: 53834.1 | E53: 14957.1 | F53: 623.2125 | G53: 15156.9 | H53: 631.5375 | I53: 691.95 | J53: 51 | K53: 251.95 | M53: 10.70012953
A54: 21.02.2017 06:00 | B54: 1495 | C54: 15974 | D54: 51756.9 | E54: 14376.6 | F54: 599.025 | G54: 15156.9 | H54: 631.5375 | I54: 691.95 | J54: 52 | K54: 251.95 | M54: 10.6941024
A55: 22.02.2017 06:00 | B55: 1411 | C55: 15073 | D55: 48848.82 | E55: 13565.7 | F55: 565.2375 | G55: 15057 | H55: 627.375 | I55: 691.95 | J55: 53 | K55: 251.95 | M55: 10.69235751
A56: 23.02.2017 06:00 | B56: 1346 | C56: 14387 | D56: 46598.52 | E56: 12948.3 | F56: 539.5125 | G56: 15028.2 | H56: 626.175 | I56: 691.95 | J56: 54 | K56: 251.95 | M56: 10.69494819
A57: 24.02.2017 06:00 | B57: 1510 | C57: 16145 | D57: 52276.2 | E57: 14530.5 | F57: 605.4375 | G57: 15014.7 | H57: 625.6125 | I57: 691.95 | J57: 55 | K57: 251.95 | M57: 10.69435637
A58: 25.02.2017 06:00 | B58: 1575 | C58: 16841 | D58: 54526.5 | E58: 15156.9 | F58: 631.5375 | G58: 14957.1 | H58: 623.2125 | I58: 691.95 | J58: 56 | K58: 251.95 | M58: 10.69333333
A59: 26.02.2017 06:00 | B59: 1533 | C59: 16394 | D59: 53072.46 | E59: 14754.6 | F59: 614.775 | G59: 14917.5 | H59: 621.5625 | I59: 691.95 | J59: 57 | K59: 251.95 | M59: 10.69285714
A60: 27.02.2017 06:00 | B60: 1417 | C60: 15163 | D60: 49056.54 | E60: 13646.7 | F60: 568.6125 | G60: 14886 | H60: 620.25 | I60: 691.95 | J60: 58 | K60: 251.95 | M60: 10.69116775
A61: 28.02.2017 06:00 | B61: 1346 | C61: 14379 | D61: 46598.52 | E61: 12941.1 | F61: 539.2125 | G61: 14886 | H61: 620.25 | I61: 691.95 | J61: 59 | K61: 251.95 | M61: 10.69162437
A62: 01.03.2017 06:00 | B62: 1465 | C62: 15665 | D62: 50718.3 | E62: 14098.5 | F62: 587.4375 | G62: 14875.2 | H62: 619.8 | I62: 691.95 | J62: 60 | K62: 251.95 | M62: 10.68929016
A63: 02.03.2017 06:00 | B63: 1468 | C63: 15699 | D63: 50822.16 | E63: 14129.1 | F63: 588.7125 | G63: 14875.2 | H63: 619.8 | I63: 691.95 | J63: 61 | K63: 251.95 | M63: 10.68745981
A64: 03.03.2017 06:00 | B64: 1458 | C64: 15611 | D64: 50475.96 | E64: 14049.9 | F64: 585.4125 | G64: 14873.4 | H64: 619.725 | I64: 691.95 | J64: 62 | K64: 251.95 | M64: 10.68494983
A65: 04.03.2017 06:00 | B65: 1188 | C65: 12695 | D65: 41128.56 | E65: 11425.5 | F65: 476.0625 | G65: 14872.5 | H65: 619.6875 | I65: 691.95 | J65: 63 | K65: 251.95 | M65: 10.68249468
A66: 05.03.2017 06:00 | B66: 1196 | C66: 12773 | D66: 41405.52 | E66: 11495.7 | F66: 478.9875 | G66: 14872.5 | H66: 619.6875 | I66: 691.95 | J66: 64 | K66: 251.95 | M66: 10.68870728
A67: 06.03.2017 06:00 | B67: 1425 | C67: 15245 | D67: 49333.5 | E67: =C67*0.9 -> 13720.5 | F67: 571.6875 | G67: 14868.9 | H67: 619.5375 | I67: 691.95 | J67: 65 | K67: 251.95 | M67: 10.69205298
A68: 07.03.2017 06:00 | B68: 1517 | C68: 16241 | D68: =B68*34.62 -> 52518.54 | E68: 14616.9 | F68: =E68/24 -> 609.0375 | G68: 14868.9 | H68: 619.5375 | I68: 691.95 | J68: 66 | K68: =IF(I68>440,I68-440,0) -> 251.95 | M68: 10.69269841
A69: 08.03.2017 06:00 | B69: 1512 | C69: 16164 | D69: 52345.44 | E69: 14547.6 | F69: 606.15 | G69: 14868 | H69: 619.5 | I69: 691.95 | J69: 67 | K69: 251.95 | M69: 10.69406393
A70: 09.03.2017 06:00 | B70: 1539 | C70: 16463 | D70: 53280.18 | E70: 14816.7 | F70: 617.3625 | G70: 14865.3 | H70: 619.3875 | I70: 691.95 | J70: 68 | K70: 251.95 | M70: 10.70077629
A71: 10.03.2017 06:00 | B71: 1579 | C71: 16893 | D71: 54664.98 | E71: 15203.7 | F71: 633.4875 | G71: 14862.6 | H71: 619.275 | I71: 691.95 | J71: 69 | K71: 251.95 | M71: 10.68276374
A72: 11.03.2017 06:00 | B72: 1517 | C72: 16233 | D72: 52518.54 | E72: 14609.7 | F72: 608.7375 | G72: 14862.6 | H72: 619.275 | I72: 691.95 | J72: 70 | K72: 251.95 | M72: 10.69283276 | P72: =AVERAGE(S46:S47,S36:S40) -> 391186.1571 | Q72: =P72/30 -> 13039.53857 | R72: =Q72/24 -> 543.3141071
A73: 12.03.2017 06:00 | B73: 1526 | C73: 16328 | D73: 52830.12 | E73: 14695.2 | F73: 612.3 | G73: 14861.7 | H73: 619.2375 | I73: 691.95 | J73: 71 | K73: 251.95 | M73: 10.69414169
A74: 13.03.2017 06:00 | B74: 1600 | C74: 17123 | D74: 55392 | E74: 15410.7 | F74: 642.1125 | G74: 14860.8 | H74: 619.2 | I74: 691.95 | J74: 72 | K74: 251.95 | M74: 10.70713306
A75: 14.03.2017 06:00 | B75: 1609 | C75: 17207 | D75: 55703.58 | E75: 15486.3 | F75: 645.2625 | G75: 14859.9 | H75: 619.1625 | I75: 691.95 | J75: 73 | K75: 251.95 | M75: 10.68602694
A76: 15.03.2017 06:00 | B76: 1598 | C76: 17086 | D76: 55322.76 | E76: 15377.4 | F76: 640.725 | G76: 14859.9 | H76: 619.1625 | I76: 691.95 | J76: 74 | K76: 251.95 | M76: 10.67976589
A77: 16.03.2017 06:00 | B77: 1580 | C77: 16844 | D77: 54699.6 | E77: 15159.6 | F77: 631.65 | G77: 14858.1 | H77: 619.0875 | I77: 691.95 | J77: 75 | K77: 251.95 | M77: 10.69824561
A78: 17.03.2017 06:00 | B78: 1467 | C78: 15633 | D78: 50787.54 | E78: 14069.7 | F78: 586.2375 | G78: 14856.3 | H78: 619.0125 | I78: 691.95 | J78: 76 | K78: 251.95 | M78: =C68/B68 -> 10.70599868
A79: 18.03.2017 06:00 | B79: 1521 | C79: 16205 | D79: 52657.02 | E79: 14584.5 | F79: 607.6875 | G79: 14856.3 | H79: 619.0125 | I79: 691.95 | J79: 77 | K79: 251.95 | M79: 10.69047619
A80: 19.03.2017 06:00 | B80: 1538 | C80: 16407 | D80: 53245.56 | E80: 14766.3 | F80: 615.2625 | G80: 14850.9 | H80: 618.7875 | I80: 691.95 | J80: 78 | K80: 251.95 | M80: 10.69720598
A81: 20.03.2017 06:00 | B81: 1297 | C81: 13855 | D81: 44902.14 | E81: 12469.5 | F81: 519.5625 | G81: 14850.9 | H81: 618.7875 | I81: 691.95 | J81: 79 | K81: 251.95 | M81: 10.69854338
A82: 21.03.2017 06:00 | B82: 1298 | C82: 13879 | D82: 44936.76 | E82: 12491.1 | F82: 520.4625 | G82: 14832.9 | H82: 618.0375 | I82: 691.95 | J82: 80 | K82: 251.95 | M82: 10.70072512
A83: 22.03.2017 06:00 | B83: 1465 | C83: 15653 | D83: 50718.3 | E83: 14087.7 | F83: 586.9875 | G83: 14819.4 | H83: 617.475 | I83: 691.95 | J83: 81 | K83: 251.95 | M83: 10.69986894
A84: 23.03.2017 06:00 | B84: 1226 | C84: 13081 | D84: 42444.12 | E84: 11772.9 | F84: 490.5375 | G84: 14816.7 | H84: 617.3625 | I84: 691.95 | J84: 82 | K84: 251.95 | M84: 10.701875
A85: 24.03.2017 06:00 | B85: 1292 | C85: 13799 | D85: 44729.04 | E85: 12419.1 | F85: 517.4625 | G85: 14816.7 | H85: 617.3625 | I85: 691.95 | J85: 83 | K85: 251.95 | M85: 10.69422001
A86: 25.03.2017 06:00 | B86: 1168 | C86: 12466 | D86: 40436.16 | E86: 11219.4 | F86: 467.475 | G86: 14766.3 | H86: 615.2625 | I86: 691.95 | J86: 84 | K86: 251.95 | M86: 10.69211514
A87: 26.03.2017 06:00 | B87: 1277 | C87: 13627 | D87: 44209.74 | E87: 12264.3 | F87: 511.0125 | G87: 14758.2 | H87: 614.925 | I87: 691.95 | J87: 85 | K87: 251.95 | M87: 10.66075949
A88: 27.03.2017 06:00 | B88: 1374 | C88: 14659 | D88: 47567.88 | E88: 13193.1 | F88: 549.7125 | G88: 14754.6 | H88: 614.775 | I88: 691.95 | J88: 86 | K88: 251.95 | M88: 10.65644172
A89: 28.03.2017 06:00 | B89: 1231 | C89: 13137 | D89: 42617.22 | E89: 11823.3 | F89: 492.6375 | G89: 14754.6 | H89: 614.775 | I89: 691.95 | J89: 87 | K89: 251.95 | M89: 10.65417488
A90: 29.03.2017 06:00 | B90: 1112 | C90: 11869 | D90: 38497.44 | E90: 10682.1 | F90: 445.0875 | G90: 14745.6 | H90: 614.4 | I90: 691.95 | J90: 88 | K90: 251.95 | M90: 10.66775033
A91: 30.03.2017 06:00 | B91: 1121 | C91: 11966 | D91: 38809.02 | E91: 10769.4 | F91: 448.725 | G91: 14745.6 | H91: 614.4 | I91: 691.95 | J91: 89 | K91: 251.95 | M91: 10.68234387
A92: 31.03.2017 06:00 | B92: 1095 | C92: 11690 | D92: 37908.9 | E92: 10521 | F92: 438.375 | G92: 14734.8 | H92: 613.95 | I92: 691.95 | J92: 90 | K92: 251.95 | M92: 10.69260401
A93: 01.04.2017 06:00 | B93: 1030 | C93: 10997 | D93: 35658.6 | E93: 9897.3 | F93: 412.3875 | G93: 14734.8 | H93: 613.95 | I93: 691.95 | J93: 91 | K93: 251.95 | M93: 10.68464164
A94: 02.04.2017 06:00 | B94: 955 | C94: 10197 | D94: 33062.1 | E94: 9177.3 | F94: 382.3875 | G94: 14695.2 | H94: 612.3 | I94: 691.95 | J94: 92 | K94: 251.95 | M94: 10.66965742
A95: 03.04.2017 06:00 | B95: 963 | C95: 10282 | D95: 33339.06 | E95: 9253.8 | F95: 385.575 | G95: 14657.4 | H95: 610.725 | I95: 691.95 | J95: 93 | K95: 251.95 | M95: 10.68034056
A96: 04.04.2017 06:00 | B96: 941 | C96: 10048 | D96: 32577.42 | E96: 9043.2 | F96: 376.8 | G96: 14616.9 | H96: 609.0375 | I96: 691.95 | J96: 94 | K96: 251.95 | M96: 10.67294521
A97: 05.04.2017 06:00 | B97: 981 | C97: 10474 | D97: 33962.22 | E97: 9426.6 | F97: 392.775 | G97: 14609.7 | H97: 608.7375 | I97: 691.95 | J97: 95 | K97: 251.95 | M97: 10.67110415
A98: 06.04.2017 06:00 | B98: 1187 | C98: 12674 | D98: 41093.94 | E98: 11406.6 | F98: 475.275 | G98: 14596.2 | H98: 608.175 | I98: 691.95 | J98: 96 | K98: 251.95 | M98: 10.66885007
A99: 07.04.2017 06:00 | B99: 1176 | C99: 12556 | D99: 40713.12 | E99: 11300.4 | F99: 470.85 | G99: 14584.5 | H99: 607.6875 | I99: 691.725 | J99: 97 | K99: 251.725 | M99: 10.67181154
A100: 08.04.2017 06:00 | B100: 1059 | C100: 11312 | D100: 36662.58 | E100: 10180.8 | F100: 424.2 | G100: 14578.2 | H100: 607.425 | I100: 691.725 | J100: 98 | K100: 251.725 | M100: 10.67356115
A101: 09.04.2017 06:00 | B101: 1034 | C101: 11042 | D101: 35797.08 | E101: 9937.8 | F101: 414.075 | G101: 14578.2 | H101: 607.425 | I101: 691.725 | J101: 99 | K101: 251.725 | M101: 10.67439786
A102: 10.04.2017 06:00 | B102: 974 | C102: 10402 | D102: 33719.88 | E102: 9361.8 | F102: 390.075 | G102: 14547.6 | H102: 606.15 | I102: 691.725 | J102: 100 | K102: 251.725 | M102: 10.67579909
A103: 11.04.2017 06:00 | B103: 1117 | C103: 11929 | D103: 38670.54 | E103: 10736.1 | F103: 447.3375 | G103: 14531.4 | H103: 605.475 | I103: 691.725 | J103: 101 | K103: 251.725 | M103: 10.67669903
A104: 12.04.2017 06:00 | B104: 1102 | C104: 11768 | D104: 38151.24 | E104: 10591.2 | F104: 441.3 | G104: 14530.5 | H104: 605.4375 | I104: 691.725 | J104: 102 | K104: 251.725 | M104: 10.67748691
A105: 13.04.2017 06:00 | B105: 1139 | C105: 12163 | D105: 39432.18 | E105: 10946.7 | F105: 456.1125 | G105: 14530.5 | H105: 605.4375 | I105: 691.725 | J105: 103 | K105: 251.725 | M105: 10.67705088
A106: 14.04.2017 06:00 | B106: 1142 | C106: 12218 | D106: 39536.04 | E106: 10996.2 | F106: 458.175 | G106: 14474.7 | H106: 603.1125 | I106: 691.725 | J106: 104 | K106: 251.725 | M106: 10.67800213
A107: 15.04.2017 06:00 | B107: 1066 | C107: 11384 | D107: 36904.92 | E107: 10245.6 | F107: 426.9 | G107: 14408.1 | H107: 600.3375 | I107: 691.725 | J107: 105 | K107: 251.725 | M107: 10.67686035
A108: 16.04.2017 06:00 | B108: 1208 | C108: 12901 | D108: 41820.96 | E108: 11610.9 | F108: 483.7875 | G108: 14376.6 | H108: 599.025 | I108: 691.725 | J108: 106 | K108: 251.725 | M108: 10.67733783
A109: 17.04.2017 06:00 | B109: 1192 | C109: 12729 | D109: 41267.04 | E109: 11456.1 | F109: 477.3375 | G109: 14269.5 | H109: 594.5625 | I109: 691.725 | J109: 107 | K109: 251.725 | M109: 10.67687075
A110: 18.04.2017 06:00 | B110: 1374 | C110: 14672 | D110: 47567.88 | E110: 13204.8 | F110: 550.2 | G110: 14249.7 | H110: 593.7375 | I110: 691.725 | J110: 108 | K110: 251.725 | M110: 10.68177526
A111: 19.04.2017 06:00 | B111: 1634 | C111: 17452 | D111: 56569.08 | E111: 15706.8 | F111: 654.45 | G111: 14246.1 | H111: 593.5875 | I111: 691.725 | J111: 109 | K111: 251.725 | M111: 10.67891683
A112: 20.04.2017 06:00 | B112: 1598 | C112: 17071 | D112: 55322.76 | E112: 15363.9 | F112: 640.1625 | G112: 14240.7 | H112: 593.3625 | I112: 691.725 | J112: 110 | K112: 251.725 | M112: 10.67967146
A113: 21.04.2017 06:00 | B113: 1284 | C113: 13713 | D113: 44452.08 | E113: 12341.7 | F113: 514.2375 | G113: 14227.2 | H113: 592.8 | I113: 691.725 | J113: 111 | K113: 251.725 | M113: 10.67949866
A114: 22.04.2017 06:00 | B114: 1245 | C114: 13334 | D114: 43101.9 | E114: 12000.6 | F114: 500.025 | G114: 14211 | H114: 592.125 | I114: 691.725 | J114: 112 | K114: 251.725 | M114: 10.67876588
A115: 23.04.2017 06:00 | B115: 1283 | C115: 13726 | D115: 44417.46 | E115: 12353.4 | F115: 514.725 | G115: 14164.2 | H115: 590.175 | I115: 691.725 | J115: 113 | K115: 251.725 | M115: 10.6786655
A116: 24.04.2017 06:00 | B116: 1185 | C116: 12682 | D116: 41024.7 | E116: 11413.8 | F116: 475.575 | G116: 14134.5 | H116: 588.9375 | I116: 691.725 | J116: 114 | K116: 251.725 | M116: 10.69877408
A117: 25.04.2017 06:00 | B117: 1076 | C117: 11531 | D117: 37251.12 | E117: 10377.9 | F117: 432.4125 | G117: 14129.1 | H117: 588.7125 | I117: 691.725 | J117: 115 | K117: 251.725 | M117: 10.67917448
A118: 26.04.2017 06:00 | B118: 1338 | C118: 14386 | D118: 46321.56 | E118: 12947.4 | F118: 539.475 | G118: 14118.3 | H118: 588.2625 | I118: 691.725 | J118: 116 | K118: 251.725 | M118: 10.67963576
A119: 27.04.2017 06:00 | B119: 1304 | C119: 14024 | D119: 45144.48 | E119: 12621.6 | F119: 525.9 | G119: 14113.8 | H119: 588.075 | I119: 691.725 | J119: 117 | K119: 251.725 | M119: 10.67869128
A120: 28.04.2017 06:00 | B120: 1395 | C120: 15015 | D120: 48294.9 | E120: 13513.5 | F120: 563.0625 | G120: 14109.3 | H120: 587.8875 | I120: 691.725 | J120: 118 | K120: 251.725 | M120: 10.6783115
A121: 29.04.2017 06:00 | B121: 1144 | C121: 12242 | D121: 39605.28 | E121: 11017.8 | F121: 459.075 | G121: 14098.5 | H121: 587.4375 | I121: 691.725 | J121: 119 | K121: 251.725 | M121: 10.68053856
A122: 30.04.2017 06:00 | B122: 1076 | C122: 11490 | D122: 37251.12 | E122: 10341 | F122: 430.875 | G122: 14087.7 | H122: 586.9875 | I122: 691.725 | J122: 120 | K122: 251.725 | M122: 10.68272841
A123: 01.05.2017 06:00 | B123: 981 | C123: 10476 | D123: 33962.22 | E123: 9428.4 | F123: 392.85 | G123: 14069.7 | H123: 586.2375 | I123: 687.5625 | J123: 121 | K123: 247.5625 | M123: 10.67990654
A124: 02.05.2017 06:00 | B124: 1024 | C124: 10935 | D124: 35450.88 | E124: 9841.5 | F124: 410.0625 | G124: 14049.9 | H124: 585.4125 | I124: 687.5625 | J124: 122 | K124: 247.5625 | M124: 10.71004016
A125: 03.05.2017 06:00 | B125: 1018 | C125: 10873 | D125: 35243.16 | E125: 9785.7 | F125: 407.7375 | G125: 14022 | H125: 584.25 | I125: 687.5625 | J125: 123 | K125: 247.5625 | M125: 10.69836321
A126: 04.05.2017 06:00 | B126: 916 | C126: 9782 | D126: 31711.92 | E126: 8803.8 | F126: 366.825 | G126: 13952.7 | H126: 581.3625 | I126: 687.5625 | J126: 124 | K126: 247.5625 | M126: 10.7021097
A127: 05.05.2017 06:00 | B127: 801 | C127: 8555 | D127: 27730.62 | E127: 7699.5 | F127: 320.8125 | G127: 13952.7 | H127: 581.3625 | I127: 687.5625 | J127: 125 | K127: 247.5625 | M127: 10.71654275
A128: 06.05.2017 06:00 | B128: 654 | C128: 6983 | D128: 22641.48 | E128: 6284.7 | F128: 261.8625 | G128: 13877.1 | H128: 578.2125 | I128: 687.5625 | J128: 126 | K128: 247.5625 | M128: 10.75186846
A129: 07.05.2017 06:00 | B129: 827 | C129: 8833 | D129: 28630.74 | E129: 7949.7 | F129: 331.2375 | G129: 13795.2 | H129: 574.8 | I129: 687.5625 | J129: 127 | K129: 247.5625 | M129: 10.75460123
A130: 08.05.2017 06:00 | B130: 933 | C130: 9966 | D130: 32300.46 | E130: 8969.4 | F130: 373.725 | G130: 13720.5 | H130: 571.6875 | I130: 687.5625 | J130: 128 | K130: 247.5625 | M130: 10.76344086
A131: 09.05.2017 06:00 | B131: 1128 | C131: 12047 | D131: 39051.36 | E131: =C131*0.9 -> 10842.3 | F131: 451.7625 | G131: 13655.7 | H131: 568.9875 | I131: 687.5625 | J131: 129 | K131: 247.5625 | M131: 10.70104895
A132: 10.05.2017 06:00 | B132: 1003 | C132: 10715 | D132: =B132*34.62 -> 34723.86 | E132: 9643.5 | F132: =E132/24 -> 401.8125 | G132: 13646.7 | H132: 568.6125 | I132: 687.5625 | J132: 130 | K132: =IF(I132>440,I132-440,0) -> 247.5625 | M132: 10.67843866
A133: 11.05.2017 06:00 | B133: 962 | C133: 10279 | D133: 33304.44 | E133: 9251.1 | F133: 385.4625 | G133: 13619.7 | H133: 567.4875 | I133: 687.5625 | J133: 131 | K133: 247.5625 | M133: 10.67889908
A134: 12.05.2017 06:00 | B134: 601 | C134: 6420 | D134: 20806.62 | E134: 5778 | F134: 240.75 | G134: 13613.4 | H134: 567.225 | I134: 687.5625 | J134: 132 | K134: 247.5625 | M134: 10.67871094
A135: 13.05.2017 06:00 | B135: 771 | C135: 8236 | D135: 26692.02 | E135: 7412.4 | F135: 308.85 | G135: 13604.4 | H135: 566.85 | I135: 687.5625 | J135: 133 | K135: 247.5625 | M135: 10.68074656
A136: 14.05.2017 06:00 | B136: 659 | C136: 7040 | D136: 22814.58 | E136: 6336 | F136: 264 | G136: 13565.7 | H136: 565.2375 | I136: 687.5625 | J136: 134 | K136: 247.5625 | M136: 10.6790393
A137: 15.05.2017 06:00 | B137: 704 | C137: 7521 | D137: 24372.48 | E137: 6768.9 | F137: 282.0375 | G137: 13513.5 | H137: 563.0625 | I137: 687.5625 | J137: 135 | K137: 247.5625 | M137: 10.6803995
A138: 16.05.2017 06:00 | B138: 624 | C138: 6665 | D138: 21602.88 | E138: 5998.5 | F138: 249.9375 | G138: 13204.8 | H138: 550.2 | I138: 687.5625 | J138: 136 | K138: 247.5625 | M138: 10.67737003
A139: 17.05.2017 06:00 | B139: 568 | C139: 6067 | D139: 19664.16 | E139: 5460.3 | F139: 227.5125 | G139: 13193.1 | H139: 549.7125 | I139: 687.5625 | J139: 137 | K139: 247.5625 | M139: 10.68077388
A140: 18.05.2017 06:00 | B140: 516 | C140: 5511 | D140: 17863.92 | E140: 4959.9 | F140: 206.6625 | G140: 13172.4 | H140: 548.85 | I140: 687.5625 | J140: 138 | K140: 247.5625 | M140: 10.68167203
A141: 19.05.2017 06:00 | B141: 443 | C141: 4732 | D141: 15336.66 | E141: 4258.8 | F141: 177.45 | G141: 12948.3 | H141: 539.5125 | I141: 687.5625 | J141: 139 | K141: 247.5625 | M141: 10.67996454
A142: 20.05.2017 06:00 | B142: 850 | C142: 9079 | D142: 29427 | E142: 8171.1 | F142: 340.4625 | G142: 12947.4 | H142: 539.475 | I142: 687.5625 | J142: 140 | K142: 247.5625 | M142: =C132/B132 -> 10.68295115
A143: 21.05.2017 06:00 | B143: 610 | C143: 6514 | D143: 21118.2 | E143: 5862.6 | F143: 244.275 | G143: 12941.1 | H143: 539.2125 | I143: 687.5625 | J143: 141 | K143: 247.5625 | M143: 10.68503119
A144: 22.05.2017 06:00 | B144: 628 | C144: 6706 | D144: 21741.36 | E144: 6035.4 | F144: 251.475 | G144: 12621.6 | H144: 525.9 | I144: 687.5625 | J144: 142 | K144: 247.5625 | M144: 10.68219634
A145: 23.05.2017 06:00 | B145: 520 | C145: 5552 | D145: 18002.4 | E145: 4996.8 | F145: 208.2 | G145: 12491.1 | H145: 520.4625 | I145: 687.5625 | J145: 143 | K145: 247.5625 | M145: 10.68223087
A146: 24.05.2017 06:00 | B146: 917 | C146: 9792 | D146: 31746.54 | E146: 8812.8 | F146: 367.2 | G146: 12469.5 | H146: 519.5625 | I146: 687.5625 | J146: 144 | K146: 247.5625 | M146: 10.68285281
A147: 25.05.2017 06:00 | B147: 916 | C147: 9777 | D147: 31711.92 | E147: 8799.3 | F147: 366.6375 | G147: 12419.1 | H147: 517.4625 | I147: 687.5625 | J147: 145 | K147: 247.5625 | M147: 10.68323864
A148: 26.05.2017 06:00 | B148: 646 | C148: 6897 | D148: 22364.52 | E148: 6207.3 | F148: 258.6375 | G148: 12353.4 | H148: 514.725 | I148: 687.5625 | J148: 146 | K148: 247.5625 | M148: 10.68108974
A149: 27.05.2017 06:00 | B149: 591 | C149: 6311 | D149: 20460.42 | E149: 5679.9 | F149: 236.6625 | G149: 12341.7 | H149: 514.2375 | I149: 687.5625 | J149: 147 | K149: 247.5625 | M149: 10.68133803
A150: 28.05.2017 06:00 | B150: 485 | C150: 5179 | D150: 16790.7 | E150: 4661.1 | F150: 194.2125 | G150: 12264.3 | H150: 511.0125 | I150: 687.5625 | J150: 148 | K150: 247.5625 | M150: 10.68023256
A151: 29.05.2017 06:00 | B151: 240 | C151: 2563 | D151: 8308.8 | E151: 2306.7 | F151: 96.1125 | G151: 12189.6 | H151: 507.9 | I151: 687.5625 | J151: 149 | K151: 247.5625 | M151: 10.68171558
A152: 30.05.2017 06:00 | B152: 12 | C152: 128 | D152: 415.44 | E152: 115.2 | F152: 4.8 | G152: 12000.6 | H152: 500.025 | I152: 687.5625 | J152: 150 | K152: 247.5625 | M152: 10.68117647
A153: 31.05.2017 06:00 | B153: 4 | C153: 43 | D153: 138.48 | E153: 38.7 | F153: 1.6125 | G153: 11823.3 | H153: 492.6375 | I153: 687.5625 | J153: 151 | K153: 247.5625 | M153: 10.67868852
A154: 01.06.2017 06:00 | B154: 4 | C154: 43 | D154: 138.48 | E154: 38.7 | F154: 1.6125 | G154: 11772.9 | H154: 490.5375 | I154: 687.5625 | J154: 152 | K154: 247.5625 | M154: 10.67834395
A155: 02.06.2017 06:00 | B155: 4 | C155: 43 | D155: 138.48 | E155: 38.7 | F155: 1.6125 | G155: 11610.9 | H155: 483.7875 | I155: 687.5625 | J155: 153 | K155: 247.5625 | M155: 10.67692308
A156: 03.06.2017 06:00 | B156: 4 | C156: 43 | D156: 138.48 | E156: 38.7 | F156: 1.6125 | G156: 11495.7 | H156: 478.9875 | I156: 687.5625 | J156: 154 | K156: 247.5625 | M156: 10.6782988
A157: 04.06.2017 06:00 | B157: 3 | C157: 32 | D157: 103.86 | E157: 28.8 | F157: 1.2 | G157: 11456.1 | H157: 477.3375 | I157: 687.5625 | J157: 155 | K157: 247.5625 | M157: 10.67358079
A158: 05.06.2017 06:00 | B158: 5 | C158: 53 | D158: 173.1 | E158: 47.7 | F158: 1.9875 | G158: 11430.9 | H158: 476.2875 | I158: 687.5625 | J158: 156 | K158: 247.5625 | M158: 10.67647059
A159: 06.06.2017 06:00 | B159: 4 | C159: 43 | D159: 138.48 | E159: 38.7 | F159: 1.6125 | G159: 11425.5 | H159: 476.0625 | I159: 687.5625 | J159: 157 | K159: 247.5625 | M159: 10.678511
A160: 07.06.2017 06:00 | B160: 5 | C160: 53 | D160: 173.1 | E160: 47.7 | F160: 1.9875 | G160: 11413.8 | H160: 475.575 | I160: 687.5625 | J160: 158 | K160: 247.5625 | M160: 10.67835052
A161: 08.06.2017 06:00 | B161: 4 | C161: 43 | D161: 138.48 | E161: 38.7 | F161: 1.6125 | G161: 11406.6 | H161: 475.275 | I161: 687.5625 | J161: 159 | K161: 247.5625 | M161: 10.67916667
A162: 09.06.2017 06:00 | B162: 5 | C162: 53 | D162: 173.1 | E162: 47.7 | F162: 1.9875 | G162: 11300.4 | H162: 470.85 | I162: 687.5625 | J162: 160 | K162: 247.5625 | M162: 10.66666667
A163: 10.06.2017 06:00 | B163: 4 | C163: 43 | D163: 138.48 | E163: 38.7 | F163: 1.6125 | G163: 11219.4 | H163: 467.475 | I163: 687.5625 | J163: 161 | K163: 247.5625 | M163: 10.75
A164: 11.06.2017 06:00 | B164: 3 | C164: 32 | D164: 103.86 | E164: 28.8 | F164: 1.2 | G164: 11017.8 | H164: 459.075 | I164: 687.5625 | J164: 162 | K164: 247.5625 | M164: 10.75
A165: 12.06.2017 06:00 | B165: 5 | C165: 53 | D165: 173.1 | E165: 47.7 | F165: 1.9875 | G165: 10996.2 | H165: 458.175 | I165: 687.5625 | J165: 163 | K165: 247.5625 | M165: 10.75
A166: 13.06.2017 06:00 | B166: 5 | C166: 53 | D166: 173.1 | E166: 47.7 | F166: 1.9875 | G166: 10946.7 | H166: 456.1125 | I166: 687.5625 | J166: 164 | K166: 247.5625 | M166: 10.75
A167: 14.06.2017 06:00 | B167: 6 | C167: 64 | D167: 207.72 | E167: 57.6 | F167: 2.4 | G167: 10842.3 | H167: 451.7625 | I167: 687.5625 | J167: 165 | K167: 247.5625 | M167: 10.66666667
A168: 15.06.2017 06:00 | B168: 5 | C168: 53 | D168: 173.1 | E168: 47.7 | F168: 1.9875 | G168: 10769.4 | H168: 448.725 | I168: 687.5625 | J168: 166 | K168: 247.5625 | M168: 10.6
A169: 16.06.2017 06:00 | B169: 5 | C169: 53 | D169: 173.1 | E169: 47.7 | F169: 1.9875 | G169: 10736.1 | H169: 447.3375 | I169: 687.5625 | J169: 167 | K169: 247.5625 | M169: 10.75
A170: 17.06.2017 06:00 | B170: 3 | C170: 32 | D170: 103.86 | E170: 28.8 | F170: 1.2 | G170: 10682.1 | H170: 445.0875 | I170: 687.5625 | J170: 168 | K170: 247.5625 | M170: 10.6
A171: 18.06.2017 06:00 | B171: 4 | C171: 43 | D171: 138.48 | E171: 38.7 | F171: 1.6125 | G171: 10591.2 | H171: 441.3 | I171: 686.775 | J171: 169 | K171: 246.775 | M171: 10.75
A172: 19.06.2017 06:00 | B172: 5 | C172: 53 | D172: 173.1 | E172: 47.7 | F172: 1.9875 | G172: 10521 | H172: 438.375 | I172: 686.775 | J172: 170 | K172: 246.775 | M172: 10.6
A173: 20.06.2017 06:00 | B173: 0 | C173: 0 | D173: 0 | E173: 0 | F173: 0 | G173: 10464.3 | H173: 436.0125 | I173: 686.775 | J173: 171 | K173: 246.775 | M173: 10.75
A174: 21.06.2017 06:00 | B174: 7 | C174: 75 | D174: 242.34 | E174: 67.5 | F174: 2.8125 | G174: 10377.9 | H174: 432.4125 | I174: 686.775 | J174: 172 | K174: 246.775 | M174: 10.66666667
A175: 22.06.2017 06:00 | B175: 4 | C175: 43 | D175: 138.48 | E175: 38.7 | F175: 1.6125 | G175: 10341 | H175: 430.875 | I175: 686.775 | J175: 173 | K175: 246.775 | M175: 10.6
A176: 23.06.2017 06:00 | B176: 4 | C176: 43 | D176: 138.48 | E176: 38.7 | F176: 1.6125 | G176: 10245.6 | H176: 426.9 | I176: 686.775 | J176: 174 | K176: 246.775 | M176: 10.6
A177: 24.06.2017 06:00 | B177: 1 | C177: 11 | D177: 34.62 | E177: 9.9 | F177: 0.4125 | G177: 10180.8 | H177: 424.2 | I177: 686.775 | J177: 175 | K177: 246.775 | M177: 10.66666667
A178: 25.06.2017 06:00 | B178: 0 | C178: 0 | D178: 0 | E178: 0 | F178: 0 | G178: 9937.8 | H178: 414.075 | I178: 686.775 | J178: 176 | K178: 246.775 | M178: 10.6
A179: 26.06.2017 06:00 | B179: 2 | C179: 21 | D179: 69.24 | E179: 18.9 | F179: 0.7875 | G179: 9897.3 | H179: 412.3875 | I179: 686.775 | J179: 177 | K179: 246.775 | M179: 10.6
A180: 27.06.2017 06:00 | B180: 2 | C180: 21 | D180: 69.24 | E180: 18.9 | F180: 0.7875 | G180: 9841.5 | H180: 410.0625 | I180: 686.775 | J180: 178 | K180: 246.775 | M180: 10.66666667
A181: 28.06.2017 06:00 | B181: 1 | C181: 11 | D181: 34.62 | E181: 9.9 | F181: 0.4125 | G181: 9785.7 | H181: 407.7375 | I181: 686.775 | J181: 179 | K181: 246.775 | M181: 10.75
A182: 29.06.2017 06:00 | B182: 2 | C182: 21 | D182: 69.24 | E182: 18.9 | F182: 0.7875 | G182: 9643.5 | H182: 401.8125 | I182: 686.775 | J182: 180 | K182: 246.775
A183: 30.06.2017 06:00 | B183: 2 | C183: 21 | D183: 69.24 | E183: 18.9 | F183: 0.7875 | G183: 9428.4 | H183: 392.85 | I183: 686.775 | J183: 181 | K183: 246.775
A184: 01.07.2017 06:00 | B184: 1 | C184: 11 | D184: 34.62 | E184: 9.9 | F184: 0.4125 | G184: 9426.6 | H184: 392.775 | I184: 686.775 | J184: 182 | K184: 246.775
A185: 02.07.2017 06:00 | B185: 0 | C185: 0 | D185: 0 | E185: 0 | F185: 0 | G185: 9361.8 | H185: 390.075 | I185: 686.775 | J185: 183 | K185: 246.775
A186: 03.07.2017 06:00 | B186: 2 | C186: 21 | D186: 69.24 | E186: 18.9 | F186: 0.7875 | G186: 9253.8 | H186: 385.575 | I186: 686.775 | J186: 184 | K186: 246.775
A187: 04.07.2017 06:00 | B187: 1 | C187: 11 | D187: 34.62 | E187: 9.9 | F187: 0.4125 | G187: 9251.1 | H187: 385.4625 | I187: 686.775 | J187: 185 | K187: 246.775
A188: 05.07.2017 06:00 | B188: 1 | C188: 11 | D188: 34.62 | E188: 9.9 | F188: 0.4125 | G188: 9177.3 | H188: 382.3875 | I188: 686.775 | J188: 186 | K188: 246.775
A189: 06.07.2017 06:00 | B189: 1 | C189: 11 | D189: 34.62 | E189: 9.9 | F189: 0.4125 | G189: 9043.2 | H189: 376.8 | I189: 686.775 | J189: 187 | K189: 246.775
A190: 07.07.2017 06:00 | B190: 1 | C190: 11 | D190: 34.62 | E190: 9.9 | F190: 0.4125 | G190: 8969.4 | H190: 373.725 | I190: 686.775 | J190: 188 | K190: 246.775
A191: 08.07.2017 06:00 | B191: 1 | C191: 11 | D191: 34.62 | E191: 9.9 | F191: 0.4125 | G191: 8812.8 | H191: 367.2 | I191: 686.775 | J191: 189 | K191: 246.775
A192: 09.07.2017 06:00 | B192: 0 | C192: 0 | D192: 0 | E192: 0 | F192: 0 | G192: 8803.8 | H192: 366.825 | I192: 686.775 | J192: 190 | K192: 246.775
A193: 10.07.2017 06:00 | B193: 2 | C193: 21 | D193: 69.24 | E193: 18.9 | F193: 0.7875 | G193: 8799.3 | H193: 366.6375 | I193: 686.775 | J193: 191 | K193: 246.775
A194: 11.07.2017 06:00 | B194: 1 | C194: 11 | D194: 34.62 | E194: 9.9 | F194: 0.4125 | G194: 8171.1 | H194: 340.4625 | I194: 686.775 | J194: 192 | K194: 246.775
A195: 12.07.2017 06:00 | B195: 2 | C195: 21 | D195: 69.24 | E195: =C195*0.9 -> 18.9 | F195: 0.7875 | G195: 7949.7 | H195: 331.2375 | I195: 682.5 | J195: 193 | K195: 242.5
A196: 13.07.2017 06:00 | B196: 1 | C196: 11 | D196: =B196*34.62 -> 34.62 | E196: 9.9 | F196: =E196/24 -> 0.4125 | G196: 7699.5 | H196: 320.8125 | I196: 682.5 | J196: 194 | K196: =IF(I196>440,I196-440,0) -> 242.5
A197: 14.07.2017 06:00 | B197: 2 | C197: 21 | D197: 69.24 | E197: 18.9 | F197: 0.7875 | G197: 7412.4 | H197: 308.85 | I197: 682.5 | J197: 195 | K197: 242.5
A198: 15.07.2017 06:00 | B198: 0 | C198: 0 | D198: 0 | E198: 0 | F198: 0 | G198: 6768.9 | H198: 282.0375 | I198: 682.5 | J198: 196 | K198: 242.5
A199: 16.07.2017 06:00 | B199: 1 | C199: 11 | D199: 34.62 | E199: 9.9 | F199: 0.4125 | G199: 6336 | H199: 264 | I199: 682.5 | J199: 197 | K199: 242.5
A200: 17.07.2017 06:00 | B200: 3 | C200: 32 | D200: 103.86 | E200: 28.8 | F200: 1.2 | G200: 6284.7 | H200: 261.8625 | I200: 682.5 | J200: 198 | K200: 242.5
... 8540 more rows

Sheet MerNaklKGJ
B2: Měrné náklady KGJ
C3: Cento | I3: Quanto
B4: Možné varianty KGJ | C4: 120 | D4: 140 | E4: 200 | F4: 260 | G4: 350 | H4: 530 | I4: 600 | M4: =355*2+140*2 -> 990
B5: Investice (Kč) | C5: =1.6*2653000 -> 4244800 | D5: =1.6*2929000 -> 4686400 | E5: =1.6*3459000 -> 5534400 | F5: =1.6*4527000 -> 7243200 | G5: =5515000*1.6 -> 8824000 | H5: =1.6*7056000 -> 11289600 | I5: =1.6*7549000 -> 12078400 | M5: =2*260+2*200 -> 920
B6: El. výkon (kW) | C6: 125 | D6: 140 | E6: 200 | F6: 260 | G6: 355 | H6: 528 | I6: 600 | M6: =4*260 -> 1040
B7: Tep. Výkon (kW) | C7: 177 | D7: 203 | E7: 253 | F7: 371 | G7: 442 | H7: 672 | I7: 681 | M7: =3*355 -> 1065 | N7: =G6/(G6+G7) -> 0.4454203262 | O7: =G7/(G6+G7) -> 0.5545796738 | Q7: =3788/(3788+2514+2765) -> 0.4177787581
B8: El. účinnost při zatížení 75% | C8: 0.344 | D8: 0.355 | E8: 0.375 | F8: 0.364 | G8: 0.392 | H8: 0.385 | I8: 0.412 | M8: =2*528 -> 1056
B9: Tep. Účinnost při zatížení 75% | C9: 0.558 | D9: 0.57 | E9: 0.512 | F9: 0.559 | G9: 0.511 | H9: 0.506 | I9: 0.49 | S9: 858 | T9: Kč/MWh
B10: Minimální el. výkon | C10: 0.5 | D10: 0.6 | E10: 0.5 | F10: 0.6 | G10: 0.6 | H10: 0.6 | I10: 0.5 | S10: 0.412
B11: El/Tep | C11: =C6/C7 -> 0.7062146893 | D11: =D6/D7 -> 0.6896551724 | E11: 0.790513834 | F11: 0.7008086253 | G11: =G6/G7 -> 0.8031674208 | H11: 0.7857142857 | I11: 0.8810572687 | N11: =39.2/90.1 -> 0.4350721421 | O11: =51.1/90.3 -> 0.5658914729 | Q11: =(2514+2765)/(3788+2514+2765) -> 0.5822212419 | S11: =S9/S10 -> 2082.524272 | AC11: =0.1*8760 -> 876 | AD11: MWh
B12: Příkon ZP (kW) | C12: 343 | D12: 384 | E12: 510 | F12: 687 | G12: 887 | H12: 1344 | I12: 1418 | AC12: =C20/10*12 -> 1769596.8 | AD12: Kč/rok
B13: Servis (Kč/kWh) | C13: 0.25 | D13: 0.25 | E13: 0.25 | F13: 0.25 | G13: 0.25 | H13: 0.25 | I13: 0.25 | O13: =50000/4820 -> 10.37344398 | AC13: =AC11*2000 -> 1752000 | AD13: Kč/rok
B14: Servis (Kč/mhod) | C14: 38 | D14: 43 | E14: 55 | F14: 70 | G14: 86 | H14: 110 | I14: 125 | L14: 0.39 | X14: =(858*3072+1600000*(1.0665^20*(0.0665)/(1.0665^20)))/2765 -> 991.7453888
B15: Max příkon plynu (m3) | C15: =C12/10.7 -> 32.05607477 | D15: 35.88785047 | E15: 47.6635514 | F15: 64.20560748 | G15: 82.89719626 | H15: 125.6074766 | I15: 132.5233645 | L15: 0.51 | X15: =999*2765-(858*3072+1600000*(1.0665^20*(0.0665)/(1.0665^20))) -> 20059 | AC15: =AC13+AC12 -> 3521596.8
L16: =K22*$L$14*H22/$L$15 -> 823079.7059 | AC16: =AC15/AC11 -> 4020.087671
B17: Cena tepla | C17: 1000 | D17: Kč/MWh | L17: =K23*$L$14*H23/$L$15 -> 400452
B18: Teplo potřeba | C18: 2765 | D18: MWh
B19: Cena ZP základ | C19: 792.28 | D19: Kč/MWh | E19: cena rez. Kap | F19: =115.1963 -> 115.1963 | G19: Kč/m3
B20: Překročení rez. Kap | C20: =698164+776500 -> 1474664 | D20: Kč/MW
C22: S FVE | D22: Bez FVE | G22: Přípěvek ZB | H22: 571 | I22: Kč/Mwhe | J22: 3000h | K22: 1885 | L22: MWht | M22: =K22*H22*E8/E9 -> 788331.2988
B23: energie MWh | C23: 2979 | D23: 3553 | G23: Přípěvek ZB | H23: 204 | I23: Kč/Mwhe | J23: 4400h | K23: 2567 | L23: Mwht
B24: Max | C24: 1019 | D24: 1100
B25: Teplo 3000hod | C25: 1885 | D25: MWht | G25: Cena elektřiny | H25: 2200 | I25: Kč/MWh
B26: Teplo 4400hod | C26: 2567 | D26: MWht | G26: Cena FVE | H26: 2174 | I26: Kč/MWh
B27: Diskont | C27: 0.0665 | G27: FVE en | H27: 574 | I27: MWh
C29: životnost | D29: investice | E29: anuita | F29: El ZB 3000 | G29: El. ZB 4400 | H29: Celkem provoz | I29: Celkem el. | J29: Teplo využité | K29: Servis | L29: Palivo | M29: Cena ZP | N29: Cena pal | O29: Cena za teplo ušetřené | P29: Mařené teplo | Q29: DS přes rez. Kap. | R29: Nspol | S29: βe | T29: Měrné Nspol na výrobu el. | U29: Elektrřina DS
C30: let | D30: Kč | F30: Kč | G30: Kč | H30: mHod | I30: MWh | J30: MWh | K30: Kč | L30: MWh | M30: Kč/MWh | N30: Kč | O30: Kč | P30: MWh | Q30: MW | T30: Kč/MWh | U30: MWh
B31: varianta 1 4x200KGJ+FVE | C31: 9 | D31: =4*E5 -> 22137600 | E31: =((1+C27)^C31*C27)/((1+C27)^C31-1) -> 0.1512091545 | F31: =$K$22*$H$22*$E$8/$E$9 -> 788331.2988 | G31: =$K$23*$H$23*$E$8/$E$9 -> 383545.8984 | H31: 22174 | I31: 3575 | J31: 2765 | K31: =I31*$C$13*1000 -> 893750 | L31: 9534 | M31: =$C$19+(24*4*E15*$F$19)/L31 -> 847.566744 | N31: =L31*M31 -> 8080701.338 | O31: =J31*$C$17 -> 2765000 | P31: 2027 | Q31: 2.365 | R31: =D31*E31+K31+N31+Q31*$C$20-F31 -> 15021108.18 | S31: =I31/(J31+P31+I31) -> 0.4272738138 | T31: =R31/I31 -> 4201.708581 | U31: =7931-I31-574+5+Q31 -> 3789.365 | V31: =(R31+U31*$H$25+$H$27*$H$26)/(U31+I31+$H$27) -> 3099.578714 | W31: =(R31-O31+U31*$H$25+$H$27*$H$26)/(U31+I31+$H$27) -> 2751.270215
B32: 4x200 bez FVE | C32: 8.5 | D32: =D31 -> 22137600 | E32: =((1+$C$27)^C32*$C$27)/((1+$C$27)^C32-1) -> 0.1577844943 | F32: =$F$31 -> 788331.2988 | G32: =$G$31 -> 383545.8984 | H32: 23679 | I32: 3996 | J32: 2765 | K32: =I32*$C$13*1000 -> 999000 | L32: 10656 | M32: =$C$19+(24*4*$E$15*$F$19)/L32 -> 841.7454483 | N32: =L32*M32 -> 8969639.498 | O32: =J32*$C$17 -> 2765000 | P32: 2677 | Q32: 12.742 | R32: =D32*E32+K32+N32+Q32*$C$20-F32 -> 31463446.91 | S32: =I32/(J32+P32+I32) -> 0.423394787 | T32: =R32/I32 -> 7873.735463 | U32: =7931-I32+5+Q32 -> 3952.742 | V32: =(R32+U32*$H$25+$H$27*$H$26)/(U32+I32+$H$27) -> 4858.454627 | W32: =(R32-O32+U32*$H$25+$H$27*$H$26)/(U32+I32+$H$27) -> 4534.028521
B33: 2x260 a 2x200 s FVE | C33: 12 | D33: =2*$E$5+2*$F$5 -> 25555200 | E33: 0.1235638609 | F33: =K22*H22*((E8+F8)/2)/((E9+F9)/2) -> 742681.1998 | G33: =K23*H23*((E8+F8)/2)/((E9+F9)/2) -> 361335.8095 | H33: 17814 | I33: 3492 | J33: 2765 | K33: 873000 | L33: 9450 | M33: =$C$19+(24*(2*E15+2*F15)*$F$19)/L33 -> 857.7373368 | N33: 8105617.833 | O33: 2765000 | P33: 2531 | Q33: 0.279 | R33: =D33*E33+K33+N33+Q33*$C$20-F33 -> 11805067.07 | S33: 0.3973600364 | T33: 3380.603399 | U33: =7931-I33-574+5+Q33 -> 3870.279 | V33: 2717.590557 | W33: 2369.190507
B34: 2x260 a 2x200 bez FVE | C34: 10.5 | D34: =2*$E$5+2*$F$5 -> 25555200 | E34: 0.1353388008 | F34: =F33 -> 742681.1998 | G34: =G33 -> 361335.8095 | H34: 19150 | I34: 4009 | J34: 2765 | K34: 1002250 | L34: 10624 | M34: =$C$19+(24*(2*E15+2*F15)*$F$19)/L34 -> 850.5040054 | N34: 9035754.553 | O34: 2765000 | P34: 3168 | Q34: 1.42 | R34: 14847956.36 | S34: 0.403238785 | T34: 3703.655863 | U34: =7931-I34+5+Q34 -> 3928.42 | V34: 2906.489911 | W34: 2581.632249
B35: 4x260 s FVE | C35: 11 | D35: =4*$F$5 -> 28972800 | E35: 0.1310416006 | F35: =K22*$H$22*$F$8/$F$9 -> 700869.3023 | G35: =K23*$H$23*$F$8/$F$9 -> 340993.1163 | H35: 17757 | I35: 3538 | J35: 2765 | K35: 884500 | L35: 9719 | M35: =$C$19+(24*4*$F$15*$F$19)/L35 -> 865.3368833 | N35: 8410209.168 | O35: 2765000 | P35: 2654 | Q35: 0 | R35: 12390481.95 | S35: 0.3949983253 | T35: 3502.11474 | U35: =7931-I35-574+5+Q35 -> 3824 | V35: 2778.623734 | W35: 2430.211435
B36: 4x260 bez FVE | C36: 10.5 | D36: =4*$F$5 -> 28972800 | E36: 0.1353388008 | F36: =$K$22*$H$22*$F$8/$F$9 -> 700869.3023 | G36: =G35 -> 340993.1163 | H36: 19036 | I36: 3969 | J36: 2765 | K36: 992250 | L36: 10904 | M36: =$C$19+(24*4*$F$15*$F$19)/L36 -> 857.3973742 | N36: 9349060.968 | O36: 2765000 | P36: 3317 | Q36: 0.015 | R36: 13583705.63 | S36: 0.394886081 | T36: 3422.450399 | U36: =7931-I36+5+Q36 -> 3967.015 | V36: 2768.386969 | W36: 2443.475674
B37: 3x350 s FVE | C37: 10 | D37: =3*$G$5 -> 26472000 | E37: 0.1400827666 | F37: =$K$22*$G$8/G9*H22 -> 825681.6438 | G37: =K23*$G$8/G9*H23 -> 401717.9178 | H37: 14782 | I37: 3691 | J37: 2765 | K37: 922750 | L37: 9415 | M37: =$C$19+(24*3*$G$15*$F$19)/L37 -> 865.3081913 | N37: 8146876.621 | O37: 2765000 | P37: 2032 | Q37: 0 | R37: 11952215.97 | S37: 0.4348491989 | T37: 3238.205357 | U37: =7931-I37-574+5+Q37 -> 3671 | V37: 2680.984372 | W37: 2332.572073
B38: 3x350 bez FVE | C38: 9.5 | D38: =3*$G$5 -> 26472000 | E38: 0.1453441155 | F38: =F37 -> 825681.6438 | G38: =K23*G11*H23 -> 420593.0769 | H38: 15756 | I38: 4088 | J38: 2765 | K38: 1022000 | L38: 10428 | M38: =$C$19+(24*3*$G$15*$F$19)/L38 -> 858.2140641 | N38: 8949456.261 | O38: 2765000 | P38: 2550 | Q38: 0.009 | R38: 13006596.02 | S38: 0.4347548655 | T38: 3181.652646 | U38: =7931-I38+5+Q38 -> 3848.009 | V38: 2669.808201 | W38: 2344.896676
B39: 2x530 s FVE | C39: 10 | D39: =$H$5*2 -> 22579200 | E39: 0.1400827666 | F39: =K22*H22*H8/H9 -> 818950.5435 | G39: =K23*H23*H8/H9 -> 398443.0435 | H39: 9748 | I39: 3802 | J39: 2765 | K39: 950500 | L39: 9875 | M39: =$C$19+(24*2*$H$15*$F$19)/L39 -> 862.61284 | N39: 8518301.795 | O39: 2765000 | P39: 2218 | Q39: 0 | R39: 11812808.05 | S39: 0.4327831531 | T39: 3106.998436 | U39: =7931-I39-574+5+Q39 -> 3560 | V39: 2632.64668 | W39: 2284.234382
B40: 2x530 bez FVE | C40: 9.5 | D40: =$H$5*2 -> 22579200 | E40: 0.1453441155 | F40: =F39 -> 818950.5435 | G40: =G39 -> 398443.0435 | H40: 10323 | I40: 4135 | J40: 2765 | K40: 1033750 | L40: 10740 | M40: =$C$19+(24*2*$H$15*$F$19)/L40 -> 856.9482304 | N40: 9203623.995 | O40: 2765000 | P40: 2656 | Q40: 0.011 | R40: 12716398.61 | S40: 0.432712432 | T40: 3075.308007 | U40: =7931-I40+5+Q40 -> 3801.011 | V40: 2623.556986 | W40: 2298.645537
B41: 2x350 a 2x140 s FVE | C41: 10 | D41: =2*$D$5+2*$G$5 -> 27020800 | E41: 0.1400827666 | F41: =$K$22*(5*$G$11+$D$11)*$H$22/6 -> 844114.3382 | G41: =K26*H26*H14 -> 0 | H41: 14788 | I41: 3691 | J41: 2765 | K41: 922750 | L41: 9882 | M41: =$C$19+(24*(2*$G$15+2*$D$15)*$F$19)/L41 -> 858.7455635 | N41: 8486123.658 | O41: 2765000 | P41: 2060 | Q41: 0.025 | R41: 12386774.34 | S41: 0.4334194457 | T41: 3355.939945 | U41: =7931-I41-574+5+Q41 -> 3671.025 | V41: 2735.740542 | W41: 2387.329342 | Z41: =D35 -> 28972800 | AA41: =D37 -> 26472000 | AB41: =D39 -> 22579200 | AC41: =D41 -> 27020800
B42: 2x350 a 2x140 bez FVE | C42: 10 | D42: =2*$D$5+2*$G$5 -> 27020800 | E42: =((1+$C$27)^C42*$C$27)/((1+$C$27)^C42-1) -> 0.1400827666 | F42: =$K$22*(5*$G$11+$D$11)*$H$22/6 -> 844114.3382 | H42: 15851 | I42: 4088 | J42: 2765 | K42: 1022000 | L42: 10944 | M42: =$C$19+(24*(2*$G$15+2*$D$15)*$F$19)/L42 -> 852.2957802 | N42: 9327525.018 | O42: 2765000 | P42: 2601 | Q42: 0.292 | R42: =D42*E42+K42+N42+Q42*$C$20-F42 -> 13721160.99 | S42: 0.4324095621 | T42: 3356.448382 | U42: =7931-I42+5+Q42 -> 3848.292 | V42: 2753.757378 | W42: 2428.856658 | Z42: =E35 -> 0.1310416006 | AA42: =E37 -> 0.1400827666 | AB42: =E39 -> 0.1400827666 | AC42: =E41 -> 0.1400827666
B43: 2x350 a 2x120 s FVE | C43: 10 | D43: =2*$G$5+2*$C$5 -> 26137600 | E43: 0.1400827666 | F43: =$K$22*(5*$G$11+$C$11)*$H$22/6 -> 847084.9362 | H43: 14793 | I43: 3691 | J43: 2765 | K43: 922750 | L43: 10029 | M43: =$C$19+(24*(2*$G$15+2*$C$15)*$F$19)/L43 -> 855.6587209 | N43: 8581401.312 | O43: 2765000 | P43: 2061 | Q43: 0.097 | R43: 12461536.1 | S43: 0.433368557 | T43: 3376.195097 | U43: =7931-I43-574+5+Q43 -> 3671.097 | V43: 2745.156152 | W43: 2396.748112 | Z43: Var. 1 | AA43: Var. 2 | AB43: Var. 3 | AC43: Var. 4
B44: 2x350 a 2x120 bez FVE | C44: 10 | D44: =2*$G$5+2*$C$5 -> 26137600 | E44: 0.1400827666 | F44: =$K$22*(5*$G$11+$C$11)*$H$22/6 -> 847084.9362 | H44: 15868 | I44: 4087 | J44: 2765 | K44: 1021750 | L44: 11107 | M44: =$C$19+(24*(2*$G$15+2*$C$15)*$F$19)/L44 -> 849.5074414 | N44: 9435479.152 | O44: 2765000 | P44: 2602 | Q44: 0.663 | R44: 14249273.77 | S44: 0.4323037868 | T44: 3486.487342 | U44: =7931-I44+5+Q44 -> 3849.663 | V44: 2816.04481 | W44: 2491.158253 | Z44: 4x260 kWe | AA44: 3x350kWe | AB44: 2x530kWe | AC44: 2x350 a 2x140 kWe
X45: Předpokládaná životnost | Y45: let | Z45: 11 | AA45: 10 | AB45: 10 | AC45: 10
B46: =800+500 -> 1300 | D46: 1295.458937 | E46: =IF(D46-$B$46>0,D46-$B$46,0) -> 0 | F46: =$C$20*E46/1000 -> 0 | X46: Roční provoz všech KGJ | Y46: hod | Z46: =H35 -> 17757 | AA46: 23263 | AB46: =H39 -> 9748 | AC46: =H41 -> 14788
D47: 1386.666667 | E47: =IF(D47-$B$46>0,D47-$B$46,0) -> 86.66666667 | F47: =$C$20*E47/1000 -> 127804.2133 | X47: Generováno el. energie | Y47: MWh | Z47: =I35 -> 3538 | AA47: 3691 | AB47: =I39 -> 3802 | AC47: =I41 -> 3691
D48: 1348.019324 | E48: 48.01932367 | F48: =$C$20*E48/1000 -> 70812.36792 | X48: Generováno tep. energie | Y48: MWh | Z48: =Z49+Z50 -> 5419 | AA48: =AA49+AA50 -> 4797 | AB48: =AB49+AB50 -> 4983 | AC48: =AC49+AC50 -> 4825
D49: 1459.323671 | E49: 159.3236715 | F49: 234948.8827 | X49: Využitá tep. energie | Y49: MWh | Z49: 2765 | AA49: 2765 | AB49: 2765 | AC49: 2765
D50: 1600 | E50: 300 | F50: 442399.2 | X50: Mařená tep. energie | Y50: MWh | Z50: =P35 -> 2654 | AA50: 2032 | AB50: =P39 -> 2218 | AC50: =P41 -> 2060
D51: 1487.149758 | E51: 187.1497585 | F51: 275983.0114 | X51: Roční servisní náklady | Y51: Kč | Z51: =0.25*Z47*1000 -> 884500 | AA51: =0.25*AA47*1000 -> 922750 | AB51: =0.25*AB47*1000 -> 950500 | AC51: =0.25*AC47*1000 -> 922750
D52: 1389.758454 | E52: 89.75845411 | F52: 132363.561 | X52: Spotřeba ZP | Y52: MWh | Z52: =L35 -> 9719 | AA52: =L37 -> 9415 | AB52: =L39 -> 9875 | AC52: =L41 -> 9882
D53: 1539.710145 | E53: 239.7101449 | F53: 353491.9212 | X53: Cena plynu - komodita | Y53: Kč/MWh | Z53: 792.28 | AA53: 792.28 | AB53: 792.28 | AC53: 792.28
X54: Cena plynu - za rez. Kapacitu | Y54: Kč/MWh | Z54: =(24*4*$F$15*$F$19)/L35 -> 73.05688326 | AA54: =(24*3*$G$15*$F$19)/L37 -> 73.02819128 | AB54: =(24*2*$H$15*$F$19)/L39 -> 70.33283999 | AC54: =(24*(2*$G$15+2*$D$15)*$F$19)/L41 -> 66.46556347
D55: 1536.618357 | E55: 236.6183575 | F55: 348932.5735 | X55: Platba za ZP | Y55: Kč | Z55: =Z52*(Z53+Z54) -> 8410209.168 | AA55: =AA52*(AA53+AA54) -> 8146876.621 | AB55: =AB52*(AB53+AB54) -> 8518301.795 | AC55: 8486123.658
D56: 1437.681159 | E56: 137.6811594 | F56: 203033.4493 | X56: příkon z DS | Y56: MWh | Z56: =U35 -> 3824 | AA56: 3671 | AB56: =U39 -> 3560 | AC56: =U41 -> 3671.025
D57: 1360.386473 | E57: 60.38647343 | F57: 89049.75845 | X57: Pokuta za příkon přes RK a RP | Y57: Kč | Z57: 22119.96 | AA57: 12903.31 | AB57: 16221.304 | AC57: 120081.8183
X58: Účinnost KGJ (el.+ využité teplo) | Y58: - | Z58: =(Z49+Z47)/Z52 -> 0.6485235106 | AA58: =(AA49+AA47)/AA52 -> 0.6857142857 | AB58: 0.6650126582 | AC58: 0.6533090468
C59: 9 | D59: 8.5 | E59: 12 | F59: 11 | G59: 12 | H59: 11 | I59: 10.5 | J59: 10 | K59: 10 | L59: 9.5 | N59: 13.5 | X59: Měrné náklady na el. (bez DS) | Y59: Kč/MWh | Z59: =(Z41*Z42+Z51+Z55+Z57)/(Z47) -> 3706.464447 | AA59: =(AA41*AA42+AA51+AA55+AA57)/(AA47) -> 3465.402581 | AB59: 3326.664887 | AC59: 3607.180681
C60: =4*#REF! ->  | D60: =C60 ->  | E60: =2*$E$5+2*$F$5 -> 25555200 | F60: =2*$E$5+2*$F$5 -> 25555200 | G60: =4*$F$5 -> 28972800 | H60: =4*$F$5 -> 28972800 | I60: =3*$G$5 -> 26472000 | J60: =3*$G$5 -> 26472000 | K60: =$H$5*2 -> 22579200 | L60: =$H$5*2 -> 22579200 | N60: =2*#REF!+2*#REF! -> 
C61: =((1+#REF!)^C59*#REF!)/((1+#REF!)^C59-1) ->  | D61: =((1+$C$27)^D59*$C$27)/((1+$C$27)^D59-1) -> 0.1577844943 | E61: 0.1235638609 | F61: 0.1310416006 | G61: 0.1235638609 | H61: 0.1310416006 | I61: 0.1353388008 | J61: 0.1400827666 | K61: 0.1400827666 | L61: 0.1453441155 | N61: =((1+$C$27)^N59*$C$27)/((1+$C$27)^N59-1) -> 0.1145176345
C62: =$K$22*$H$22*$E$11 -> 850857.7075 | D62: =$C$62 -> 850857.7075 | E62: =#REF!*#REF!*(#REF!+#REF!)/2 ->  | F62: =E62 ->  | G62: =#REF!*#REF!*#REF! ->  | H62: =#REF!*#REF!*#REF! ->  | I62: =$K$22*$H$22*#REF! ->  | J62: =$K$22*$H$22*#REF! ->  | K62: =#REF!*#REF!*#REF! ->  | L62: =K62 ->  | N62: =#REF!*(#REF!+#REF!)*#REF!/2 -> 
C63: =$K$23*$H$23*#REF! ->  | D63: =$C$63 ->  | E63: =#REF!*#REF!*(#REF!+#REF!)/2 ->  | F63: =E63 ->  | G63: =#REF!*#REF!*#REF! ->  | H63: =G63 ->  | I63: =#REF!*#REF!*#REF! ->  | J63: =#REF!*#REF!*#REF! ->  | K63: =#REF!*#REF!*#REF! ->  | L63: =K63 ->  | N63: =#REF!*#REF!*#REF! -> 
C64: 21941 | D64: 23263 | E64: 16755 | F64: 17996 | G64: 16740 | H64: 17881 | I64: 14677 | J64: 15458 | K64: 9753 | L64: 10330 | N64: 14787
C65: 3799 | D65: 4278 | E65: 3545 | F65: 4017 | G65: 3527 | H65: 4014 | I65: 3788 | J65: 4251 | K65: 3780 | L65: 4146 | N65: 3757 | Z65: 2x350 a 2x140 kWe | AB65: 2x350 a 2x120 kWe
C66: 2765 | D66: 2765 | E66: 2765 | F66: 2765 | G66: 2765 | H66: 2765 | I66: 2765 | J66: 2765 | K66: 2765 | L66: 2765 | N66: 2765 | Z66: s FVE | AA66: bez FVE | AB66: s FVE | AC66: bez FVE
C67: =$C$64*#REF! ->  | D67: =D64*#REF! ->  | E67: =16308*$F$14+802*$E$14 -> 1185670 | F67: =16572*$F$14+1594*$E$14 -> 1247710 | G67: =G64*$F$14 -> 1171800 | H67: =H64*$F$14 -> 1251670 | I67: =I64*$G$14 -> 1262222 | J67: =J64*$G$14 -> 1329388 | K67: =K64*#REF! ->  | L67: =L64*#REF! ->  | N67: =N64*#REF! ->  | X67: Měrné náklady na el. (+DS+FVE) | Y67: Kč/MWh | Z67: =V41 -> 2735.740542 | AA67: =V42 -> 2753.757378 | AB67: =V43 -> 2745.156152 | AC67: =V44 -> 2816.04481
C68: =C65/#REF! ->  | D68: =D65/#REF! ->  | E68: =E65/#REF! ->  | F68: =F65/#REF! ->  | G68: =G65/#REF! ->  | H68: =H65/#REF! ->  | I68: =I65/#REF! ->  | J68: =J65/#REF! ->  | K68: =K65/#REF! ->  | L68: =L65/#REF! ->  | N68: =N65/#REF! ->  | X68: Měrné náklady na el. (bez DS) | Y68: Kč/MWh | Z68: =T41 -> 3355.939945 | AA68: =T42 -> 3356.448382 | AB68: =T43 -> 3376.195097 | AC68: =T44 -> 3486.487342
C69: =C68*$C$19 ->  | N69: =N68*$C$19 -> 
C70: =C66*$C$17 -> 2765000 | D70: 2765000 | E70: 2765000 | F70: 2765000 | G70: 2765000 | H70: 2765000 | I70: 2765000 | J70: 2765000 | K70: 2765000 | L70: 2765000 | N70: =N66*$C$17 -> 2765000
C71: 2027 | D71: 2633 | E71: 2244 | F71: 2885 | G71: 2254 | H71: 2948 | I71: 1938 | J71: 2514 | K71: 2033 | L71: 2498 | N71: 1929 | Z71: 5804.738138 | AA71: 3131.671862
C72: 2.365 | D72: 12.742 | E72: 0.279 | F72: 1.42 | G72: 0 | H72: 0.015 | I72: 0 | J72: 0.009 | K72: 0 | L72: 0.011 | N72: 0.025 | Z72: 5679.578838 | AA72: 3189.695783
C73: =(C60*C61+C67+C69-C70-C62+C72*$C$20)/C65 ->  | N73: =(N60*N61+N67+N69-N70-N62+N72*$C$20)/N65 ->  | Z73: 5799.73942 | AA73: 3129.577143
C74: 3561 | D74: 3646 | E74: 3817 | F74: 3817 | G74: 3835 | H74: 3922 | I74: 3575 | J74: 3685 | K74: 3582 | L74: 3790 | N74: 3606 | Z74: 5744.777164 | AA74: 3260.589038

Sheet NPV&LCOE
E3: 2 | J3: Výsledky | V3: 3x350kWe | X3: 2x530kWe
J4: Generální oprava KGJ | L4: Nová výstavba KGJ | N4: Navýšení RP po 10 letech | V4: Var 1 | W4: Var 2 | X4: Var 3 | Y4: Var 4
B5: Cena KGJ | C5: =DosadHodnotu($E$3,U5) -> 26472000 | J5: NPV | K5: LCOE | L5: NPV | M5: LCOE | N5: NPV | O5: LCOE | U5: Cena KGJ | V5: 28972800 | W5: 26472000 | X5: 22579200 | Y5: 27020800
B6: Instalovaný výkon el. | C6: 1065 | D6: kW | J6: (tis. Kč) | K6: (Kč/MWh) | L6: (tis. Kč) | M6: (Kč/MWh) | N6: (tis. Kč) | O6: (Kč/MWh) | U6: Instalovaný výkon el. | V6: 1040 | W6: 1065 | X6: =2*528 -> 1056 | Y6: 990
B7: Instalovaný výkon tep. | C7: 1326 | D7: kW | J7: =H57 -> -195895.3906 | K7: =H58 -> 2268.460477 | L7: =H93 -> -196832.4591 | M7: =H94 -> 2279.311691 | N7: =H128 -> -194792.9907 | O7: =H129 -> 2255.694732 | U7: Instalovaný výkon tep. | V7: =4*371 -> 1484 | W7: 1326 | X7: =2*672 -> 1344 | Y7: 1290
B8: Genrováno ročně el. | C8: 3691 | U8: Genrováno ročně el. | V8: 3538 | W8: 3691 | X8: =MerNaklKGJ!I39 -> 3802 | Y8: 3691
B9: Genrováno ročně tepl | C9: 4797 | K9: =SUM(I55:AB55) -> 86356.09594 | U9: Genrováno ročně tepl | V9: =MerNaklKGJ!P35+2765 -> 5419 | W9: 4797 | X9: =MerNaklKGJ!P39+2765 -> 4983 | Y9: 4825
B10: Spotřebované teplo | C10: 2765 | D10: MWh | U10: Spotřebované teplo | V10: 2765 | W10: 2765 | X10: 2765 | Y10: 2765
B11: EL. 3000hod ZB | C11: 1446.027397 | D11: MWh | U11: Elektřina ZB | V11: =MerNaklKGJ!F8/MerNaklKGJ!F9*MerNaklKGJ!K22 -> 1227.44186 | W11: 1446.027397 | X11: =MerNaklKGJ!H8/MerNaklKGJ!H9*MerNaklKGJ!K22 -> 1434.23913 | Y11: 1400.688036
B12: Servis ročně | C12: 922750 | D12: Kč | U12: Servis ročně | V12: =MerNaklKGJ!K35 -> 884500 | W12: 922750 | X12: =MerNaklKGJ!K39 -> 950500 | Y12: 922750
B13: Spotřebováno plynu | C13: 9415 | D13: MWh | E13: =(C8+C10)/C13 -> 0.6857142857 | U13: Spotřebováno plynu | V13: =MerNaklKGJ!L35 -> 9719 | W13: 9415 | X13: =MerNaklKGJ!L39 -> 9875 | Y13: 9882
B14: Elektřina odebraná z DS | C14: 3671 | D14: MWh | U14: Elektřina odebraná z DS | V14: =MerNaklKGJ!U35 -> 3824 | W14: 3671 | X14: =MerNaklKGJ!U39 -> 3560 | Y14: 3671.025
B15: Cena elektřina | C15: 1997 | D15: Kč/MWh | U15: Cena elektřina | V15: 1979 | W15: 1997 | X15: 2009 | Y15: 1997
B16: Cena teplo | C16: 1000 | D16: Kč/MWh | E16: teplo konstantní nárůst o 2% | U16: Cena teplo | V16: 1000 | W16: 1000 | X16: 1000 | Y16: 1000
B17: Cena ZP | C17: 865.3081913 | D17: Kč/MWh | E17: cena plynu se bude zvyšovat stejně jako cena elektřiny | U17: Cena ZP | V17: =MerNaklKGJ!M35 -> 865.3368833 | W17: 865.3081913 | X17: =MerNaklKGJ!M39 -> 862.61284 | Y17: 858.7455635
B18: Životnost | C18: 10 | D18: let | U18: Životnost | V18: 10 | W18: 10 | X18: 10 | Y18: 10
B19: Další provozní náklad | C19: 100000 | D19: Kč | U19: Další provozní náklad | V19: 100000 | W19: 100000 | X19: 100000 | Y19: 100000
B20: Platba za překročení RK a RP | C20: 12903.31 | D20: Kč | U20: Cena za překročení RK a RP | V20: =MerNaklKGJ!Z57 -> 22119.96 | W20: =MerNaklKGJ!AA57 -> 12903.31 | X20: =MerNaklKGJ!AB57 -> 16221.304 | Y20: =MerNaklKGJ!AC57 -> 120081.8183
B21: FVE | C21: 1 | U21: FVE | V21: 1 | W21: 1 | X21: 1 | Y21: 1
B22: ZB KGJ 3000h | C22: 0 | D22: Kč/MWh
B24: diskont | C24: 0.0665
B25: Dotace | C25: 0 | D25: z investice
B26: inflace | C26: 0.02 | G26: Nárůst cen en. | H26: 1 | I26: =$H$26*(1+2%+$C$30)^I28 -> 1.04 | J26: =$H$26*(1+2%+$C$30)^J28 -> 1.0816 | K26: 1.124864 | L26: 1.16985856 | M26: 1.216652902 | N26: =M26*(1+$C$30) -> 1.24098596 | O26: =N26*(1+$C$30) -> 1.26580568 | P26: 1.291121793 | Q26: 1.316944229 | R26: 1.343283114 | S26: 1.370148776 | T26: 1.397551751 | U26: 1.425502787 | V26: 1.454012842 | W26: 1.483093099 | X26: 1.512754961 | Y26: 1.54301006 | Z26: 1.573870262 | AA26: 1.605347667 | AB26: 1.63745462
B27: Daň | C27: 0.19
H28: 0 | I28: 1 | J28: 2 | K28: 3 | L28: 4 | M28: 5 | N28: 6 | O28: 7 | P28: 8 | Q28: 9 | R28: 10 | S28: 11 | T28: 12 | U28: 13 | V28: 14 | W28: 15 | X28: 16 | Y28: 17 | Z28: 18 | AA28: 19 | AB28: 20
B29: Rovnoměrné odpisy | G29: Cena elktřiny | H29: =$C$15*H26 -> 1997 | I29: 2076.88 | J29: 2159.9552 | K29: 2246.353408 | L29: 2336.207544 | M29: 2429.655846 | N29: 2478.248963 | O29: 2527.813942 | P29: 2578.370221 | Q29: 2629.937626 | R29: 2682.536378 | S29: =$C$15*S26 -> 2736.187106 | T29: 2790.910848 | U29: 2846.729065 | V29: 2903.663646 | W29: 2961.736919 | X29: 3020.971657 | Y29: 3081.39109 | Z29: 3143.018912 | AA29: 3205.87929 | AB29: 3269.996876
B30: Růst energií | C30: 0.02 | G30: Cena tepla | H30: =$C$16*(1+$C$26)^H28 -> 1000 | I30: =H30*(1+$C$30) -> 1020 | J30: =I30*(1+$C$30) -> 1040.4 | K30: 1061.208 | L30: 1082.43216 | M30: 1104.080803 | N30: 1126.162419 | O30: 1148.685668 | P30: 1171.659381 | Q30: 1195.092569 | R30: 1218.99442 | S30: 1243.374308 | T30: 1268.241795 | U30: 1293.60663 | V30: 1319.478763 | W30: 1345.868338 | X30: 1372.785705 | Y30: 1400.241419 | Z30: 1428.246248 | AA30: 1456.811173 | AB30: 1485.947396
B31: Náklady na navýšení RP | C31: 2000000 | D31: Kč | G31: Cena plynu | H31: =$C$17*H26 -> 865.3081913 | I31: 899.9205189 | J31: 935.9173397 | K31: 973.3540333 | L31: 1012.288195 | M31: 1052.779722 | N31: 1073.835317 | O31: 1095.312023 | P31: 1117.218264 | Q31: 1139.562629 | R31: 1162.353881 | S31: =$C$17*S26 -> 1185.600959 | T31: 1209.312978 | U31: 1233.499238 | V31: 1258.169223 | W31: 1283.332607 | X31: 1308.999259 | Y31: 1335.179244 | Z31: 1361.882829 | AA31: 1389.120486 | AB31: 1416.902896
I32: KGJ | S32: KGJ2
G33: Servisní a provozní náklady | I33: =($C$12+$C$19)*(1+$C$26)^I28 -> 1043205 | J33: 1064069.1 | K33: 1085350.482 | L33: 1107057.492 | M33: 1129198.641 | N33: 1151782.614 | O33: 1174818.267 | P33: 1198314.632 | Q33: 1222280.925 | R33: 1246726.543 | S33: =($C$12+$C$19)*(1+$C$26)^S28 -> 1271661.074 | T33: 1297094.295 | U33: 1323036.181 | V33: 1349496.905 | W33: 1376486.843 | X33: 1404016.58 | Y33: 1432096.911 | Z33: 1460738.85 | AA33: 1489953.627 | AB33: 1519752.699
G34: Generováno el. KGJ | I34: =$C$8 -> 3691 | J34: 3691 | K34: 3691 | L34: 3691 | M34: 3691 | N34: 3691 | O34: 3691 | P34: 3691 | Q34: 3691 | R34: 3691 | S34: =$C$8 -> 3691 | T34: 3691 | U34: 3691 | V34: 3691 | W34: 3691 | X34: 3691 | Y34: 3691 | Z34: 3691 | AA34: 3691 | AB34: 3691
G35: Cena ušetřená za teplo | I35: =$C$10*I30 -> 2820300 | J35: 2876706 | K35: 2934240.12 | L35: 2992924.922 | M35: 3052783.421 | N35: 3113839.089 | O35: 3176115.871 | P35: 3239638.188 | Q35: 3304430.952 | R35: 3370519.571 | S35: =$C$10*S30 -> 3437929.963 | T35: 3506688.562 | U35: 3576822.333 | V35: 3648358.78 | W35: 3721325.955 | X35: 3795752.475 | Y35: 3871667.524 | Z35: 3949100.875 | AA35: 4028082.892 | AB35: 4108644.55
G36: Příjem ZB | I36: =$C$11*$C$22 -> 0 | J36: =$C$11*$C$22 -> 0 | K36: 0 | L36: 0 | M36: 0 | N36: 0 | O36: 0 | P36: 0 | Q36: 0 | R36: 0 | S36: 0 | T36: 0 | U36: 0 | V36: 0 | W36: 0 | X36: 0 | Y36: 0 | Z36: 0 | AA36: 0 | AB36: 0
G37: Cena za překročení RK a RP | I37: =$C$20 -> 12903.31 | J37: =$C$20 -> 12903.31 | K37: 12903.31 | L37: 12903.31 | M37: 12903.31 | N37: 12903.31 | O37: 12903.31 | P37: 12903.31 | Q37: 12903.31 | R37: 12903.31 | S37: 12903.31 | T37: 12903.31 | U37: 12903.31 | V37: 12903.31 | W37: 12903.31 | X37: 12903.31 | Y37: 12903.31 | Z37: 12903.31 | AA37: 12903.31 | AB37: 12903.31
G38: Platba za plyn | I38: =$C$13*I31 -> 8472751.686 | J38: 8811661.753 | K38: 9164128.223 | L38: 9530693.352 | M38: 9911921.086 | N38: 10110159.51 | O38: 10312362.7 | P38: 10518609.95 | Q38: 10728982.15 | R38: 10943561.79 | S38: =$C$13*S31 -> 11162433.03 | T38: 11385681.69 | U38: 11613395.32 | V38: 11845663.23 | W38: 12082576.5 | X38: 12324228.03 | Y38: 12570712.59 | Z38: 12822126.84 | AA38: 13078569.37 | AB38: 13340140.76
G39: Investice | H39: =$C$5-$C$5*$C$25 -> 26472000 | R39: =0.6*$C$5*(1+C26)^R28 -> 19361532.17
G40: Odpisy | I40: =$H$39/(2*$C$18-1) -> 1393263.158 | J40: =2*$H$39/(2*$C$18-1) -> 2786526.316 | K40: 2786526.316 | L40: 2786526.316 | M40: 2786526.316 | N40: 2786526.316 | O40: 2786526.316 | P40: 2786526.316 | Q40: 2786526.316 | R40: =2*$H$39/(2*$C$18-1) -> 2786526.316 | S40: 0 | T40: 0 | U40: 0 | V40: 0 | W40: 0 | X40: 0 | Y40: 0 | Z40: 0 | AA40: 0 | AB40: 0
G41: Daň. štít | I41: =(I40+I38+I33-I36+I39)*0.19 -> 2072751.77 | J41: =(J40+J38+J33-J36+J39)*0.19 -> 2405828.862 | K41: 2476840.954 | L41: 2550612.66 | M41: 2627252.748 | N41: 2669209.003 | O41: 2712004.383 | P41: 2755655.671 | Q41: 2800179.984 | R41: 6524285.897 | S41: 2362477.88 | T41: 2409727.437 | U41: 2457921.986 | V41: 2507080.426 | W41: 2557222.034 | X41: 2608366.475 | Y41: 2660533.805 | Z41: 2713744.481 | AA41: 2768019.37 | AB41: 2823379.758
I42: Odběr z DS
G43: Elektrická energie | I43: =7931-I49-I34 -> 3665.8 | J43: =7931-J49-J34 -> 3668.671 | K43: 3671.527645 | L43: 3674.370007 | M43: 3677.198157 | N43: 3680.012166 | O43: 3682.812105 | P43: 3685.598045 | Q43: 3688.370054 | R43: 3691.128204 | S43: 3693.872563 | T43: 3696.6032 | U43: 3699.320184 | V43: 3702.023583 | W43: 3704.713465 | X43: 3707.389898 | Y43: 3710.052949 | Z43: 3712.702684 | AA43: 3715.33917 | AB43: 3717.962475
G44: Cena za El. energii z DS | I44: =I43*I29 -> 7613426.704 | J44: =J43*J29 -> 7924165.004 | K44: 8247548.638 | L44: 8584090.93 | M44: 8934325.999 | N44: 9119986.334 | O44: 9309463.786 | P44: 9502836.245 | Q44: 9700183.183 | R44: 9901585.684 | S44: 10107126.48 | T44: 10316889.97 | U44: 10530962.29 | V44: 10749431.3 | W44: 10972386.64 | X44: 11199919.8 | Y44: 11432124.1 | Z44: 11669094.75 | AA44: 11910928.9 | AB44: 12157725.68
G45: Daň. Štít | I45: =I44*0.19 -> 1446551.074 | J45: =J44*0.19 -> 1505591.351 | K45: 1567034.241 | L45: 1630977.277 | M45: 1697521.94 | N45: 1732797.403 | O45: 1768798.119 | P45: 1805538.887 | Q45: 1843034.805 | R45: 1881301.28 | S45: 1920354.031 | T45: 1960209.095 | U45: 2000882.835 | V45: 2042391.946 | W45: 2084753.462 | X45: 2127984.763 | Y45: 2172103.579 | Z45: 2217128.003 | AA45: 2263076.492 | AB45: 2309967.879
I46: FVE
G47: Investice | H47: =IF($C$21=1,$C$62+$C$64+$C$65-SUM($C$62,$C$64,$C$65)*$C$58,0) -> 13479600 | S47: =IF($C$21=1,$C$64*(1+$C$56)^S28,0) -> 847483.9286
B48: Ekonomické zhodnocení FVE | G48: Provozní náklady | I48: =IF($C$21=1,$C$60,0) -> 50000 | J48: =IF($C$21=1,$C$60,0) -> 50000 | K48: 50000 | L48: 50000 | M48: 50000 | N48: 50000 | O48: 50000 | P48: 50000 | Q48: 50000 | R48: 50000 | S48: 50000 | T48: 50000 | U48: 50000 | V48: 50000 | W48: 50000 | X48: 50000 | Y48: 50000 | Z48: 50000 | AA48: 50000 | AB48: 50000
B49: Cena FV panelu | C49: 3900 | D49: Kč | G49: Generováno el. energie | I49: =IF($C$21=1,$C$53*(1-$C$55)^H28/1000,0) -> 574.2 | J49: =IF($C$21=1,$C$53*(1-$C$55)^I28/1000,0) -> 571.329 | K49: 568.472355 | L49: 565.6299932 | M49: 562.8018433 | N49: 559.987834 | O49: 557.1878949 | P49: 554.4019554 | Q49: 551.6299456 | R49: 548.8717959 | S49: 546.1274369 | T49: 543.3967997 | U49: 540.6798157 | V49: 537.9764167 | W49: 535.2865346 | X49: 532.6101019 | Y49: 529.9470514 | Z49: 527.2973161 | AA49: 524.6608295 | AB49: 522.0375254
B50: počet PV panelů | C50: 2370 | G50: odpisy | I50: =$H$47/(2*$C$54-1) -> 345630.7692 | J50: =2*$H$47/(2*$C$54-1) -> 691261.5385 | K50: =2*$H$47/(2*$C$54-1) -> 691261.5385 | L50: 691261.5385 | M50: 691261.5385 | N50: 691261.5385 | O50: 691261.5385 | P50: 691261.5385 | Q50: 691261.5385 | R50: 691261.5385 | S50: 691261.5385 | T50: 691261.5385 | U50: 691261.5385 | V50: 691261.5385 | W50: 691261.5385 | X50: 691261.5385 | Y50: 691261.5385 | Z50: 691261.5385 | AA50: 691261.5385 | AB50: 691261.5385
B51: jmen výkon panelů | C51: 240 | D51: W | G51: daňový štít | I51: =(I50+I48)*0.19 -> 75169.84615 | J51: =(J50+J48)*0.19 -> 140839.6923 | K51: 140839.6923 | L51: 140839.6923 | M51: 140839.6923 | N51: 140839.6923 | O51: 140839.6923 | P51: 140839.6923 | Q51: 140839.6923 | R51: 140839.6923 | S51: 140839.6923 | T51: 140839.6923 | U51: 140839.6923 | V51: 140839.6923 | W51: 140839.6923 | X51: 140839.6923 | Y51: 140839.6923 | Z51: 140839.6923 | AA51: 140839.6923 | AB51: 140839.6923
B52: instalovaný výkon | C52: =C50*C51/1000 -> 568.8 | D52: kWp
B53: Generováno ročně | C53: 574200 | D53: kWh | G53: CF | H53: =-H39-H47 -> -39951600 | I53: =I41+I36+I35+I51-I33-I38-I39-I47-I48-I44+I45 -> -10764610.7 | J53: =J41+J36+J35+J51-J33-J38-J39-J47-J48-J44+J45 -> -10920929.95 | K53: -11428072.34 | L53: -11956487.22 | M53: -12507047.93 | N53: -12775243.27 | O53: -13048886.68 | P53: -13328088.39 | Q53: -13612960.82 | R53: -29586459.75 | S53: -15577102.94 | T53: -15032201.17 | U53: -15340926.95 | V53: -15655920.59 | W53: -15977308.84 | X53: -16305221.01 | Y53: -16639789 | Z53: -16981147.39 | AA53: -17329433.46 | AB53: -17684787.26
B54: V provozu | C54: 20 | D54: let | G54: DCF | H54: =H53/(1+$C$24)^H28 -> -39951600 | I54: -10093399.62 | J54: -9601473.816 | K54: -9420856.775 | L54: -9241876.59 | M54: -9064639.044 | N54: -8681684.918 | O54: -8314716.409 | P54: -7963078.298 | Q54: -7626141.456 | R54: -15541194.79 | S54: =S53/(1+$C$24)^S28 -> -7672152.599 | T54: -6942122.321 | U54: -6642941.45 | V54: -6356624.724 | W54: -6082620.669 | X54: -5820401.355 | Y54: -5569461.402 | Z54: -5329317.018 | AA54: -5099505.081 | AB54: -4879582.264
B55: roční snížení výroby | C55: 0.005 | G55: Diskontovaná el. energie | I55: =(I34+I49+I43)/(1+$C$24)^I28 -> 7436.474449 | J55: =(J34+J49+J43)/(1+$C$24)^J28 -> 6972.784294 | K55: 6538.006839 | L55: 6130.339277 | M55: 5748.091211 | N55: 5389.677648 | O55: 5053.612422 | P55: 4738.502036 | Q55: 4443.039884 | R55: 4166.000829 | S55: 3906.236126 | T55: 3662.668661 | U55: 3434.288477 | V55: 3220.148595 | W55: 3019.361083 | X55: 2831.093374 | Y55: 2654.564814 | Z55: 2489.043426 | AA55: 2333.842875 | AB55: 2188.31962
B56: inflace | C56: 0.02
B57: diskont | C57: 0.06653 | G57: NPV | H57: =SUM(H54:AB54)/1000 -> -195895.3906 | I57: tis. Kč
B58: Dotace | C58: 0 | D58: z investice | G58: LCOE | H58: =-H57/SUM(I55:AB55)*1000 -> 2268.460477 | I58: Kč/MWh
B59: Další inv. Náklady | C59: 1500 | D59: Kč/FVpanel
B60: provozní náklady | C60: 50000 | D60: Kč
B62: cena panelů | C62: =C50*C49 -> 9243000 | D62: Kč | G62: Nárůst cen en. | H62: 1 | I62: =$H$26*(1+2%+$C$30)^I64 -> 1.04 | J62: =$H$26*(1+2%+$C$30)^J64 -> 1.0816 | K62: 1.124864 | L62: 1.16985856 | M62: 1.216652902 | N62: =M62*(1+$C$30) -> 1.24098596 | O62: =N62*(1+$C$30) -> 1.26580568 | P62: 1.291121793 | Q62: 1.316944229 | R62: 1.343283114 | S62: 1.370148776 | T62: 1.397551751 | U62: 1.425502787 | V62: 1.454012842 | W62: 1.483093099 | X62: 1.512754961 | Y62: 1.54301006 | Z62: 1.573870262 | AA62: 1.605347667 | AB62: 1.63745462
B63: cena za 1 kWh | C63: =C62/(C53*C54) -> 0.8048589342
B64: Cena invertorů | C64: 681600 | D64: Kč | H64: 0 | I64: 1 | J64: 2 | K64: 3 | L64: 4 | M64: 5 | N64: 6 | O64: 7 | P64: 8 | Q64: 9 | R64: 10 | S64: 11 | T64: 12 | U64: 13 | V64: 14 | W64: 15 | X64: 16 | Y64: 17 | Z64: 18 | AA64: 19 | AB64: 20
B65: Další inv. náklady | C65: =C59*C50 -> 3555000 | D65: Kč | G65: Cena elktřiny | H65: =$C$15*H62 -> 1997 | I65: 2076.88 | J65: 2159.9552 | K65: 2246.353408 | L65: 2336.207544 | M65: 2429.655846 | N65: 2478.248963 | O65: 2527.813942 | P65: 2578.370221 | Q65: 2629.937626 | R65: 2682.536378 | S65: =$C$15*S62 -> 2736.187106 | T65: 2790.910848 | U65: 2846.729065 | V65: 2903.663646 | W65: 2961.736919 | X65: 3020.971657 | Y65: 3081.39109 | Z65: 3143.018912 | AA65: 3205.87929 | AB65: 3269.996876
B66: cena proměnné složky elektřiny | C66: 1.6024 | D66: Kč/kWh | G66: Cena tepla | H66: =$C$16*(1+$C$26)^H64 -> 1000 | I66: =H66*(1+$C$30) -> 1020 | J66: =I66*(1+$C$30) -> 1040.4 | K66: 1061.208 | L66: 1082.43216 | M66: 1104.080803 | N66: 1126.162419 | O66: 1148.685668 | P66: 1171.659381 | Q66: 1195.092569 | R66: 1218.99442 | S66: 1243.374308 | T66: 1268.241795 | U66: 1293.60663 | V66: 1319.478763 | W66: 1345.868338 | X66: 1372.785705 | Y66: 1400.241419 | Z66: 1428.246248 | AA66: 1456.811173 | AB66: 1485.947396
G67: Cena plynu | H67: =$C$17*H62 -> 865.3081913 | I67: 899.9205189 | J67: 935.9173397 | K67: 973.3540333 | L67: 1012.288195 | M67: 1052.779722 | N67: 1073.835317 | O67: 1095.312023 | P67: 1117.218264 | Q67: 1139.562629 | R67: 1162.353881 | S67: =$C$17*S62 -> 1185.600959 | T67: 1209.312978 | U67: 1233.499238 | V67: 1258.169223 | W67: 1283.332607 | X67: 1308.999259 | Y67: 1335.179244 | Z67: 1361.882829 | AA67: 1389.120486 | AB67: 1416.902896
I68: KGJ | S68: KGJ2
G69: Servisní a provozní náklady | I69: =($C$12+$C$19)*(1+$C$26)^I64 -> 1043205 | J69: 1064069.1 | K69: 1085350.482 | L69: 1107057.492 | M69: 1129198.641 | N69: 1151782.614 | O69: 1174818.267 | P69: 1198314.632 | Q69: 1222280.925 | R69: 1246726.543 | S69: =($C$12+$C$19)*(1+$C$26)^S64 -> 1271661.074 | T69: 1297094.295 | U69: 1323036.181 | V69: 1349496.905 | W69: 1376486.843 | X69: 1404016.58 | Y69: 1432096.911 | Z69: 1460738.85 | AA69: 1489953.627 | AB69: 1519752.699
G70: Generováno el. KGJ | I70: =$C$8 -> 3691 | J70: 3691 | K70: 3691 | L70: 3691 | M70: 3691 | N70: 3691 | O70: 3691 | P70: 3691 | Q70: 3691 | R70: 3691 | S70: =$C$8 -> 3691 | T70: 3691 | U70: 3691 | V70: 3691 | W70: 3691 | X70: 3691 | Y70: 3691 | Z70: 3691 | AA70: 3691 | AB70: 3691
G71: Cena ušetřená za teplo | I71: =$C$10*I66 -> 2820300 | J71: 2876706 | K71: 2934240.12 | L71: 2992924.922 | M71: 3052783.421 | N71: 3113839.089 | O71: 3176115.871 | P71: 3239638.188 | Q71: 3304430.952 | R71: 3370519.571 | S71: =$C$10*S66 -> 3437929.963 | T71: 3506688.562 | U71: 3576822.333 | V71: 3648358.78 | W71: 3721325.955 | X71: 3795752.475 | Y71: 3871667.524 | Z71: 3949100.875 | AA71: 4028082.892 | AB71: 4108644.55
G72: Příjem ZB | I72: =$C$11*$C$22 -> 0 | J72: =$C$11*$C$22 -> 0 | K72: 0 | L72: 0 | M72: 0 | N72: 0 | O72: 0 | P72: 0 | Q72: 0 | R72: 0 | S72: 0 | T72: 0 | U72: 0 | V72: 0 | W72: 0 | X72: 0 | Y72: 0 | Z72: 0 | AA72: 0 | AB72: 0
G73: Cena za překročení RK a RP | I73: =$C$20 -> 12903.31 | J73: =$C$20 -> 12903.31 | K73: 12903.31 | L73: 12903.31 | M73: 12903.31 | N73: 12903.31 | O73: 12903.31 | P73: 12903.31 | Q73: 12903.31 | R73: 12903.31 | S73: 12903.31 | T73: 12903.31 | U73: 12903.31 | V73: 12903.31 | W73: 12903.31 | X73: 12903.31 | Y73: 12903.31 | Z73: 12903.31 | AA73: 12903.31 | AB73: 12903.31
G74: Platba za plyn | I74: =$C$13*I67 -> 8472751.686 | J74: 8811661.753 | K74: 9164128.223 | L74: 9530693.352 | M74: 9911921.086 | N74: 10110159.51 | O74: 10312362.7 | P74: 10518609.95 | Q74: 10728982.15 | R74: 10943561.79 | S74: =$C$13*S67 -> 11162433.03 | T74: 11385681.69 | U74: 11613395.32 | V74: 11845663.23 | W74: 12082576.5 | X74: 12324228.03 | Y74: 12570712.59 | Z74: 12822126.84 | AA74: 13078569.37 | AB74: 13340140.76
G75: Investice | H75: =$C$5-$C$5*$C$25 -> 26472000 | R75: =0.8*$C$5*(1+$C$26)^R64 -> 25815376.23
G76: Odpisy | I76: =$H$39/(2*$C$18-1) -> 1393263.158 | J76: =2*$H$39/(2*$C$18-1) -> 2786526.316 | K76: 2786526.316 | L76: 2786526.316 | M76: 2786526.316 | N76: 2786526.316 | O76: 2786526.316 | P76: 2786526.316 | Q76: 2786526.316 | R76: 2786526.316 | S76: =$R$75/(2*$C$18-1) -> 1358704.012 | T76: =2*$R$75/(2*$C$18-1) -> 2717408.024 | U76: =2*$R$75/(2*$C$18-1) -> 2717408.024 | V76: 2717408.024 | W76: 2717408.024 | X76: 2717408.024 | Y76: 2717408.024 | Z76: 2717408.024 | AA76: 2717408.024 | AB76: 2717408.024
G77: Daň štít | I77: =(I76+I74+I69-I72+I75)*0.19 -> 2072751.77 | J77: =(J76+J74+J69-J72+J75)*0.19 -> 2405828.862 | K77: 2476840.954 | L77: 2550612.66 | M77: 2627252.748 | N77: 2669209.003 | O77: 2712004.383 | P77: 2755655.671 | Q77: 2800179.984 | R77: 7750516.268 | S77: =(S76+S74+S69-S72+S75)*0.19 -> 2620631.642 | T77: 2926034.962 | U77: 2974229.511 | V77: 3023387.95 | W77: 3073529.559 | X77: 3124674 | Y77: 3176841.329 | Z77: 3230052.005 | AA77: 3284326.895 | AB77: 3339687.282
I78: Odběr z DS
G79: Elektrická energie | I79: =7931-I85-I70 -> 3665.8 | J79: =7931-J85-J70 -> 3668.671 | K79: 3671.527645 | L79: 3674.370007 | M79: 3677.198157 | N79: 3680.012166 | O79: 3682.812105 | P79: 3685.598045 | Q79: 3688.370054 | R79: 3691.128204 | S79: 3693.872563 | T79: 3696.6032 | U79: 3699.320184 | V79: 3702.023583 | W79: 3704.713465 | X79: 3707.389898 | Y79: 3710.052949 | Z79: 3712.702684 | AA79: 3715.33917 | AB79: 3717.962475
G80: Cena za El. energii z DS | I80: =I79*I65 -> 7613426.704 | J80: =J79*J65 -> 7924165.004 | K80: =K79*K65 -> 8247548.638 | L80: =L79*L65 -> 8584090.93 | M80: =M79*M65 -> 8934325.999 | N80: =N79*N65 -> 9119986.334 | O80: =O79*O65 -> 9309463.786 | P80: =P79*P65 -> 9502836.245 | Q80: =Q79*Q65 -> 9700183.183 | R80: =R79*R65 -> 9901585.684 | S80: =S79*S65 -> 10107126.48 | T80: =T79*T65 -> 10316889.97 | U80: =U79*U65 -> 10530962.29 | V80: =V79*V65 -> 10749431.3 | W80: =W79*W65 -> 10972386.64 | X80: =X79*X65 -> 11199919.8 | Y80: =Y79*Y65 -> 11432124.1 | Z80: =Z79*Z65 -> 11669094.75 | AA80: =AA79*AA65 -> 11910928.9 | AB80: =AB79*AB65 -> 12157725.68
G81: Daň. Štít | I81: =I80*0.19 -> 1446551.074 | J81: =J80*0.19 -> 1505591.351 | K81: =K80*0.19 -> 1567034.241 | L81: =L80*0.19 -> 1630977.277 | M81: =M80*0.19 -> 1697521.94 | N81: =N80*0.19 -> 1732797.403 | O81: =O80*0.19 -> 1768798.119 | P81: =P80*0.19 -> 1805538.887 | Q81: =Q80*0.19 -> 1843034.805 | R81: =R80*0.19 -> 1881301.28 | S81: =S80*0.19 -> 1920354.031 | T81: =T80*0.19 -> 1960209.095 | U81: =U80*0.19 -> 2000882.835 | V81: =V80*0.19 -> 2042391.946 | W81: =W80*0.19 -> 2084753.462 | X81: =X80*0.19 -> 2127984.763 | Y81: =Y80*0.19 -> 2172103.579 | Z81: =Z80*0.19 -> 2217128.003 | AA81: =AA80*0.19 -> 2263076.492 | AB81: =AB80*0.19 -> 2309967.879
I82: FVE
G83: Investice | H83: =IF($C$21=1,$C$62+$C$64+$C$65-SUM($C$62,$C$64,$C$65)*$C$58,0) -> 13479600 | S83: =IF($C$21=1,$C$64*(1+$C$56)^S64,0) -> 847483.9286
G84: Provozní náklady | I84: =IF($C$21=1,$C$60,0) -> 50000 | J84: =IF($C$21=1,$C$60,0) -> 50000 | K84: 50000 | L84: 50000 | M84: 50000 | N84: 50000 | O84: 50000 | P84: 50000 | Q84: 50000 | R84: 50000 | S84: 50000 | T84: 50000 | U84: 50000 | V84: 50000 | W84: 50000 | X84: 50000 | Y84: 50000 | Z84: 50000 | AA84: 50000 | AB84: 50000
G85: Generováno el. energie | I85: =IF($C$21=1,$C$53*(1-$C$55)^H64/1000,0) -> 574.2 | J85: =IF($C$21=1,$C$53*(1-$C$55)^I64/1000,0) -> 571.329 | K85: 568.472355 | L85: 565.6299932 | M85: 562.8018433 | N85: 559.987834 | O85: 557.1878949 | P85: 554.4019554 | Q85: 551.6299456 | R85: 548.8717959 | S85: 546.1274369 | T85: 543.3967997 | U85: 540.6798157 | V85: 537.9764167 | W85: 535.2865346 | X85: 532.6101019 | Y85: 529.9470514 | Z85: 527.2973161 | AA85: 524.6608295 | AB85: 522.0375254
G86: odpisy | I86: =$H$47/(2*$C$54-1) -> 345630.7692 | J86: =2*$H$47/(2*$C$54-1) -> 691261.5385 | K86: =2*$H$47/(2*$C$54-1) -> 691261.5385 | L86: 691261.5385 | M86: 691261.5385 | N86: 691261.5385 | O86: 691261.5385 | P86: 691261.5385 | Q86: 691261.5385 | R86: 691261.5385 | S86: 691261.5385 | T86: 691261.5385 | U86: 691261.5385 | V86: 691261.5385 | W86: 691261.5385 | X86: 691261.5385 | Y86: 691261.5385 | Z86: 691261.5385 | AA86: 691261.5385 | AB86: 691261.5385
G87: daňový štít | I87: =(I86+I84)*0.19 -> 75169.84615 | J87: =(J86+J84)*0.19 -> 140839.6923 | K87: 140839.6923 | L87: 140839.6923 | M87: 140839.6923 | N87: 140839.6923 | O87: 140839.6923 | P87: 140839.6923 | Q87: 140839.6923 | R87: 140839.6923 | S87: 140839.6923 | T87: 140839.6923 | U87: 140839.6923 | V87: 140839.6923 | W87: 140839.6923 | X87: 140839.6923 | Y87: 140839.6923 | Z87: 140839.6923 | AA87: 140839.6923 | AB87: 140839.6923
G89: CF | H89: =-H75-H83 -> -39951600 | I89: =I77+I72+I71+I87-I69-I74-I75-I83-I84-I80+I81 -> -10764610.7 | J89: =J77+J72+J71+J87-J69-J74-J75-J83-J84-J80+J81 -> -10920929.95 | K89: -11428072.34 | L89: -11956487.22 | M89: -12507047.93 | N89: -12775243.27 | O89: -13048886.68 | P89: -13328088.39 | Q89: -13612960.82 | R89: -34814073.44 | S89: -15318949.18 | T89: -14515893.65 | U89: -14824619.42 | V89: -15139613.06 | W89: -15461001.31 | X89: -15788913.48 | Y89: -16123481.47 | Z89: -16464839.86 | AA89: -16813125.93 | AB89: -17168479.74
G90: DCF | H90: =H89/(1+$C$24)^H64 -> -39951600 | I90: -10093399.62 | J90: -9601473.816 | K90: -9420856.775 | L90: -9241876.59 | M90: -9064639.044 | N90: -8681684.918 | O90: -8314716.409 | P90: -7963078.298 | Q90: -7626141.456 | R90: -18287159.1 | S90: =S89/(1+$C$24)^S64 -> -7545004.755 | T90: =T89/(1+$C$24)^T64 -> -6703682.857 | U90: =U89/(1+$C$24)^U64 -> -6419369.519 | V90: =V89/(1+$C$24)^V64 -> -6146993.284 | W90: =W89/(1+$C$24)^W64 -> -5886060.481 | X90: =X89/(1+$C$24)^X64 -> -5636097.382 | Y90: =Y89/(1+$C$24)^Y64 -> -5396649.426 | Z90: =Z89/(1+$C$24)^Z64 -> -5167280.472 | AA90: =AA89/(1+$C$24)^AA64 -> -4947572.08 | AB90: =AB89/(1+$C$24)^AB64 -> -4737122.816
G91: Diskontovaná el. energie | I91: =(I70+I85+I79)/(1+$C$24)^I64 -> 7436.474449 | J91: =(J70+J85+J79)/(1+$C$24)^J64 -> 6972.784294 | K91: 6538.006839 | L91: 6130.339277 | M91: 5748.091211 | N91: 5389.677648 | O91: 5053.612422 | P91: 4738.502036 | Q91: 4443.039884 | R91: 4166.000829 | S91: 3906.236126 | T91: 3662.668661 | U91: 3434.288477 | V91: 3220.148595 | W91: 3019.361083 | X91: 2831.093374 | Y91: 2654.564814 | Z91: 2489.043426 | AA91: 2333.842875 | AB91: 2188.31962
G93: NPV | H93: =SUM(H90:AB90)/1000 -> -196832.4591 | I93: tis. Kč
G94: LCOE | H94: =-H93/SUM(I91:AB91)*1000 -> 2279.311691 | I94: Kč/MWh
G97: Nárůst cen en. | H97: 1 | I97: =$H$26*(1+2%+$C$30)^I99 -> 1.04 | J97: =$H$26*(1+2%+$C$30)^J99 -> 1.0816 | K97: 1.124864 | L97: 1.16985856 | M97: 1.216652902 | N97: =M97*(1+$C$30) -> 1.24098596 | O97: =N97*(1+$C$30) -> 1.26580568 | P97: 1.291121793 | Q97: 1.316944229 | R97: 1.343283114 | S97: 1.370148776 | T97: 1.397551751 | U97: 1.425502787 | V97: 1.454012842 | W97: 1.483093099 | X97: 1.512754961 | Y97: 1.54301006 | Z97: 1.573870262 | AA97: 1.605347667 | AB97: 1.63745462
H99: 0 | I99: 1 | J99: 2 | K99: 3 | L99: 4 | M99: 5 | N99: 6 | O99: 7 | P99: 8 | Q99: 9 | R99: 10 | S99: 11 | T99: 12 | U99: 13 | V99: 14 | W99: 15 | X99: 16 | Y99: 17 | Z99: 18 | AA99: 19 | AB99: 20
G100: Cena elktřiny | H100: =$C$15*H97 -> 1997 | I100: 2076.88 | J100: 2159.9552 | K100: 2246.353408 | L100: 2336.207544 | M100: 2429.655846 | N100: 2478.248963 | O100: 2527.813942 | P100: 2578.370221 | Q100: 2629.937626 | R100: 2682.536378 | S100: =$C$15*S97 -> 2736.187106 | T100: 2790.910848 | U100: 2846.729065 | V100: 2903.663646 | W100: 2961.736919 | X100: 3020.971657 | Y100: 3081.39109 | Z100: 3143.018912 | AA100: 3205.87929 | AB100: 3269.996876
G101: Cena tepla | H101: =$C$16*(1+$C$26)^H99 -> 1000 | I101: =H101*(1+$C$30) -> 1020 | J101: =I101*(1+$C$30) -> 1040.4 | K101: 1061.208 | L101: 1082.43216 | M101: 1104.080803 | N101: 1126.162419 | O101: 1148.685668 | P101: 1171.659381 | Q101: 1195.092569 | R101: 1218.99442 | S101: 1243.374308 | T101: 1268.241795 | U101: 1293.60663 | V101: 1319.478763 | W101: 1345.868338 | X101: 1372.785705 | Y101: 1400.241419 | Z101: 1428.246248 | AA101: 1456.811173 | AB101: 1485.947396
G102: Cena plynu | H102: =$C$17*H97 -> 865.3081913 | I102: 899.9205189 | J102: 935.9173397 | K102: 973.3540333 | L102: 1012.288195 | M102: 1052.779722 | N102: 1073.835317 | O102: 1095.312023 | P102: 1117.218264 | Q102: 1139.562629 | R102: 1162.353881 | S102: =$C$17*S97 -> 1185.600959 | T102: 1209.312978 | U102: 1233.499238 | V102: 1258.169223 | W102: 1283.332607 | X102: 1308.999259 | Y102: 1335.179244 | Z102: 1361.882829 | AA102: 1389.120486 | AB102: 1416.902896
I103: KGJ | S103: KGJ2
G104: Servisní a provozní náklady | I104: =($C$12+$C$19)*(1+$C$26)^I99 -> 1043205 | J104: 1064069.1 | K104: 1085350.482 | L104: 1107057.492 | M104: 1129198.641 | N104: 1151782.614 | O104: 1174818.267 | P104: 1198314.632 | Q104: 1222280.925 | R104: 1246726.543
G105: Generováno el. KGJ | I105: =$C$8 -> 3691 | J105: 3691 | K105: 3691 | L105: 3691 | M105: 3691 | N105: 3691 | O105: 3691 | P105: 3691 | Q105: 3691 | R105: 3691 | S105: 0 | T105: 0 | U105: 0 | V105: 0 | W105: 0 | X105: 0 | Y105: 0 | Z105: 0 | AA105: 0 | AB105: 0
G106: Cena ušetřená za teplo | I106: =$C$10*I101 -> 2820300 | J106: 2876706 | K106: 2934240.12 | L106: 2992924.922 | M106: 3052783.421 | N106: 3113839.089 | O106: 3176115.871 | P106: 3239638.188 | Q106: 3304430.952 | R106: 3370519.571 | S106: 0 | T106: 0 | U106: 0 | V106: 0 | W106: 0 | X106: 0 | Y106: 0 | Z106: 0 | AA106: 0 | AB106: 0
G107: Příjem ZB | I107: =$C$11*$C$22 -> 0 | J107: =$C$11*$C$22 -> 0 | K107: 0 | L107: 0 | M107: 0 | N107: 0 | O107: 0 | P107: 0 | Q107: 0 | R107: 0 | S107: =0 -> 0 | T107: =0 -> 0 | U107: =0 -> 0 | V107: =0 -> 0 | W107: =0 -> 0 | X107: =0 -> 0 | Y107: =0 -> 0 | Z107: =0 -> 0 | AA107: =0 -> 0 | AB107: =0 -> 0
G108: Cena za překročení RK a RP | I108: =$C$20 -> 12903.31 | J108: =$C$20 -> 12903.31 | K108: 12903.31 | L108: 12903.31 | M108: 12903.31 | N108: 12903.31 | O108: 12903.31 | P108: 12903.31 | Q108: 12903.31 | R108: 12903.31 | S108: =0 -> 0 | T108: =0 -> 0 | U108: =0 -> 0 | V108: =0 -> 0 | W108: =0 -> 0 | X108: =0 -> 0 | Y108: =0 -> 0 | Z108: =0 -> 0 | AA108: =0 -> 0 | AB108: =0 -> 0
G109: Platba za plyn | I109: =$C$13*I102 -> 8472751.686 | J109: 8811661.753 | K109: 9164128.223 | L109: 9530693.352 | M109: 9911921.086 | N109: 10110159.51 | O109: 10312362.7 | P109: 10518609.95 | Q109: 10728982.15 | R109: 10943561.79 | S109: 0 | T109: 0 | U109: 0 | V109: 0 | W109: 0 | X109: 0 | Y109: 0 | Z109: 0 | AA109: 0 | AB109: 0
G110: Investice | H110: =$C$5-$C$5*$C$25 -> 26472000 | R110: =$C$31 -> 2000000
G111: Odpisy | I111: =$H$39/(2*$C$18-1) -> 1393263.158 | J111: =2*$H$39/(2*$C$18-1) -> 2786526.316 | K111: 2786526.316 | L111: 2786526.316 | M111: 2786526.316 | N111: 2786526.316 | O111: 2786526.316 | P111: 2786526.316 | Q111: 2786526.316 | R111: 2786526.316
G112: Daň štít | I112: =(I111+I109+I104-I107+I110)*0.19 -> 2072751.77 | J112: =(J111+J109+J104-J107+J110)*0.19 -> 2405828.862 | K112: 2476840.954 | L112: 2550612.66 | M112: 2627252.748 | N112: 2669209.003 | O112: 2712004.383 | P112: 2755655.671 | Q112: 2800179.984 | R112: =(R111+R109+R104-R107+R110)*0.19 -> 3225594.784 | S112: =(S111+S109+S104-S107+S110+S105*S100)*0.19 -> 0 | T112: =(T111+T109+T104-T107+T110+T105*T100)*0.19 -> 0 | U112: 0 | V112: 0 | W112: 0 | X112: 0 | Y112: 0 | Z112: 0 | AA112: 0 | AB112: 0
I113: Odběr z DS
G114: Elektrická energie | I114: =7931-I120-I105 -> 3665.8 | J114: =7931-J120-J105 -> 3668.671 | K114: 3671.527645 | L114: 3674.370007 | M114: 3677.198157 | N114: 3680.012166 | O114: 3682.812105 | P114: 3685.598045 | Q114: 3688.370054 | R114: 3691.128204 | S114: 7384.872563 | T114: 7387.6032 | U114: 7390.320184 | V114: 7393.023583 | W114: 7395.713465 | X114: 7398.389898 | Y114: 7401.052949 | Z114: 7403.702684 | AA114: 7406.33917 | AB114: 7408.962475
G115: Cena za El. energii z DS | I115: =I114*I100 -> 7613426.704 | J115: =J114*J100 -> 7924165.004 | K115: =K114*K100 -> 8247548.638 | L115: =L114*L100 -> 8584090.93 | M115: =M114*M100 -> 8934325.999 | N115: =N114*N100 -> 9119986.334 | O115: =O114*O100 -> 9309463.786 | P115: =P114*P100 -> 9502836.245 | Q115: =Q114*Q100 -> 9700183.183 | R115: =R114*R100 -> 9901585.684 | S115: =S114*S100 -> 20206393.08 | T115: =T114*T100 -> 20618141.91 | U115: =U114*U100 -> 21038239.27 | V115: =V114*V100 -> 21466853.81 | W115: =W114*W100 -> 21904157.61 | X115: =X114*X100 -> 22350326.19 | Y115: =Y114*Y100 -> 22805538.62 | Z115: =Z114*Z100 -> 23269977.56 | AA115: =AA114*AA100 -> 23743829.36 | AB115: =AB114*AB100 -> 24227284.15
G116: Daň. Štít | I116: =I115*0.19 -> 1446551.074 | J116: =J115*0.19 -> 1505591.351 | K116: =K115*0.19 -> 1567034.241 | L116: =L115*0.19 -> 1630977.277 | M116: =M115*0.19 -> 1697521.94 | N116: =N115*0.19 -> 1732797.403 | O116: =O115*0.19 -> 1768798.119 | P116: =P115*0.19 -> 1805538.887 | Q116: =Q115*0.19 -> 1843034.805 | R116: =R115*0.19 -> 1881301.28 | S116: =S115*0.19 -> 3839214.686 | T116: =T115*0.19 -> 3917446.963 | U116: =U115*0.19 -> 3997265.461 | V116: =V115*0.19 -> 4078702.224 | W116: =W115*0.19 -> 4161789.946 | X116: =X115*0.19 -> 4246561.976 | Y116: =Y115*0.19 -> 4333052.337 | Z116: =Z115*0.19 -> 4421295.736 | AA116: =AA115*0.19 -> 4511327.579 | AB116: =AB115*0.19 -> 4603183.988
I117: FVE
G118: Investice | H118: =IF($C$21=1,$C$62+$C$64+$C$65-SUM($C$62,$C$64,$C$65)*$C$58,0) -> 13479600 | S118: =IF($C$21=1,$C$64*(1+$C$56)^S99,0) -> 847483.9286
G119: Provozní náklady | I119: =IF($C$21=1,$C$60,0) -> 50000 | J119: =IF($C$21=1,$C$60,0) -> 50000 | K119: 50000 | L119: 50000 | M119: 50000 | N119: 50000 | O119: 50000 | P119: 50000 | Q119: 50000 | R119: 50000 | S119: 50000 | T119: 50000 | U119: 50000 | V119: 50000 | W119: 50000 | X119: 50000 | Y119: 50000 | Z119: 50000 | AA119: 50000 | AB119: 50000
G120: Generováno el. energie | I120: =IF($C$21=1,$C$53*(1-$C$55)^H99/1000,0) -> 574.2 | J120: =IF($C$21=1,$C$53*(1-$C$55)^I99/1000,0) -> 571.329 | K120: 568.472355 | L120: 565.6299932 | M120: 562.8018433 | N120: 559.987834 | O120: 557.1878949 | P120: 554.4019554 | Q120: 551.6299456 | R120: 548.8717959 | S120: 546.1274369 | T120: 543.3967997 | U120: 540.6798157 | V120: 537.9764167 | W120: 535.2865346 | X120: 532.6101019 | Y120: 529.9470514 | Z120: 527.2973161 | AA120: 524.6608295 | AB120: 522.0375254
G121: odpisy | I121: =$H$47/(2*$C$54-1) -> 345630.7692 | J121: =2*$H$47/(2*$C$54-1) -> 691261.5385 | K121: =2*$H$47/(2*$C$54-1) -> 691261.5385 | L121: 691261.5385 | M121: 691261.5385 | N121: 691261.5385 | O121: 691261.5385 | P121: 691261.5385 | Q121: 691261.5385 | R121: 691261.5385 | S121: 691261.5385 | T121: 691261.5385 | U121: 691261.5385 | V121: 691261.5385 | W121: 691261.5385 | X121: 691261.5385 | Y121: 691261.5385 | Z121: 691261.5385 | AA121: 691261.5385 | AB121: 691261.5385
G122: daňový štít | I122: =(I121+I119)*0.19 -> 75169.84615 | J122: =(J121+J119)*0.19 -> 140839.6923 | K122: 140839.6923 | L122: 140839.6923 | M122: 140839.6923 | N122: 140839.6923 | O122: 140839.6923 | P122: 140839.6923 | Q122: 140839.6923 | R122: 140839.6923 | S122: 140839.6923 | T122: 140839.6923 | U122: 140839.6923 | V122: 140839.6923 | W122: 140839.6923 | X122: 140839.6923 | Y122: 140839.6923 | Z122: 140839.6923 | AA122: 140839.6923 | AB122: 140839.6923
G124: CF | H124: =-H110-H118 -> -39951600 | I124: =I112+I107+I106+I122-I104-I109-I110-I118-I119-I115+I116 -> -10764610.7 | J124: =J112+J107+J106+J122-J104-J109-J110-J118-J119-J115+J116 -> -10920929.95 | K124: -11428072.34 | L124: -11956487.22 | M124: -12507047.93 | N124: -12775243.27 | O124: -13048886.68 | P124: -13328088.39 | Q124: -13612960.82 | R124: -15523618.69 | S124: -17123822.63 | T124: -16609855.26 | U124: -16950134.11 | V124: -17297311.9 | W124: -17651527.97 | X124: -18012924.52 | Y124: -18381646.59 | Z124: -18757842.13 | AA124: -19141662.09 | AB124: -19533260.47
G125: DCF | H125: =H124/(1+$C$24)^H99 -> -39951600 | I125: -10093399.62 | J125: -9601473.816 | K125: -9420856.775 | L125: -9241876.59 | M125: -9064639.044 | N125: -8681684.918 | O125: -8314716.409 | P125: -7963078.298 | Q125: -7626141.456 | R125: -8154256.505 | S125: =S124/(1+$C$24)^S99 -> -8433954.684 | T125: =T124/(1+$C$24)^T99 -> -7670709.406 | U125: =U124/(1+$C$24)^U99 -> -7339761.728 | V125: =V124/(1+$C$24)^V99 -> -7023063.246 | W125: =W124/(1+$C$24)^W99 -> -6720002.096 | X125: =X124/(1+$C$24)^X99 -> -6429992.594 | Y125: =Y124/(1+$C$24)^Y99 -> -6152474.12 | Z125: =Z124/(1+$C$24)^Z99 -> -5886910.053 | AA125: =AA124/(1+$C$24)^AA99 -> -5632786.747 | AB125: =AB124/(1+$C$24)^AB99 -> -5389612.549
G126: Diskontovaná el. energie | I126: =(I105+I120+I114)/(1+$C$24)^I99 -> 7436.474449 | J126: =(J105+J120+J114)/(1+$C$24)^J99 -> 6972.784294 | K126: 6538.006839 | L126: 6130.339277 | M126: 5748.091211 | N126: 5389.677648 | O126: 5053.612422 | P126: 4738.502036 | Q126: 4443.039884 | R126: 4166.000829 | S126: 3906.236126 | T126: 3662.668661 | U126: 3434.288477 | V126: 3220.148595 | W126: 3019.361083 | X126: 2831.093374 | Y126: 2654.564814 | Z126: 2489.043426 | AA126: 2333.842875 | AB126: 2188.31962
G128: NPV | H128: =SUM(H125:AB125)/1000 -> -194792.9907 | I128: tis. Kč
G129: LCOE | H129: =-H128/SUM(I126:AB126)*1000 -> 2255.694732 | I129: Kč/MWh
B135: Citlivostní analýza
B137: Diskont | C137: GO KGJ | E137: Nová KGJ | G137: Příkon DS
C138: NPV | D138: LCOE | E138: NPV | F138: LCOE | G138: NPV | H138: LCOE
B139: 0.01 | C139: =$H$57 -> -195895.3906 | D139: =$H$58 -> 2268.460477 | E139: =$H$93 -> -196832.4591 | F139: =$H$94 -> 2279.311691 | G139: =$H$128 -> -194792.9907 | H139: =$H$129 -> 2255.694732
B140: 0.06 | C140: -205112.4353 | D140: 2254.777052 | E140: -206045.5614 | F140: 2265.034798 | G140: -204154.5748 | H140: 2244.247404
B141: 0.08 | C141: -179007.3194 | D141: 2298.864062 | E141: -179934.7159 | F141: 2310.773957 | G141: -177692.0387 | H141: 2281.972845
B142: 0.1 | C142: -158584.438 | D142: 2348.665815 | E142: -159467.2599 | F142: 2361.740576 | G142: -157113.4584 | H142: 2326.880327
B143: 0.12 | C143: -142403.1558 | D143: 2403.828115 | E143: -143221.2433 | F143: 2417.637792 | G143: -140900.7434 | H143: 2378.46673
B144: 0.14 | C144: -129425.6137 | D144: 2463.933415 | E144: -130170.3614 | F144: 2478.111511 | G144: -127965.8328 | H144: 2436.142911
B145: 0.16 | C145: -118895.7661 | D145: 2528.533101 | E145: -119565.5545 | F145: 2542.777362 | G145: -117520.3196 | H145: 2499.281749
B146: 0.18 | C146: -110256.8534 | D146: 2597.173531 | E146: -110854.1319 | F146: 2611.242823 | G146: -108986.781 | H146: 2567.256131
B147: 0.2 | C147: -103094.514 | D147: 2669.415171 | E147: -103623.9514 | F147: 2683.123838 | G147: -101937.8637 | H147: 2639.466151
B148: 0.22 | C148: -97097.17377 | D148: 2744.845282 | E148: -97564.49995 | F148: 2758.056152 | G148: -96054.02423 | H148: 2715.356431
B152: Růst energií | C152: GO KGJ | E152: Nová KGJ | G152: Příkon DS
C153: NPV | D153: LCOE | E153: NPV | F153: LCOE | G153: NPV | H153: LCOE
B154: 0.01 | C154: =$H$57 -> -195895.3906 | D154: =$H$58 -> 2268.460477 | E154: =$H$93 -> -196832.4591 | F154: =$H$94 -> 2279.311691 | G154: =$H$128 -> -194792.9907 | H154: =$H$129 -> 2255.694732
B155: -0.01 | C155: -163946.7469 | D155: 1898.496511 | E155: -164883.8154 | F155: 1909.347725 | G155: -159056.194 | H155: 1841.864113
B156: 0 | C156: -173439.7075 | D156: 2008.424601 | E156: -174376.776 | F156: 2019.275815 | G156: -169633.6011 | H156: 1964.350047
B157: 0.01 | C157: -184040.4574 | D157: 2131.180843 | E157: -184977.5258 | F157: 2142.032057 | G157: -181488.5239 | H157: 2101.62956
B158: 0.02 | C158: -195895.3906 | D158: 2268.460477 | E158: -196832.4591 | F158: 2279.311691 | G158: -194792.9907 | H158: 2255.694732
B159: 0.03 | C159: -209170.9089 | D159: 2422.190427 | E159: -210107.9774 | F159: 2433.041641 | G159: -209742.7664 | H159: 2428.812513
B160: 0.04 | C160: -224056.1299 | D160: 2594.560668 | E160: -224993.1984 | F160: 2605.411882 | G160: -226560.5825 | H160: 2623.562124
B162: Dotace | C162: GO KGJ | E162: Nová KGJ | G162: Příkon DS
C163: NPV | D163: LCOE | E163: NPV | F163: LCOE | G163: NPV | H163: LCOE
B164: 0.01 | C164: =$H$57 -> -195895.3906 | D164: =$H$58 -> 2268.460477 | E164: =$H$93 -> -196832.4591 | F164: =$H$94 -> 2279.311691 | G164: =$H$128 -> -194792.9907 | H164: =$H$129 -> 2255.694732
B165: 0 | C165: -195895.3906 | D165: 2268.460477 | E165: -196832.4591 | F165: 2279.311691 | G165: -194792.9907 | H165: 2255.694732
B166: 0.2 | C166: -191307.2438 | D166: 2215.329928 | E166: -192244.3123 | F166: 2226.181143 | G166: -190204.8439 | H166: 2202.564183
B167: 0.4 | C167: -186719.097 | D167: 2162.199379 | E167: -187656.1655 | F167: 2173.050594 | G167: -185616.6971 | H167: 2149.433634
B168: 0.6 | C168: -182130.9503 | D168: 2109.068831 | E168: -183068.0188 | F168: 2119.920045 | G168: -181028.5503 | H168: 2096.303085
B169: 0.8 | C169: -177542.8035 | D169: 2055.938282 | E169: -178479.872 | F169: 2066.789496 | G169: -176440.4035 | H169: 2043.172536
B170: 1 | C170: -172954.6567 | D170: 2002.807733 | E170: -173891.7252 | F170: 2013.658947 | G170: -171852.2568 | H170: 1990.041987
B173: Výše ZB | C173: GO KGJ | E173: Nová KGJ | G173: Příkon DS
C174: NPV | D174: LCOE | E174: NPV | F174: LCOE | G174: NPV | H174: LCOE
B175: 0.01 | C175: =$H$57 -> -195895.3906 | D175: =$H$58 -> 2268.460477 | E175: =$H$93 -> -196832.4591 | F175: =$H$94 -> 2279.311691 | G175: =$H$128 -> -194792.9907 | H175: =$H$129 -> 2255.694732
B176: 0.06 | C176: -195894.6254 | D176: 2268.451616 | E176: -196831.6939 | F176: 2279.30283 | G176: -194792.489 | H176: 2255.688922
B177: 100 | C177: -194620.0488 | D177: 2253.692072 | E177: -195557.1173 | F177: 2264.543287 | G177: -193956.8548 | H177: 2246.012314
B178: 200 | C178: -193344.707 | D178: 2238.923667 | E178: -194281.7755 | F178: 2249.774882 | G178: -193120.719 | H178: 2236.329896
B179: 300 | C179: -192069.3652 | D179: 2224.155263 | E179: -193006.4337 | F179: 2235.006477 | G179: -192284.5832 | H179: 2226.647478
B180: 400 | C180: -190794.0234 | D180: 2209.386858 | E180: -191731.0919 | F180: 2220.238072 | G180: -191448.4474 | H180: 2216.965059
B181: 500 | C181: -189518.6817 | D181: 2194.618453 | E181: -190455.7502 | F181: 2205.469667 | G181: -190612.3115 | H181: 2207.282641
B182: 600 | C182: -188243.3399 | D182: 2179.850048 | E182: -189180.4084 | F182: 2190.701262 | G182: -189776.1757 | H182: 2197.600223
B183: 700 | C183: -186967.9981 | D183: 2165.081643 | E183: -187905.0666 | F183: 2175.932857 | G183: -188940.0399 | H183: 2187.917805

Sheet Tabulky
AA3: Technologie | AB3: Rozhodnutí | AC3: Zdůvodnění
C4: TEDOM | D4: Cento | J4: Quanto | M4: 4x200kWe | O4: 2x260 a 2x200kWe | Q4: 4x260 kWe | S4: 3x350kWe | U4: 2x530kWe | AA4: FVE | AB4: Budu vyhodnocovat | AC4: Primárně za účelem snížení nákladů na elektřinu a anlýzy snížení odběrových špiček v létě
C5: Varianta KGJ | D5: 80 | E5: 140 | F5: 200 | G5: 260 | H5: 350 | I5: 530 | J5: 600 | M5: S FVE | N5: Bez FVE | O5: S FVE | P5: Bez FVE | Q5: S FVE | R5: Bez FVE | S5: S FVE | T5: Bez FVE | U5: S FVE | V5: Bez FVVE | AA5: Motogenerátory | AB5: Nebudu vyhodnocovat | AC5: Firma o tuto variantu nemá zájem z důvodu složitějšího provozu a potřeby výstavby větších nádrží na palivo
C6: Servis (Kč/mhod) | D6: 31 | E6: 43 | F6: 55 | G6: 70 | H6: 86 | I6: 110 | J6: 125 | L6: životnost | AA6: KGJ | AB6: Budu vyhodnococvat | AC6: Teplo je možné využít během provozu v zimě
L7: anuita | AA7: Trigenerace | AB7: Nebudu vyhodnocovat | AC7: Na základě nezájmu firmy o tuto technologii a dohodě s vedoucím
L8: el. ZB 3000 | AA8: Baterie | AB8: Částečně | AC8: Záloha v bateriích není potřeba. Budu pouze hodnotit vliv ceny baterie na eozhodnutí o instalaci FVE
C9: TEDOM | D9: Cento | J9: Quanto | L9: el. ZB 4400 | AA9: Překročení RK a RP | AB9: Budu vyčíslovat, neoptimalizovat | AC9: V rámci vybraných variant budu vyčíslovat
C10: Varianta KGJ | D10: 80 | E10: 140 | F10: 200 | G10: 260 | H10: 350 | I10: 530 | J10: 600
C11: El. výkon | D11: 81 | E11: 140 | F11: 200 | G11: 260 | H11: 355 | I11: 528 | J11: 600
C12: Tep. Výkon | D12: 120 | E12: 203 | F12: 253 | G12: 371 | H12: 442 | I12: 672 | J12: 681
C13: El/Tep | D13: =D11/D12 -> 0.675 | E13: =E11/E12 -> 0.6896551724 | F13: 0.790513834 | G13: 0.7008086253 | H13: 0.8031674208 | I13: 0.7857142857 | J13: 0.8810572687
C14: Příkon ZP | D14: 231 | E14: 384 | F14: 510 | G14: 687 | H14: 887 | I14: 1344 | J14: 1418 | M14: Výsledky
C15: Účinnost el. | D15: =D11/D14 -> 0.3506493506 | E15: 0.3645833333 | F15: =F11/F14 -> 0.3921568627 | G15: =G11/G14 -> 0.3784570597 | H15: 0.4002254791 | I15: 0.3928571429 | J15: 0.4231311707 | M15: Generální oprava KGJ | O15: Nová výstavba KGJ | Q15: Navýšení RP po 10 letech
M16: NPV | N16: LCOE | O16: NPV | P16: LCOE | Q16: NPV | R16: LCOE
L17: Varianta | M17: (tis. Kč) | N17: (Kč/MWh) | O17: (tis. Kč) | P17: (Kč/MWh) | Q17: (tis. Kč) | R17: (Kč/MWh)
C18: KGJ TEDOM | D18: Cento | J18: Quanto | L18: 4x260 kWe | M18: -204135.5625 | N18: 2363.881325 | O18: -205161.1555 | P18: 2375.757649 | Q18: -199559.0285 | R18: 2310.885251
C19: Varianty KGJ | D19: 120 | E19: 140 | F19: 200 | G19: 260 | H19: 350 | I19: 530 | J19: 600 | L19: 3x350 kWe | M19: -195895.3906 | N19: 2268.460477 | O19: -196832.4591 | P19: 2279.311691 | Q19: -194792.9907 | R19: 2255.694732
C20: El. výkon (kW) | D20: 125 | E20: 140 | F20: 200 | G20: 260 | H20: 355 | I20: 528 | J20: 600 | L20: 2x530 kWe | M20: -193797.563 | N20: 2244.167721 | O20: -194596.8323 | P20: 2253.423227 | Q20: -193323.4395 | R20: 2238.677391
C21: Tep. Výkon (kW) | D21: 177 | E21: 203 | F21: 253 | G21: 371 | H21: 442 | I21: 672 | J21: 681 | L21: 2x350 kWe + 2x140 kWe | M21: -200408.3883 | N21: 2320.720803 | O21: -201364.8835 | P21: 2331.796977 | Q21: -197605.4202 | R21: 2288.262549
C22: El. účinnost při Pel=75 % | D22: 0.344 | E22: 0.355 | F22: 0.375 | G22: 0.364 | H22: 0.392 | I22: 0.385 | J22: 0.412
C23: Tep. účinnost při Pel=75 % | D23: 0.558 | E23: 0.57 | F23: 0.512 | G23: 0.559 | H23: 0.511 | I23: 0.506 | J23: 0.49
C24: Minimální el. výkon | D24: 0.5 | E24: 0.6 | F24: 0.5 | G24: 0.6 | H24: 0.6 | I24: 0.6 | J24: 0.5
C25: Max příkon ZP (m3) | D25: 32 | E25: 36 | F25: 48 | G25: 64 | H25: 83 | I25: 126 | J25: 133

Sheet Denni Prubehy
C27: Příkon | D27: Teplo | E27: FVE | F27: DS | G27: KGJ1 | H27: KGJ2 | I27: KGJ3 | J27: KGJ4 | K27: KGJ+ | L27: DS+ | M27: SUMA KGJ
B28: 2018-05-11 | C28: 936.8115942 | D28: 401.8125 | E28: 0 | F28: 500 | G28: 0 | H28: 308.239726 | I28: 0 | J28: 0 | K28: 128.5718682 | L28: =IF(A28-G28-H28-I28-J28-D28-C28-K28>0,A28-G28-H28-I28-J28-D28-C28-K28,0) -> 0 | M28: =SUM(G28:J28) -> 308.239726 | N28: 00:00:00
B29: 2018-05-11T00:15:00 | C29: 805.410628 | D29: 401.8125 | E29: 0 | F29: 497.170902 | G29: 0 | H29: 308.239726 | I29: 0 | J29: 0 | K29: 0 | L29: 0 | M29: =SUM(G29:J29) -> 308.239726 | N29: 00:15:00
B30: 2018-05-11T00:30:00 | C30: 1017.198068 | D30: 401.8125 | E30: 0 | F30: 500 | G30: 0 | H30: 308.239726 | I30: 0 | J30: 0 | K30: 208.9583416 | L30: 0 | M30: 308.239726 | N30: 00:30:00
B31: 2018-05-11T00:45:00 | C31: 1069.758454 | D31: 401.8125 | E31: 0 | F31: 500 | G31: 0 | H31: 308.239726 | I31: 0 | J31: 0 | K31: 261.5187281 | L31: 0 | M31: 308.239726 | N31: 00:45:00
B32: 2018-05-11T01:00:00 | C32: 776.0386473 | D32: 401.8125 | E32: 0 | F32: 467.7989213 | G32: 0 | H32: 308.239726 | I32: 0 | J32: 0 | K32: 0 | L32: 0 | M32: 308.239726 | N32: 01:00:00
B33: 2018-05-11T01:15:00 | C33: 913.6231884 | D33: 385.4625 | E33: 0 | F33: 500 | G33: 0 | H33: 295.6972603 | I33: 0 | J33: 0 | K33: 117.9259281 | L33: 0 | M33: 295.6972603 | N33: 01:15:00
B34: 2018-05-11T01:30:00 | C34: 1045.024155 | D34: 385.4625 | E34: 0 | F34: 500 | G34: 0 | H34: 295.6972603 | I34: 0 | J34: 0 | K34: 249.3268943 | L34: 0 | M34: 295.6972603 | N34: 01:30:00
B35: 2018-05-11T01:45:00 | C35: 921.352657 | D35: 385.4625 | E35: 0 | F35: 500 | G35: 0 | H35: 295.6972603 | I35: 0 | J35: 0 | K35: 125.6553967 | L35: 0 | M35: 295.6972603 | N35: 01:45:00
B36: 2018-05-11T02:00:00 | C36: 874.9758454 | D36: 385.4625 | E36: 0 | F36: 500 | G36: 0 | H36: 295.6972603 | I36: 0 | J36: 0 | K36: 79.27858514 | L36: 0 | M36: 295.6972603 | N36: 02:00:00
B37: 2018-05-11T02:15:00 | C37: 817.7777778 | D37: 385.4625 | E37: 0 | F37: 500 | G37: 0 | H37: 295.6972603 | I37: 0 | J37: 0 | K37: 22.0805175 | L37: 0 | M37: 295.6972603 | N37: 02:15:00
B38: 2018-05-11T02:30:00 | C38: 972.3671498 | D38: 385.4625 | E38: 0 | F38: 500 | G38: 0 | H38: 295.6972603 | I38: 0 | J38: 0 | K38: 176.6698895 | L38: 0 | M38: 295.6972603 | N38: 02:30:00
B39: 2018-05-11T02:45:00 | C39: 1006.376812 | D39: 385.4625 | E39: 0 | F39: 500 | G39: 0 | H39: 295.6972603 | I39: 0 | J39: 0 | K39: 210.6795513 | L39: 0 | M39: 295.6972603 | N39: 02:45:00
B40: 2018-05-11T03:00:00 | C40: 936.8115942 | D40: 385.4625 | E40: 1 | F40: 500 | G40: 0 | H40: 295.6972603 | I40: 0 | J40: 0 | K40: 140.1143339 | L40: 0 | M40: 295.6972603 | N40: 03:00:00
B41: 2018-05-11T03:15:00 | C41: 885.7971014 | D41: 385.4625 | E41: 1 | F41: 500 | G41: 0 | H41: 295.6972603 | I41: 0 | J41: 0 | K41: 89.09984118 | L41: 0 | M41: 295.6972603 | N41: 03:15:00
B42: 2018-05-11T03:30:00 | C42: 912.0772947 | D42: 385.4625 | E42: 1 | F42: 500 | G42: 0 | H42: 295.6972603 | I42: 0 | J42: 0 | K42: 115.3800344 | L42: 0 | M42: 295.6972603 | N42: 03:30:00
B43: 2018-05-11T03:45:00 | C43: 952.2705314 | D43: 385.4625 | E43: 1 | F43: 500 | G43: 0 | H43: 295.6972603 | I43: 0 | J43: 0 | K43: 155.5732711 | L43: 0 | M43: 295.6972603 | N43: 03:45:00
B44: 2018-05-11T04:00:00 | C44: 805.410628 | D44: 385.4625 | E44: 18 | F44: 491.7133677 | G44: 0 | H44: 295.6972603 | I44: 0 | J44: 0 | K44: 0 | L44: 0 | M44: 295.6972603 | N44: 04:00:00
B45: 2018-05-11T04:15:00 | C45: 891.9806763 | D45: 385.4625 | E45: 18 | F45: 500 | G45: 0 | H45: 295.6972603 | I45: 0 | J45: 0 | K45: 78.28341605 | L45: 0 | M45: 295.6972603 | N45: 04:15:00
B46: 2018-05-11T04:30:00 | C46: 981.6425121 | D46: 385.4625 | E46: 18 | F46: 500 | G46: 0 | H46: 295.6972603 | I46: 0 | J46: 0 | K46: 167.9452518 | L46: 0 | M46: 295.6972603 | N46: 04:30:00
B47: 2018-05-11T04:45:00 | C47: 853.3333333 | D47: 385.4625 | E47: 18 | F47: 500 | G47: 0 | H47: 295.6972603 | I47: 0 | J47: 0 | K47: 39.63607306 | L47: 0 | M47: 295.6972603 | N47: 04:45:00
B48: 2018-05-11T05:00:00 | C48: 616.8115942 | D48: 385.4625 | E48: 49 | F48: 272.1143339 | G48: 0 | H48: 295.6972603 | I48: 0 | J48: 0 | K48: 0 | L48: 0 | M48: 295.6972603 | N48: 05:00:00
B49: 2018-05-11T05:15:00 | C49: 819.3236715 | D49: 385.4625 | E49: 49 | F49: 474.6264112 | G49: 0 | H49: 295.6972603 | I49: 0 | J49: 0 | K49: 0 | L49: 0 | M49: 295.6972603 | N49: 05:15:00
B50: 2018-05-11T05:30:00 | C50: 731.2077295 | D50: 385.4625 | E50: 49 | F50: 386.5104692 | G50: 0 | H50: 295.6972603 | I50: 0 | J50: 0 | K50: 0 | L50: 0 | M50: 295.6972603 | N50: 05:30:00
B51: 2018-05-11T05:45:00 | C51: 644.6376812 | D51: 385.4625 | E51: 49 | F51: 299.9404209 | G51: 0 | H51: 295.6972603 | I51: 0 | J51: 0 | K51: 0 | L51: 0 | M51: 295.6972603 | N51: 05:45:00
B52: 2018-05-11T06:00:00 | C52: 717.294686 | D52: 385.4625 | E52: 104 | F52: 317.5974257 | G52: 0 | H52: 295.6972603 | I52: 0 | J52: 0 | K52: 0 | L52: 0 | M52: 295.6972603 | N52: 06:00:00
B53: 2018-05-11T06:15:00 | C53: 755.942029 | D53: 385.4625 | E53: 104 | F53: 356.2447687 | G53: 0 | H53: 295.6972603 | I53: 0 | J53: 0 | K53: 0 | L53: 0 | M53: 295.6972603 | N53: 06:15:00
B54: 2018-05-11T06:30:00 | C54: 788.4057971 | D54: 385.4625 | E54: 104 | F54: 388.7085368 | G54: 0 | H54: 295.6972603 | I54: 0 | J54: 0 | K54: 0 | L54: 0 | M54: 295.6972603 | N54: 06:30:00
B55: 2018-05-11T06:45:00 | C55: 919.8067633 | D55: 385.4625 | E55: 104 | F55: 500 | G55: 0 | H55: 295.6972603 | I55: 0 | J55: 0 | K55: 20.10950301 | L55: 0 | M55: 295.6972603 | N55: 06:45:00
B56: 2018-05-11T07:00:00 | C56: 916.7149758 | D56: 385.4625 | E56: 159 | F56: 462.0177156 | G56: 0 | H56: 295.6972603 | I56: 0 | J56: 0 | K56: 0 | L56: 0 | M56: 295.6972603 | N56: 07:00:00
B57: 2018-05-11T07:15:00 | C57: 817.7777778 | D57: 385.4625 | E57: 159 | F57: 363.0805175 | G57: 0 | H57: 295.6972603 | I57: 0 | J57: 0 | K57: 0 | L57: 0 | M57: 295.6972603 | N57: 07:15:00
B58: 2018-05-11T07:30:00 | C58: 970.821256 | D58: 385.4625 | E58: 159 | F58: 500 | G58: 0 | H58: 295.6972603 | I58: 0 | J58: 0 | K58: 16.12399576 | L58: 0 | M58: 295.6972603 | N58: 07:30:00
B59: 2018-05-11T07:45:00 | C59: 924.4444444 | D59: 385.4625 | E59: 159 | F59: 469.7471842 | G59: 0 | H59: 295.6972603 | I59: 0 | J59: 0 | K59: 0 | L59: 0 | M59: 295.6972603 | N59: 07:45:00
B60: 2018-05-11T08:00:00 | C60: 800.7729469 | D60: 385.4625 | E60: 210 | F60: 295.0756866 | G60: 0 | H60: 295.6972603 | I60: 0 | J60: 0 | K60: 0 | L60: 0 | M60: 295.6972603 | N60: 08:00:00
B61: 2018-05-11T08:15:00 | C61: 924.4444444 | D61: 385.4625 | E61: 210 | F61: 418.7471842 | G61: 0 | H61: 295.6972603 | I61: 0 | J61: 0 | K61: 0 | L61: 0 | M61: 295.6972603 | N61: 08:15:00
B62: 2018-05-11T08:30:00 | C62: 1108.405797 | D62: 385.4625 | E62: 210 | F62: 500 | G62: 0 | H62: 295.6972603 | I62: 0 | J62: 0 | K62: 102.7085368 | L62: 0 | M62: 295.6972603 | N62: 08:30:00
B63: 2018-05-11T08:45:00 | C63: 1026.47343 | D63: 385.4625 | E63: 210 | F63: 500 | G63: 0 | H63: 295.6972603 | I63: 0 | J63: 0 | K63: 20.77616968 | L63: 0 | M63: 295.6972603 | N63: 08:45:00
B64: 2018-05-11T09:00:00 | C64: 972.3671498 | D64: 385.4625 | E64: 253 | F64: 423.6698895 | G64: 0 | H64: 295.6972603 | I64: 0 | J64: 0 | K64: 0 | L64: 0 | M64: 295.6972603 | N64: 09:00:00
B65: 2018-05-11T09:15:00 | C65: 958.4541063 | D65: 385.4625 | E65: 253 | F65: 409.756846 | G65: 0 | H65: 295.6972603 | I65: 0 | J65: 0 | K65: 0 | L65: 0 | M65: 295.6972603 | N65: 09:15:00
B66: 2018-05-11T09:30:00 | C66: 1201.15942 | D66: 385.4625 | E66: 253 | F66: 500 | G66: 0 | H66: 295.6972603 | I66: 0 | J66: 0 | K66: 152.46216 | L66: 0 | M66: 295.6972603 | N66: 09:30:00
B67: 2018-05-11T09:45:00 | C67: 1247.536232 | D67: 385.4625 | E67: 253 | F67: 500 | G67: 0 | H67: 295.6972603 | I67: 0 | J67: 0 | K67: 198.8389716 | L67: 0 | M67: 295.6972603 | N67: 09:45:00
B68: 2018-05-11T10:00:00 | C68: 950.7246377 | D68: 385.4625 | E68: 279 | F68: 376.0273774 | G68: 0 | H68: 295.6972603 | I68: 0 | J68: 0 | K68: 0 | L68: 0 | M68: 295.6972603 | N68: 10:00:00
B69: 2018-05-11T10:15:00 | C69: 966.1835749 | D69: 385.4625 | E69: 279 | F69: 391.4863146 | G69: 0 | H69: 295.6972603 | I69: 0 | J69: 0 | K69: 0 | L69: 0 | M69: 295.6972603 | N69: 10:15:00
B70: 2018-05-11T10:30:00 | C70: 942.9951691 | D70: 385.4625 | E70: 279 | F70: 368.2979088 | G70: 0 | H70: 295.6972603 | I70: 0 | J70: 0 | K70: 0 | L70: 0 | M70: 295.6972603 | N70: 10:30:00
B71: 2018-05-11T10:45:00 | C71: 908.9855072 | D71: 385.4625 | E71: 279 | F71: 334.288247 | G71: 0 | H71: 295.6972603 | I71: 0 | J71: 0 | K71: 0 | L71: 0 | M71: 295.6972603 | N71: 10:45:00
B72: 2018-05-11T11:00:00 | C72: 939.9033816 | D72: 385.4625 | E72: 284 | F72: 360.2061214 | G72: 0 | H72: 295.6972603 | I72: 0 | J72: 0 | K72: 0 | L72: 0 | M72: 295.6972603 | N72: 11:00:00
B73: 2018-05-11T11:15:00 | C73: 879.6135266 | D73: 385.4625 | E73: 284 | F73: 299.9162663 | G73: 0 | H73: 295.6972603 | I73: 0 | J73: 0 | K73: 0 | L73: 0 | M73: 295.6972603 | N73: 11:15:00
B74: 2018-05-11T11:30:00 | C74: 902.8019324 | D74: 385.4625 | E74: 284 | F74: 323.1046721 | G74: 0 | H74: 295.6972603 | I74: 0 | J74: 0 | K74: 0 | L74: 0 | M74: 295.6972603 | N74: 11:30:00
B75: 2018-05-11T11:45:00 | C75: 1089.855072 | D75: 385.4625 | E75: 284 | F75: 500 | G75: 0 | H75: 295.6972603 | I75: 0 | J75: 0 | K75: 10.15781219 | L75: 0 | M75: 295.6972603 | N75: 11:45:00
B76: 2018-05-11T12:00:00 | C76: 1108.405797 | D76: 385.4625 | E76: 283 | F76: 500 | G76: 0 | H76: 295.6972603 | I76: 0 | J76: 0 | K76: 29.70853683 | L76: 0 | M76: 295.6972603 | N76: 12:00:00
B77: 2018-05-11T12:15:00 | C77: 1032.657005 | D77: 385.4625 | E77: 283 | F77: 453.9597446 | G77: 0 | H77: 295.6972603 | I77: 0 | J77: 0 | K77: 0 | L77: 0 | M77: 295.6972603 | N77: 12:15:00
B78: 2018-05-11T12:30:00 | C78: 1035.748792 | D78: 385.4625 | E78: 283 | F78: 457.051532 | G78: 0 | H78: 295.6972603 | I78: 0 | J78: 0 | K78: 0 | L78: 0 | M78: 295.6972603 | N78: 12:30:00
B79: 2018-05-11T12:45:00 | C79: 1174.879227 | D79: 385.4625 | E79: 283 | F79: 500 | G79: 0 | H79: 295.6972603 | I79: 0 | J79: 0 | K79: 96.18196678 | L79: 0 | M79: 295.6972603 | N79: 12:45:00
B80: 2018-05-11T13:00:00 | C80: 1028.019324 | D80: 385.4625 | E80: 250 | F80: 482.3220634 | G80: 0 | H80: 295.6972603 | I80: 0 | J80: 0 | K80: 0 | L80: 0 | M80: 295.6972603 | N80: 13:00:00
B81: 2018-05-11T13:15:00 | C81: 1035.748792 | D81: 385.4625 | E81: 250 | F81: 490.051532 | G81: 0 | H81: 295.6972603 | I81: 0 | J81: 0 | K81: 0 | L81: 0 | M81: 295.6972603 | N81: 13:15:00
B82: 2018-05-11T13:30:00 | C82: 1100.676329 | D82: 385.4625 | E82: 250 | F82: 500 | G82: 0 | H82: 295.6972603 | I82: 0 | J82: 0 | K82: 54.97906823 | L82: 0 | M82: 295.6972603 | N82: 13:30:00
B83: 2018-05-11T13:45:00 | C83: 1063.574879 | D83: 385.4625 | E83: 250 | F83: 500 | G83: 0 | H83: 295.6972603 | I83: 0 | J83: 0 | K83: 17.87761895 | L83: 0 | M83: 295.6972603 | N83: 13:45:00
B84: 2018-05-11T14:00:00 | C84: 1198.067633 | D84: 385.4625 | E84: 204 | F84: 500 | G84: 0 | H84: 295.6972603 | I84: 0 | J84: 0 | K84: 198.3703726 | L84: 0 | M84: 295.6972603 | N84: 14:00:00
B85: 2018-05-11T14:15:00 | C85: 1222.801932 | D85: 385.4625 | E85: 204 | F85: 500 | G85: 0 | H85: 295.6972603 | I85: 0 | J85: 0 | K85: 223.1046721 | L85: 0 | M85: 295.6972603 | N85: 14:15:00
B86: 2018-05-11T14:30:00 | C86: 1153.236715 | D86: 385.4625 | E86: 204 | F86: 500 | G86: 0 | H86: 295.6972603 | I86: 0 | J86: 0 | K86: 153.5394547 | L86: 0 | M86: 295.6972603 | N86: 14:30:00
B87: 2018-05-11T14:45:00 | C87: 1096.038647 | D87: 385.4625 | E87: 204 | F87: 500 | G87: 0 | H87: 295.6972603 | I87: 0 | J87: 0 | K87: 96.34138707 | L87: 0 | M87: 295.6972603 | N87: 14:45:00
B88: 2018-05-11T15:00:00 | C88: 1312.463768 | D88: 385.4625 | E88: 162 | F88: 500 | G88: 0 | H88: 295.6972603 | I88: 0 | J88: 0 | K88: 354.7665078 | L88: 0 | M88: 295.6972603 | N88: 15:00:00
B89: 2018-05-11T15:15:00 | C89: 1365.024155 | D89: 385.4625 | E89: 162 | F89: 500 | G89: 0 | H89: 295.6972603 | I89: 0 | J89: 0 | K89: 407.3268943 | L89: 0 | M89: 295.6972603 | N89: 15:15:00
B90: 2018-05-11T15:30:00 | C90: 1327.922705 | D90: 385.4625 | E90: 162 | F90: 500 | G90: 0 | H90: 295.6972603 | I90: 0 | J90: 0 | K90: 370.225445 | L90: 0 | M90: 295.6972603 | N90: 15:30:00
B91: 2018-05-11T15:45:00 | C91: 1238.26087 | D91: 385.4625 | E91: 162 | F91: 500 | G91: 0 | H91: 295.6972603 | I91: 0 | J91: 0 | K91: 280.5636093 | L91: 0 | M91: 295.6972603 | N91: 15:45:00
B92: 2018-05-11T16:00:00 | C92: 1264.541063 | D92: 385.4625 | E92: 99 | F92: 500 | G92: 0 | H92: 295.6972603 | I92: 0 | J92: 0 | K92: 369.8438025 | L92: =IF(A92-G92-H92-I92-J92-D92-C92-K92>0,A92-G92-H92-I92-J92-D92-C92-K92,0) -> 0 | M92: 295.6972603 | N92: 16:00:00
B93: 2018-05-11T16:15:00 | C93: 1382.028986 | D93: 385.4625 | E93: 99 | F93: 500 | G93: 0 | H93: 295.6972603 | I93: 0 | J93: 0 | K93: 487.3317252 | L93: 0 | M93: =SUM(G93:J93) -> 295.6972603 | N93: 16:15:00
B94: 2018-05-11T16:30:00 | C94: 1491.78744 | D94: 385.4625 | E94: 99 | F94: 500 | G94: 0 | H94: 295.6972603 | I94: 0 | J94: 0 | K94: 597.0901793 | L94: 0 | M94: 295.6972603 | N94: 16:30:00
B95: 2018-05-11T16:45:00 | C95: 1600 | D95: 385.4625 | E95: 99 | F95: 500 | G95: 0 | H95: 295.6972603 | I95: 0 | J95: 0 | K95: 705.3027397 | L95: 0 | M95: 295.6972603 | N95: 16:45:00
B96: 2018-05-11T17:00:00 | C96: 1485.603865 | D96: 385.4625 | E96: 44 | F96: 500 | G96: 0 | H96: 295.6972603 | I96: 0 | J96: 0 | K96: 645.9066045 | L96: 0 | M96: 295.6972603 | N96: 17:00:00
B97: 2018-05-11T17:15:00 | C97: 1457.777778 | D97: 385.4625 | E97: 44 | F97: 500 | G97: 0 | H97: 295.6972603 | I97: 0 | J97: 0 | K97: 618.0805175 | L97: 0 | M97: 295.6972603 | N97: 17:15:00
B98: 2018-05-11T17:30:00 | C98: 1513.429952 | D98: 385.4625 | E98: 44 | F98: 500 | G98: 0 | H98: 295.6972603 | I98: 0 | J98: 0 | K98: 673.7326914 | L98: 0 | M98: 295.6972603 | N98: 17:30:00
B99: 2018-05-11T17:45:00 | C99: 1539.710145 | D99: 385.4625 | E99: 44 | F99: 500 | G99: 0 | H99: 295.6972603 | I99: 0 | J99: 0 | K99: 700.0128847 | L99: 0 | M99: 295.6972603 | N99: 17:45:00
B100: 2018-05-11T18:00:00 | C100: 1351.111111 | D100: 385.4625 | E100: 10 | F100: 500 | G100: 0 | H100: 295.6972603 | I100: 0 | J100: 0 | K100: 545.4138508 | L100: 0 | M100: 295.6972603 | N100: 18:00:00
B101: 2018-05-11T18:15:00 | C101: 1190.338164 | D101: 385.4625 | E101: 10 | F101: 500 | G101: 0 | H101: 295.6972603 | I101: 0 | J101: 0 | K101: 384.640904 | L101: 0 | M101: 295.6972603 | N101: 18:15:00
B102: 2018-05-11T18:30:00 | C102: 1272.270531 | D102: 385.4625 | E102: 10 | F102: 500 | G102: 0 | H102: 295.6972603 | I102: 0 | J102: 0 | K102: 466.5732711 | L102: 0 | M102: 295.6972603 | N102: 18:30:00
B103: 2018-05-11T18:45:00 | C103: 1312.463768 | D103: 385.4625 | E103: 10 | F103: 500 | G103: 0 | H103: 295.6972603 | I103: 0 | J103: 0 | K103: 506.7665078 | L103: 0 | M103: 295.6972603 | N103: 18:45:00
B104: 2018-05-11T19:00:00 | C104: 1250.628019 | D104: 385.4625 | E104: 0 | F104: 500 | G104: 0 | H104: 295.6972603 | I104: 0 | J104: 0 | K104: 454.930759 | L104: 0 | M104: 295.6972603 | N104: 19:00:00
B105: 2018-05-11T19:15:00 | C105: 1153.236715 | D105: 385.4625 | E105: 0 | F105: 500 | G105: 0 | H105: 295.6972603 | I105: 0 | J105: 0 | K105: 357.5394547 | L105: 0 | M105: 295.6972603 | N105: 19:15:00
B106: 2018-05-11T19:30:00 | C106: 1199.613527 | D106: 385.4625 | E106: 0 | F106: 500 | G106: 0 | H106: 295.6972603 | I106: 0 | J106: 0 | K106: 403.9162663 | L106: 0 | M106: 295.6972603 | N106: 19:30:00
B107: 2018-05-11T19:45:00 | C107: 1207.342995 | D107: 385.4625 | E107: 0 | F107: 500 | G107: 0 | H107: 295.6972603 | I107: 0 | J107: 0 | K107: 411.6457349 | L107: 0 | M107: 295.6972603 | N107: 19:45:00
B108: 2018-05-11T20:00:00 | C108: 1119.227053 | D108: 385.4625 | E108: 0 | F108: 500 | G108: 0 | H108: 295.6972603 | I108: 0 | J108: 0 | K108: 323.5297929 | L108: 0 | M108: 295.6972603 | N108: 20:00:00
B109: 2018-05-11T20:15:00 | C109: 1116.135266 | D109: 385.4625 | E109: 0 | F109: 500 | G109: 0 | H109: 295.6972603 | I109: 0 | J109: 0 | K109: 320.4380054 | L109: 0 | M109: 295.6972603 | N109: 20:15:00
B110: 2018-05-11T20:30:00 | C110: 1092.94686 | D110: 385.4625 | E110: 0 | F110: 500 | G110: 0 | H110: 295.6972603 | I110: 0 | J110: 0 | K110: 297.2495996 | L110: 0 | M110: 295.6972603 | N110: 20:30:00
B111: 2018-05-11T20:45:00 | C111: 1014.10628 | D111: 385.4625 | E111: 0 | F111: 500 | G111: 0 | H111: 295.6972603 | I111: 0 | J111: 0 | K111: 218.4090199 | L111: 0 | M111: 295.6972603 | N111: 20:45:00
B112: 2018-05-11T21:00:00 | C112: 1009.468599 | D112: 385.4625 | E112: 0 | F112: 500 | G112: 0 | H112: 295.6972603 | I112: 0 | J112: 0 | K112: 213.7713388 | L112: 0 | M112: 295.6972603 | N112: 21:00:00
B113: 2018-05-11T21:15:00 | C113: 1126.956522 | D113: 385.4625 | E113: 0 | F113: 500 | G113: 0 | H113: 295.6972603 | I113: 0 | J113: 0 | K113: 331.2592615 | L113: 0 | M113: 295.6972603 | N113: 21:15:00
B114: 2018-05-11T21:30:00 | C114: 1045.024155 | D114: 385.4625 | E114: 0 | F114: 500 | G114: 0 | H114: 295.6972603 | I114: 0 | J114: 0 | K114: 249.3268943 | L114: 0 | M114: 295.6972603 | N114: 21:30:00
B115: 2018-05-11T21:45:00 | C115: 973.9130435 | D115: 385.4625 | E115: 0 | F115: 500 | G115: 0 | H115: 295.6972603 | I115: 0 | J115: 0 | K115: 178.2157832 | L115: 0 | M115: 295.6972603 | N115: 21:45:00
B116: 2018-05-11T22:00:00 | C116: 871.884058 | D116: 385.4625 | E116: 0 | F116: 500 | G116: 0 | H116: 295.6972603 | I116: 0 | J116: 0 | K116: 76.1867977 | L116: 0 | M116: 295.6972603 | N116: 22:00:00
B117: 2018-05-11T22:15:00 | C117: 1003.285024 | D117: 385.4625 | E117: 0 | F117: 500 | G117: 0 | H117: 295.6972603 | I117: 0 | J117: 0 | K117: 207.5877639 | L117: 0 | M117: 295.6972603 | N117: 22:15:00
B118: 2018-05-11T22:30:00 | C118: 1017.198068 | D118: 385.4625 | E118: 0 | F118: 500 | G118: 0 | H118: 295.6972603 | I118: 0 | J118: 0 | K118: 221.5008074 | L118: 0 | M118: 295.6972603 | N118: 22:30:00
B119: 2018-05-11T22:45:00 | C119: 850.2415459 | D119: 385.4625 | E119: 0 | F119: 500 | G119: 0 | H119: 295.6972603 | I119: 0 | J119: 0 | K119: 54.54428562 | L119: 0 | M119: 295.6972603 | N119: 22:45:00
B120: 2018-05-11T23:00:00 | C120: 871.884058 | D120: 385.4625 | E120: 0 | F120: 500 | G120: 0 | H120: 295.6972603 | I120: 0 | J120: 0 | K120: 76.1867977 | L120: 0 | M120: 295.6972603 | N120: 23:00:00
B121: 2018-05-11T23:15:00 | C121: 902.8019324 | D121: 385.4625 | E121: 0 | F121: 500 | G121: 0 | H121: 295.6972603 | I121: 0 | J121: 0 | K121: 107.1046721 | L121: 0 | M121: 295.6972603 | N121: 23:15:00
B122: 2018-05-11T23:30:00 | C122: 939.9033816 | D122: 385.4625 | E122: 0 | F122: 500 | G122: 0 | H122: 295.6972603 | I122: 0 | J122: 0 | K122: 144.2061214 | L122: 0 | M122: 295.6972603 | N122: 23:30:00
B123: 2018-05-11T23:45:00 | C123: 763.6714976 | D123: 385.4625 | E123: 0 | F123: 467.9742373 | G123: 0 | H123: 295.6972603 | I123: 0 | J123: 0 | K123: 0 | L123: 0 | M123: 295.6972603 | N123: 23:45:00
B126: 2018-08-30 | C126: 1099.130435 | D126: 4.3875 | E126: 0 | F126: 500 | G126: 0 | H126: 355 | I126: 244.1304348 | J126: 0 | L126: 0 | M126: =SUM(G126:K126) -> 599.1304348 | N126: 00:00:00 | O126: 0
B127: 2018-08-30T00:15:00 | C127: 1060.483092 | D127: 4.3875 | E127: 0 | F127: 500 | G127: 0 | H127: 347.4830918 | I127: 213 | J127: 0 | L127: 0 | M127: 560.4830918 | N127: 00:15:00 | O127: 0
B128: 2018-08-30T00:30:00 | C128: 1068.21256 | D128: 4.3875 | E128: 0 | F128: 500 | G128: 0 | H128: 355 | I128: 213.2125604 | J128: 0 | L128: 0 | M128: 568.2125604 | N128: 00:30:00 | O128: 0
B129: 2018-08-30T00:45:00 | C129: 1139.323671 | D129: 4.3875 | E129: 0 | F129: 500 | G129: 0 | H129: 355 | I129: 284.3236715 | J129: 0 | L129: 0 | M129: 639.3236715 | N129: 00:45:00 | O129: 0
B130: 2018-08-30T01:00:00 | C130: 1119.227053 | D130: 4.3875 | E130: 0 | F130: 500 | G130: 0 | H130: 355 | I130: 264.2270531 | J130: 0 | L130: 0 | M130: 619.2270531 | N130: 01:00:00 | O130: 0
B131: 2018-08-30T01:15:00 | C131: 1097.584541 | D131: 4.3875 | E131: 0 | F131: 500 | G131: 0 | H131: 355 | I131: 242.5845411 | J131: 0 | L131: 0 | M131: 597.5845411 | N131: 01:15:00 | O131: 0
B132: 2018-08-30T01:30:00 | C132: 1074.396135 | D132: 4.3875 | E132: 0 | F132: 500 | G132: 0 | H132: 355 | I132: 219.3961353 | J132: 0 | L132: 0 | M132: 574.3961353 | N132: 01:30:00 | O132: 0
B133: 2018-08-30T01:45:00 | C133: 1077.487923 | D133: 4.3875 | E133: 0 | F133: 500 | G133: 0 | H133: 355 | I133: 222.4879227 | J133: 0 | L133: 0 | M133: 577.4879227 | N133: 01:45:00 | O133: 0
B134: 2018-08-30T02:00:00 | C134: 1018.743961 | D134: 4.3875 | E134: 0 | F134: 500 | G134: 0 | H134: 305.7439614 | I134: 213 | J134: 0 | L134: 0 | M134: 518.7439614 | N134: 02:00:00 | O134: 0
B135: 2018-08-30T02:15:00 | C135: 953.8164251 | D135: 4.3875 | E135: 0 | F135: 500 | G135: 0 | H135: 240.8164251 | I135: 213 | J135: 0 | L135: 0 | M135: 453.8164251 | N135: 02:15:00 | O135: 0
B136: 2018-08-30T02:30:00 | C136: 989.3719807 | D136: 4.3875 | E136: 0 | F136: 500 | G136: 0 | H136: 276.3719807 | I136: 213 | J136: 0 | L136: 0 | M136: 489.3719807 | N136: 02:30:00 | O136: 0
B137: 2018-08-30T02:45:00 | C137: 885.7971014 | D137: 4.3875 | E137: 0 | F137: 500 | G137: 0 | H137: 172.7971014 | I137: 213 | J137: 0 | L137: 0 | M137: 385.7971014 | N137: 02:45:00 | O137: 0
B138: 2018-08-30T03:00:00 | C138: 848.6956522 | D138: 4.3875 | E138: 0 | F138: 500 | G138: 0 | H138: 348.6956522 | I138: 0 | J138: 0 | L138: 0 | M138: 348.6956522 | N138: 03:00:00 | O138: 0
B139: 2018-08-30T03:15:00 | C139: 828.5990338 | D139: 4.3875 | E139: 0 | F139: 500 | G139: 0 | H139: 328.5990338 | I139: 0 | J139: 0 | L139: 0 | M139: 328.5990338 | N139: 03:15:00 | O139: 0
B140: 2018-08-30T03:30:00 | C140: 848.6956522 | D140: 4.3875 | E140: 0 | F140: 500 | G140: 0 | H140: 348.6956522 | I140: 0 | J140: 0 | L140: 0 | M140: 348.6956522 | N140: 03:30:00 | O140: 0
B141: 2018-08-30T03:45:00 | C141: 850.2415459 | D141: 4.3875 | E141: 0 | F141: 500 | G141: 0 | H141: 350.2415459 | I141: 0 | J141: 0 | L141: 0 | M141: 350.2415459 | N141: 03:45:00 | O141: 0
B142: 2018-08-30T04:00:00 | C142: 791.4975845 | D142: 4.3875 | E142: 10 | F142: 500 | G142: 0 | H142: 281.4975845 | I142: 0 | J142: 0 | L142: 0 | M142: 281.4975845 | N142: 04:00:00 | O142: 0
B143: 2018-08-30T04:15:00 | C143: 743.5748792 | D143: 4.3875 | E143: 10 | F143: 500 | G143: 0 | H143: 233.5748792 | I143: 0 | J143: 0 | L143: 0 | M143: 233.5748792 | N143: 04:15:00 | O143: 0
B144: 2018-08-30T04:30:00 | C144: 737.3913043 | D144: 4.3875 | E144: 10 | F144: 500 | G144: 0 | H144: 227.3913043 | I144: 0 | J144: 0 | L144: 0 | M144: 227.3913043 | N144: 04:30:00 | O144: 0
B145: 2018-08-30T04:45:00 | C145: 782.2222222 | D145: 4.3875 | E145: 10 | F145: 500 | G145: 0 | H145: 272.2222222 | I145: 0 | J145: 0 | L145: 0 | M145: 272.2222222 | N145: 04:45:00 | O145: 0
B146: 2018-08-30T05:00:00 | C146: 745.1207729 | D146: 4.3875 | E146: 32 | F146: 500 | G146: 0 | H146: 213.1207729 | I146: 0 | J146: 0 | L146: 0 | M146: 213.1207729 | N146: 05:00:00 | O146: 0
B147: 2018-08-30T05:15:00 | C147: 715.7487923 | D147: 4.3875 | E147: 32 | F147: 470.7487923 | G147: 0 | H147: 213 | I147: 0 | J147: 0 | L147: 0 | M147: 213 | N147: 05:15:00 | O147: 0
B148: 2018-08-30T05:30:00 | C148: 771.4009662 | D148: 4.3875 | E148: 32 | F148: 500 | G148: 0 | H148: 239.4009662 | I148: 0 | J148: 0 | L148: 0 | M148: 239.4009662 | N148: 05:30:00 | O148: 0
B149: 2018-08-30T05:45:00 | C149: 862.6086957 | D149: 4.3875 | E149: 32 | F149: 500 | G149: 0 | H149: 330.6086957 | I149: 0 | J149: 0 | L149: 0 | M149: 330.6086957 | N149: 05:45:00 | O149: 0
B150: 2018-08-30T06:00:00 | C150: 867.2463768 | D150: 4.3875 | E150: 86 | F150: 500 | G150: 0 | H150: 281.2463768 | I150: 0 | J150: 0 | L150: 0 | M150: 281.2463768 | N150: 06:00:00 | O150: 0
B151: 2018-08-30T06:15:00 | C151: 842.5120773 | D151: 4.3875 | E151: 86 | F151: 500 | G151: 0 | H151: 256.5120773 | I151: 0 | J151: 0 | L151: 0 | M151: 256.5120773 | N151: 06:15:00 | O151: 0
B152: 2018-08-30T06:30:00 | C152: 919.8067633 | D152: 4.3875 | E152: 86 | F152: 500 | G152: 0 | H152: 333.8067633 | I152: 0 | J152: 0 | L152: 0 | M152: 333.8067633 | N152: 06:30:00 | O152: 0
B153: 2018-08-30T06:45:00 | C153: 956.9082126 | D153: 4.3875 | E153: 86 | F153: 500 | G153: 0 | H153: 157.9082126 | I153: 213 | J153: 0 | L153: 0 | M153: 370.9082126 | N153: 06:45:00 | O153: 0
B154: 2018-08-30T07:00:00 | C154: 1015.652174 | D154: 4.3875 | E154: 154 | F154: 500 | G154: 0 | H154: 148.6521739 | I154: 213 | J154: 0 | L154: 0 | M154: 361.6521739 | N154: 07:00:00 | O154: 0
B155: 2018-08-30T07:15:00 | C155: 1006.376812 | D155: 4.3875 | E155: 154 | F155: 500 | G155: 0 | H155: 352.3768116 | I155: 0 | J155: 0 | L155: 0 | M155: 352.3768116 | N155: 07:15:00 | O155: 0
B156: 2018-08-30T07:30:00 | C156: 978.5507246 | D156: 4.3875 | E156: 154 | F156: 500 | G156: 0 | H156: 324.5507246 | I156: 0 | J156: 0 | L156: 0 | M156: 324.5507246 | N156: 07:30:00 | O156: 0
B157: 2018-08-30T07:45:00 | C157: 990.9178744 | D157: 4.3875 | E157: 154 | F157: 500 | G157: 0 | H157: 336.9178744 | I157: 0 | J157: 0 | L157: 0 | M157: 336.9178744 | N157: 07:45:00 | O157: 0
B158: 2018-08-30T08:00:00 | C158: 938.3574879 | D158: 4.3875 | E158: 217 | F158: 500 | G158: 0 | H158: 221.3574879 | I158: 0 | J158: 0 | L158: 0 | M158: 221.3574879 | N158: 08:00:00 | O158: 0
B159: 2018-08-30T08:15:00 | C159: 907.4396135 | D159: 4.3875 | E159: 217 | F159: 477.4396135 | G159: 0 | H159: 213 | I159: 0 | J159: 0 | L159: 0 | M159: 213 | N159: 08:15:00 | O159: 0
B160: 2018-08-30T08:30:00 | C160: 975.4589372 | D160: 4.3875 | E160: 217 | F160: 500 | G160: 0 | H160: 258.4589372 | I160: 0 | J160: 0 | L160: 0 | M160: 258.4589372 | N160: 08:30:00 | O160: 0
B161: 2018-08-30T08:45:00 | C161: 967.7294686 | D161: 4.3875 | E161: 217 | F161: 500 | G161: 0 | H161: 250.7294686 | I161: 0 | J161: 0 | L161: 0 | M161: 250.7294686 | N161: 08:45:00 | O161: 0
B162: 2018-08-30T09:00:00 | C162: 1014.10628 | D162: 4.3875 | E162: 269 | F162: 500 | G162: 0 | H162: 245.1062802 | I162: 0 | J162: 0 | L162: 0 | M162: 245.1062802 | N162: 09:00:00 | O162: 0
B163: 2018-08-30T09:15:00 | C163: 1096.038647 | D163: 4.3875 | E163: 269 | F163: 500 | G163: 0 | H163: 327.0386473 | I163: 0 | J163: 0 | L163: 0 | M163: 327.0386473 | N163: 09:15:00 | O163: 0
B164: 2018-08-30T09:30:00 | C164: 1088.309179 | D164: 4.3875 | E164: 269 | F164: 500 | G164: 0 | H164: 319.3091787 | I164: 0 | J164: 0 | L164: 0 | M164: 319.3091787 | N164: 09:30:00 | O164: 0
B165: 2018-08-30T09:45:00 | C165: 1024.927536 | D165: 4.3875 | E165: 269 | F165: 500 | G165: 0 | H165: 255.9275362 | I165: 0 | J165: 0 | L165: 0 | M165: 255.9275362 | N165: 09:45:00 | O165: 0
B166: 2018-08-30T10:00:00 | C166: 1045.024155 | D166: 4.3875 | E166: 297 | F166: 500 | G166: 0 | H166: 248.0241546 | I166: 0 | J166: 0 | L166: 0 | M166: 248.0241546 | N166: 10:00:00 | O166: 0
B167: 2018-08-30T10:15:00 | C167: 1063.574879 | D167: 4.3875 | E167: 297 | F167: 500 | G167: 0 | H167: 266.5748792 | I167: 0 | J167: 0 | L167: 0 | M167: 266.5748792 | N167: 10:15:00 | O167: 0
B168: 2018-08-30T10:30:00 | C168: 1065.120773 | D168: 4.3875 | E168: 297 | F168: 500 | G168: 0 | H168: 268.1207729 | I168: 0 | J168: 0 | L168: 0 | M168: 268.1207729 | N168: 10:30:00 | O168: 0
B169: 2018-08-30T10:45:00 | C169: 1215.072464 | D169: 4.3875 | E169: 297 | F169: 500 | G169: 0 | H169: 205.0724638 | I169: 213 | J169: 0 | L169: 0 | M169: 418.0724638 | N169: 10:45:00 | O169: 0
B170: 2018-08-30T11:00:00 | C170: 1134.68599 | D170: 4.3875 | E170: 308 | F170: 500 | G170: 0 | H170: 326.6859903 | I170: 0 | J170: 0 | L170: 0 | M170: 326.6859903 | N170: 11:00:00 | O170: 0
B171: 2018-08-30T11:15:00 | C171: 1218.164251 | D171: 4.3875 | E171: 308 | F171: 500 | G171: 0 | H171: 197.1642512 | I171: 213 | J171: 0 | L171: 0 | M171: 410.1642512 | N171: 11:15:00 | O171: 0
B172: 2018-08-30T11:30:00 | C172: 1465.507246 | D172: 4.3875 | E172: 308 | F172: 500 | G172: 0 | H172: 355 | I172: 302.5072464 | J172: 0 | L172: 0 | M172: 657.5072464 | N172: 11:30:00 | O172: 0
B173: 2018-08-30T11:45:00 | C173: 1480.966184 | D173: 4.3875 | E173: 308 | F173: 500 | G173: 0 | H173: 355 | I173: 317.9661836 | J173: 0 | L173: 0 | M173: 672.9661836 | N173: 11:45:00 | O173: 0
B174: 2018-08-30T12:00:00 | C174: 1445.410628 | D174: 4.3875 | E174: 296 | F174: 500 | G174: 0 | H174: 355 | I174: 294.410628 | J174: 0 | L174: 0 | M174: 649.410628 | N174: 12:00:00 | O174: 0
B175: 2018-08-30T12:15:00 | C175: 1382.028986 | D175: 4.3875 | E175: 296 | F175: 500 | G175: 0 | H175: 355 | I175: 231.0289855 | J175: 0 | L175: 0 | M175: 586.0289855 | N175: 12:15:00 | O175: 0
B176: 2018-08-30T12:30:00 | C176: 1428.405797 | D176: 4.3875 | E176: 296 | F176: 500 | G176: 0 | H176: 355 | I176: 277.4057971 | J176: 0 | L176: 0 | M176: 632.4057971 | N176: 12:30:00 | O176: 0
B177: 2018-08-30T12:45:00 | C177: 1378.937198 | D177: 4.3875 | E177: 296 | F177: 500 | G177: 0 | H177: 355 | I177: 227.9371981 | J177: 0 | L177: 0 | M177: 582.9371981 | N177: 12:45:00 | O177: 0
B178: 2018-08-30T13:00:00 | C178: 1422.222222 | D178: 4.3875 | E178: 265 | F178: 500 | G178: 0 | H178: 355 | I178: 302.2222222 | J178: 0 | L178: 0 | M178: 657.2222222 | N178: 13:00:00 | O178: 0
B179: 2018-08-30T13:15:00 | C179: 1428.405797 | D179: 4.3875 | E179: 265 | F179: 500 | G179: 0 | H179: 355 | I179: 308.4057971 | J179: 0 | L179: 0 | M179: 663.4057971 | N179: 13:15:00 | O179: 0
B180: 2018-08-30T13:30:00 | C180: 1502.608696 | D180: 4.3875 | E180: 265 | F180: 500 | G180: 0 | H180: 355 | I180: 169.6086957 | J180: 213 | L180: 0 | M180: 737.6086957 | N180: 13:30:00 | O180: 0
B181: 2018-08-30T13:45:00 | C181: 1484.057971 | D181: 4.3875 | E181: 265 | F181: 500 | G181: 0 | H181: 355 | I181: 151.057971 | J181: 213 | L181: 0 | M181: 719.057971 | N181: 13:45:00 | O181: 0
B182: 2018-08-30T14:00:00 | C182: 1459.323671 | D182: 4.3875 | E182: 216 | F182: 500 | G182: 0 | H182: 355 | I182: 175.3236715 | J182: 213 | L182: 0 | M182: 743.3236715 | N182: 14:00:00 | O182: 0
B183: 2018-08-30T14:15:00 | C183: 1428.405797 | D183: 4.3875 | E183: 216 | F183: 500 | G183: 0 | H183: 355 | I183: 144.4057971 | J183: 213 | L183: 0 | M183: 712.4057971 | N183: 14:15:00 | O183: 0
B184: 2018-08-30T14:30:00 | C184: 1513.429952 | D184: 4.3875 | E184: 216 | F184: 500 | G184: 0 | H184: 355 | I184: 229.4299517 | J184: 213 | L184: 0 | M184: 797.4299517 | N184: 14:30:00 | O184: 0
B185: 2018-08-30T14:45:00 | C185: 1518.067633 | D185: 4.3875 | E185: 216 | F185: 500 | G185: 0 | H185: 355 | I185: 234.0676329 | J185: 213 | L185: 0 | M185: 802.0676329 | N185: 14:45:00 | O185: 0
B186: 2018-08-30T15:00:00 | C186: 1527.342995 | D186: 4.3875 | E186: 155 | F186: 500 | G186: 0 | H186: 355 | I186: 304.3429952 | J186: 213 | L186: 0 | M186: 872.3429952 | N186: 15:00:00 | O186: 0
B187: 2018-08-30T15:15:00 | C187: 1521.15942 | D187: 4.3875 | E187: 155 | F187: 500 | G187: 0 | H187: 355 | I187: 298.1594203 | J187: 213 | L187: 0 | M187: 866.1594203 | N187: 15:15:00 | O187: 0
B188: 2018-08-30T15:30:00 | C188: 1528.888889 | D188: 4.3875 | E188: 155 | F188: 500 | G188: 0 | H188: 355 | I188: 305.8888889 | J188: 213 | L188: 0 | M188: 873.8888889 | N188: 15:30:00 | O188: 0
B189: 2018-08-30T15:45:00 | C189: 1510.338164 | D189: 4.3875 | E189: 155 | F189: 500 | G189: 0 | H189: 355 | I189: 287.3381643 | J189: 213 | L189: 0 | M189: 855.3381643 | N189: 15:45:00 | O189: 0
B190: 2018-08-30T16:00:00 | C190: 1539.710145 | D190: 4.3875 | E190: 91 | F190: 500 | G190: 0 | H190: 355 | I190: 355 | J190: 238.7101449 | L190: 0 | M190: =SUM(G190:K190) -> 948.7101449 | N190: 16:00:00 | O190: 0
B191: 2018-08-30T16:15:00 | C191: 1535.072464 | D191: 4.3875 | E191: 91 | F191: 500 | G191: 0 | H191: 355 | I191: 355 | J191: 234.0724638 | L191: 0 | M191: 944.0724638 | N191: 16:15:00 | O191: 0
B192: 2018-08-30T16:30:00 | C192: 1536.618357 | D192: 4.3875 | E192: 91 | F192: 500 | G192: 0 | H192: 355 | I192: 355 | J192: 235.6183575 | L192: 0 | M192: 945.6183575 | N192: 16:30:00 | O192: 0
B193: 2018-08-30T16:45:00 | C193: 1518.067633 | D193: 4.3875 | E193: 91 | F193: 500 | G193: 0 | H193: 355 | I193: 355 | J193: 217.0676329 | L193: 0 | M193: 927.0676329 | N193: 16:45:00 | O193: 0
B194: 2018-08-30T17:00:00 | C194: 1456.231884 | D194: 4.3875 | E194: 40 | F194: 500 | G194: 0 | H194: 355 | I194: 348.2318841 | J194: 213 | L194: 0 | M194: 916.2318841 | N194: 17:00:00 | O194: 0
B195: 2018-08-30T17:15:00 | C195: 1406.763285 | D195: 4.3875 | E195: 40 | F195: 500 | G195: 0 | H195: 355 | I195: 298.763285 | J195: 213 | L195: 0 | M195: 866.763285 | N195: 17:15:00 | O195: 0
B196: 2018-08-30T17:30:00 | C196: 1412.94686 | D196: 4.3875 | E196: 40 | F196: 500 | G196: 0 | H196: 355 | I196: 304.9468599 | J196: 213 | L196: 0 | M196: 872.9468599 | N196: 17:30:00 | O196: 0
B197: 2018-08-30T17:45:00 | C197: 1391.304348 | D197: 4.3875 | E197: 40 | F197: 500 | G197: 0 | H197: 355 | I197: 283.3043478 | J197: 213 | L197: 0 | M197: 851.3043478 | N197: 17:45:00 | O197: 0
B198: 2018-08-30T18:00:00 | C198: 1402.125604 | D198: 4.3875 | E198: 7 | F198: 500 | G198: 0 | H198: 355 | I198: 327.1256039 | J198: 213 | L198: 0 | M198: 895.1256039 | N198: 18:00:00 | O198: 0
B199: 2018-08-30T18:15:00 | C199: 1249.082126 | D199: 4.3875 | E199: 7 | F199: 500 | G199: 0 | H199: 355 | I199: 174.0821256 | J199: 213 | L199: 0 | M199: 742.0821256 | N199: 18:15:00 | O199: 0
B200: 2018-08-30T18:30:00 | C200: 1256.811594 | D200: 4.3875 | E200: 7 | F200: 500 | G200: 0 | H200: 355 | I200: 181.8115942 | J200: 213 | L200: 0 | M200: 749.8115942 | N200: 18:30:00 | O200: 0
B201: 2018-08-30T18:45:00 | C201: 1343.381643 | D201: 4.3875 | E201: 7 | F201: 500 | G201: 0 | H201: 355 | I201: 268.3816425 | J201: 213 | L201: 0 | M201: 836.3816425 | N201: 18:45:00 | O201: 0
B202: 2018-08-30T19:00:00 | C202: 1264.541063 | D202: 4.3875 | E202: 0 | F202: 500 | G202: 0 | H202: 355 | I202: 196.5410628 | J202: 213 | L202: 0 | M202: 764.5410628 | N202: 19:00:00 | O202: 0
B203: 2018-08-30T19:15:00 | C203: 1238.26087 | D203: 4.3875 | E203: 0 | F203: 500 | G203: 0 | H203: 355 | I203: 170.2608696 | J203: 213 | L203: 0 | M203: 738.2608696 | N203: 19:15:00 | O203: 0
B204: 2018-08-30T19:30:00 | C204: 1295.458937 | D204: 4.3875 | E204: 0 | F204: 500 | G204: 0 | H204: 355 | I204: 227.4589372 | J204: 213 | L204: 0 | M204: 795.4589372 | N204: 19:30:00 | O204: 0
B205: 2018-08-30T19:45:00 | C205: 1289.275362 | D205: 4.3875 | E205: 0 | F205: 500 | G205: 0 | H205: 355 | I205: 221.2753623 | J205: 213 | L205: 0 | M205: 789.2753623 | N205: 19:45:00 | O205: 0
B206: 2018-08-30T20:00:00 | C206: 1222.801932 | D206: 4.3875 | E206: 0 | F206: 500 | G206: 0 | H206: 355 | I206: 154.8019324 | J206: 213 | L206: 0 | M206: 722.8019324 | N206: 20:00:00 | O206: 0
B207: 2018-08-30T20:15:00 | C207: 1130.048309 | D207: 4.3875 | E207: 0 | F207: 500 | G207: 0 | H207: 355 | I207: 275.0483092 | J207: 0 | L207: 0 | M207: 630.0483092 | N207: 20:15:00 | O207: 0
B208: 2018-08-30T20:30:00 | C208: 1162.512077 | D208: 4.3875 | E208: 0 | F208: 500 | G208: 0 | H208: 355 | I208: 307.5120773 | J208: 0 | L208: 0 | M208: 662.5120773 | N208: 20:30:00 | O208: 0
B209: 2018-08-30T20:45:00 | C209: 1196.521739 | D209: 4.3875 | E209: 0 | F209: 500 | G209: 0 | H209: 355 | I209: 341.5217391 | J209: 0 | L209: 0 | M209: 696.5217391 | N209: 20:45:00 | O209: 0
B210: 2018-08-30T21:00:00 | C210: 1156.328502 | D210: 4.3875 | E210: 0 | F210: 500 | G210: 0 | H210: 355 | I210: 301.3285024 | J210: 0 | L210: 0 | M210: 656.3285024 | N210: 21:00:00 | O210: 0
B211: 2018-08-30T21:15:00 | C211: 1099.130435 | D211: 4.3875 | E211: 0 | F211: 500 | G211: 0 | H211: 355 | I211: 244.1304348 | J211: 0 | L211: 0 | M211: 599.1304348 | N211: 21:15:00 | O211: 0
B212: 2018-08-30T21:30:00 | C212: 1114.589372 | D212: 4.3875 | E212: 0 | F212: 500 | G212: 0 | H212: 355 | I212: 259.589372 | J212: 0 | L212: 0 | M212: 614.589372 | N212: 21:30:00 | O212: 0
B213: 2018-08-30T21:45:00 | C213: 1143.961353 | D213: 4.3875 | E213: 0 | F213: 500 | G213: 0 | H213: 355 | I213: 288.9613527 | J213: 0 | L213: 0 | M213: 643.9613527 | N213: 21:45:00 | O213: 0
B214: 2018-08-30T22:00:00 | C214: 1071.304348 | D214: 4.3875 | E214: 0 | F214: 500 | G214: 0 | H214: 355 | I214: 216.3043478 | J214: 0 | L214: 0 | M214: 571.3043478 | N214: 22:00:00 | O214: 0
B215: 2018-08-30T22:15:00 | C215: 1031.111111 | D215: 4.3875 | E215: 0 | F215: 500 | G215: 0 | H215: 318.1111111 | I215: 213 | J215: 0 | L215: 0 | M215: 531.1111111 | N215: 22:15:00 | O215: 0
B216: 2018-08-30T22:30:00 | C216: 1029.565217 | D216: 4.3875 | E216: 0 | F216: 500 | G216: 0 | H216: 316.5652174 | I216: 213 | J216: 0 | L216: 0 | M216: 529.5652174 | N216: 22:30:00 | O216: 0
B217: 2018-08-30T22:45:00 | C217: 1147.05314 | D217: 4.3875 | E217: 0 | F217: 500 | G217: 0 | H217: 355 | I217: 292.0531401 | J217: 0 | L217: 0 | M217: 647.0531401 | N217: 22:45:00 | O217: 0
B218: 2018-08-30T23:00:00 | C218: 1113.043478 | D218: 4.3875 | E218: 0 | F218: 500 | G218: 0 | H218: 355 | I218: 258.0434783 | J218: 0 | L218: 0 | M218: 613.0434783 | N218: 23:00:00 | O218: 0
B219: 2018-08-30T23:15:00 | C219: 1151.690821 | D219: 4.3875 | E219: 0 | F219: 500 | G219: 0 | H219: 355 | I219: 296.6908213 | J219: 0 | L219: 0 | M219: 651.6908213 | N219: 23:15:00 | O219: 0
B220: 2018-08-30T23:30:00 | C220: 1133.140097 | D220: 4.3875 | E220: 0 | F220: 500 | G220: 0 | H220: 355 | I220: 278.1400966 | J220: 0 | L220: 0 | M220: 633.1400966 | N220: 23:30:00 | O220: 0
B221: 2018-08-30T23:45:00 | C221: 1096.038647 | D221: 4.3875 | E221: 0 | F221: 500 | G221: 0 | H221: 355 | I221: 241.0386473 | J221: 0 | L221: 0 | M221: 596.0386473 | N221: 23:45:00 | O221: 0
B226: 2018-04-02 | C226: 646.1835749 | D226: 412.3875 | E226: 0 | F226: 329.8315201 | G226: 0 | H226: 316.3520548 | I226: 0 | J226: 0 | K226: 0 | L226: 0 | M226: =SUM(G226:J226) -> 316.3520548
B227: 2018-04-02T00:15:00 | C227: 691.0144928 | D227: 412.3875 | E227: 0 | F227: 374.662438 | G227: 0 | H227: 316.3520548 | I227: 0 | J227: 0 | K227: 0 | L227: 0 | M227: =SUM(G227:J227) -> 316.3520548
B228: 2018-04-02T00:30:00 | C228: 650.821256 | D228: 412.3875 | E228: 0 | F228: 334.4692012 | G228: 0 | H228: 316.3520548 | I228: 0 | J228: 0 | K228: 0 | L228: 0 | M228: 316.3520548
B229: 2018-04-02T00:45:00 | C229: 647.7294686 | D229: 412.3875 | E229: 0 | F229: 331.3774138 | G229: 0 | H229: 316.3520548 | I229: 0 | J229: 0 | K229: 0 | L229: 0 | M229: 316.3520548
B230: 2018-04-02T01:00:00 | C230: 624.5410628 | D230: 412.3875 | E230: 0 | F230: 308.189008 | G230: 0 | H230: 316.3520548 | I230: 0 | J230: 0 | K230: 0 | L230: 0 | M230: 316.3520548
B231: 2018-04-02T01:15:00 | C231: 675.5555556 | D231: 382.3875 | E231: 0 | F231: 382.2171994 | G231: 0 | H231: 293.3383562 | I231: 0 | J231: 0 | K231: 0 | L231: 0 | M231: 293.3383562
B232: 2018-04-02T01:30:00 | C232: 732.7536232 | D232: 382.3875 | E232: 0 | F232: 439.415267 | G232: 0 | H232: 293.3383562 | I232: 0 | J232: 0 | K232: 0 | L232: 0 | M232: 293.3383562
... 185 more rows
